{"text_format":"1","workbook":"xlsx","n_sheets":5,"sheets":["CUADRO DE NECESIDADES","Hoja2","INSTRUCTIVO PARA LLENAR","CATALOGO","LISTADO IIEE"],"not_rendered":{"charts":0,"images":4,"macros":1,"external_links":1,"defined_names":14,"comments":0,"pivot_tables":0},"unopened":[],"bounds":{"document_bytes":16777216,"sheet_cells":100000,"rows_first":2000,"rows_last":500,"rows_between":2000,"halvings":0,"cell_chars":16384,"cell_head_chars":4096},"cells_cut":0,"cells_raw":0,"read":"whole","date_system":"1900"}

{"sheet":"CUADRO DE NECESIDADES","index":0,"n_rows":82,"n_cols":19,"rows_kept":82,"cut":false,"hidden":false,"merged":[[77,1,77,2],[78,1,78,2],[79,1,79,2],[80,1,80,2],[73,1,73,2],[74,1,74,2],[75,1,75,2],[76,1,76,2],[64,1,64,2],[65,1,65,2],[66,1,66,2],[67,1,67,2],[68,1,68,2],[69,1,69,2],[70,1,70,2],[71,1,71,2],[72,1,72,2],[55,1,55,2],[56,1,56,2],[57,1,57,2],[58,1,58,2],[59,1,59,2],[60,1,60,2],[61,1,61,2],[62,1,62,2],[63,1,63,2],[46,1,46,2],[47,1,47,2],[48,1,48,2],[49,1,49,2],[50,1,50,2],[51,1,51,2],[52,1,52,2],[53,1,53,2],[54,1,54,2],[37,1,37,2],[38,1,38,2],[39,1,39,2],[40,1,40,2],[41,1,41,2],[42,1,42,2],[43,1,43,2],[44,1,44,2],[45,1,45,2],[29,1,29,2],[30,1,30,2],[31,1,31,2],[32,1,32,2],[33,1,33,2],[34,1,34,2],[35,1,35,2],[36,1,36,2],[22,1,22,2],[23,1,23,2],[24,1,24,2],[25,1,25,2],[26,1,26,2],[27,1,27,2],[28,1,28,2],[15,1,15,2],[16,1,16,2],[17,1,17,2],[18,1,18,2],[19,1,19,2],[20,1,20,2],[21,1,21,2],[5,0,5,2],[7,0,7,2],[9,1,9,2],[10,1,10,2],[11,1,11,2],[12,1,12,2],[13,1,13,2],[14,1,14,2],[79,12,79,13],[80,12,80,13],[77,10,77,11],[77,12,77,13],[78,10,78,11],[78,12,78,13],[79,10,79,11],[80,10,80,11],[76,10,76,11],[76,12,76,13],[71,10,71,11],[71,12,71,13],[72,10,72,11],[72,12,72,13],[73,10,73,11],[73,12,73,13],[74,10,74,11],[74,12,74,13],[75,10,75,11],[75,12,75,13],[66,10,66,11],[66,12,66,13],[67,10,67,11],[67,12,67,13],[68,10,68,11],[68,12,68,13],[69,10,69,11],[69,12,69,13],[70,10,70,11],[70,12,70,13],[61,10,61,11],[61,12,61,13],[62,10,62,11],[62,12,62,13],[63,10,63,11],[63,12,63,13],[64,10,64,11],[64,12,64,13],[65,10,65,11],[65,12,65,13],[56,10,56,11],[57,10,57,11],[58,10,58,11],[59,10,59,11],[56,12,56,13],[57,12,57,13],[58,12,58,13],[59,12,59,13],[60,10,60,11],[60,12,60,13],[47,12,47,13],[48,12,48,13],[49,12,49,13],[50,12,50,13],[51,12,51,13],[52,12,52,13],[53,12,53,13],[54,12,54,13],[55,12,55,13],[47,10,47,11],[48,10,48,11],[49,10,49,11],[50,10,50,11],[51,10,51,11],[52,10,52,11],[53,10,53,11],[54,10,54,11],[55,10,55,11],[37,12,37,13],[38,12,38,13],[39,12,39,13],[40,10,40,11],[41,10,41,11],[42,10,42,11],[43,10,43,11],[44,10,44,11],[46,10,46,11],[40,12,40,13],[41,12,41,13],[42,12,42,13],[43,12,43,13],[44,12,44,13],[45,12,45,13],[46,12,46,13],[32,10,32,11],[34,10,34,11],[35,10,35,11],[36,10,36,11],[37,10,37,11],[38,10,38,11],[39,10,39,11],[16,12,16,13],[17,10,17,11],[17,12,17,13],[18,10,18,11],[18,12,18,13],[19,10,19,11],[19,12,19,13],[20,10,20,11],[20,12,20,13],[29,12,29,13],[30,12,30,13],[31,12,31,13],[32,12,32,13],[33,12,33,13],[34,12,34,13],[35,12,35,13],[36,12,36,13],[79,4,79,7],[80,4,80,7],[77,4,77,7],[76,4,76,7],[14,12,14,13],[15,10,15,11],[15,12,15,13],[16,10,16,11],[14,4,14,7],[15,4,15,7],[16,4,16,7],[14,10,14,11],[22,4,22,7],[18,4,18,7],[19,4,19,7],[20,4,20,7],[21,4,21,7],[21,10,21,11],[17,4,17,7],[21,12,21,13],[22,10,22,11],[22,12,22,13],[29,4,29,7],[30,4,30,7],[6,14,6,15],[6,0,6,4],[0,4,0,12],[1,4,1,12],[0,15,0,17],[0,13,0,14],[7,10,7,11],[3,12,3,13],[5,12,5,13],[7,12,7,13],[3,10,3,11],[5,10,5,11],[4,0,4,3],[5,4,5,8],[3,7,3,8],[7,7,7,8],[3,0,3,2],[1,13,1,14],[1,15,1,17],[9,12,9,13],[10,10,10,11],[10,12,10,13],[11,12,11,13],[12,10,12,11],[12,12,12,13],[13,10,13,11],[13,12,13,13],[9,4,9,7],[10,4,10,7],[11,4,11,7],[12,4,12,7],[13,4,13,7],[9,10,9,11],[11,10,11,11],[23,12,23,13],[24,12,24,13],[25,12,25,13],[26,12,26,13],[27,12,27,13],[28,12,28,13],[31,4,31,7],[23,10,23,11],[24,10,24,11],[25,10,25,11],[26,10,26,11],[27,10,27,11],[28,10,28,11],[29,10,29,11],[30,10,30,11],[31,10,31,11],[23,4,23,7],[24,4,24,7],[25,4,25,7],[26,4,26,7],[27,4,27,7],[28,4,28,7],[32,4,32,7],[33,4,33,7],[34,4,34,7],[35,4,35,7],[36,4,36,7],[37,4,37,7],[38,4,38,7],[39,4,39,7],[40,4,40,7],[57,4,57,7],[58,4,58,7],[41,4,41,7],[42,4,42,7],[43,4,43,7],[44,4,44,7],[45,4,45,7],[46,4,46,7],[47,4,47,7],[48,4,48,7],[49,4,49,7],[50,4,50,7],[51,4,51,7],[52,4,52,7],[33,10,33,11],[45,10,45,11],[59,4,59,7],[60,4,60,7],[61,4,61,7],[78,4,78,7],[67,4,67,7],[69,4,69,7],[70,4,70,7],[62,4,62,7],[63,4,63,7],[64,4,64,7],[65,4,65,7],[66,4,66,7],[68,4,68,7],[71,4,71,7],[72,4,72,7],[73,4,73,7],[74,4,74,7],[75,4,75,7],[53,4,53,7],[54,4,54,7],[55,4,55,7],[56,4,56,7]]}
[null,null,null,null,"         UNIDAD DE GESTION EDUCATIVA LOCAL PUNO UE 311",null,null,null,null,null,null,null,null,"DISTRITO",null,{"$f":"+VLOOKUP($E$4,'LISTADO IIEE'!D2:K2572,7,FALSE)","v":"ACORA"}]
[null,null,null,null,"CUADRO DE NECESIDADES 2019",null,null,null,null,null,null,null,null,"N°",null,{"$f":"+VLOOKUP($E$4,'LISTADO IIEE'!$D$2:$M$888,10,FALSE)","v":13}]
[null,null,null,null,null,null,null,null,null,null,null,null,null,null,null,{"$f":"SUM(P11:P81)","v":0},{"$f":"+VLOOKUP($E$4,'LISTADO IIEE'!$D$2:$K$888,8,FALSE)","v":"Rural"},{"$f":"SUM(P13:P81)","v":0}]
["Codigo Modular del Centro de Costo",null,null,null,"2060613",null,"Numero de Celular",null,null,null,"Nº de Alum. Matriculados",null,{"$f":"+VLOOKUP(E4,'LISTADO IIEE'!D2:I2417,6,FALSE)","v":8}]
[]
["Institucion Educativa",null,null,null,{"$f":"+VLOOKUP($E$4,'LISTADO IIEE'!$D$2:$E$888,2,FALSE)","v":"CENTRAL PUKARA"},null,null,null,null,null,"Nº Docentes",null,0,null,null,192]
[]
["Nombres y Apellidos del Director",null,null,null,null,null,"Correo Electronico",null,null,null,"Nº de Aulas",null,0,null,"Aprobado",0," - Aprobado",{"$f":"+Q8","v":" - Aprobado"}]
[]
["CODIGO INTERNO","Clasificador de Gasto",null,"CATALOGO SIGA","DESCRIPCIÓN",null,null,null,"Unidad\nde medida","Precio Estimado","I DOTACION\nENERO - JUNIO",null,"II DOTACION\nJULIO - DICIEMBRE",null,"CANTIDAD","TOTAL","C.M","OBSERVACIONES","CLASIFICADOR"]
[null,null,null,{"$f":"IF(A11=\"\",\"\",VLOOKUP(A11,CATALOGO,2,FALSE))","v":""},{"$f":"IF(A11=\"\",\"\",VLOOKUP(A11,CATALOGO,3,FALSE))","v":""},null,null,null,{"$f":"IF(A11=\"\",\"\",VLOOKUP(A11,CATALOGO,4,FALSE))","v":""},{"$f":"IF(D11=\"\",\"\",VLOOKUP(D11,CATALOGO!$B$2:$E$349,4,FALSE))","v":""},null,null,null,null,{"$f":"IF(A11=\"\",\"\",(L11+M11+N11+K11))","v":""},{"$f":"IF(J11=\"\",\"\",(J11*O11))","v":""},{"$f":"+E$4","v":"2060613"},null,{"$f":"IF(A11=\"\",\"\",VLOOKUP(A11,CATALOGO,6,FALSE))","v":""}]
[null,null,null,"",{"$f":"IF(A12=\"\",\"\",VLOOKUP(A12,CATALOGO,3,FALSE))","v":""},null,null,null,{"$f":"IF(A12=\"\",\"\",VLOOKUP(A12,CATALOGO,4,FALSE))","v":""},{"$f":"IF(D12=\"\",\"\",VLOOKUP(D12,CATALOGO!$B$2:$E$349,4,FALSE))","v":""},null,null,null,null,"","",{"$f":"+E$4","v":"2060613"},null,""]
[null,null,null,"","",null,null,null,"",{"$f":"IF(D13=\"\",\"\",VLOOKUP(D13,CATALOGO!$B$2:$E$349,4,FALSE))","v":""},null,null,null,null,"","","2060613",null,""]
[null,null,null,"","",null,null,null,"",{"$f":"IF(D14=\"\",\"\",VLOOKUP(D14,CATALOGO!$B$2:$E$349,4,FALSE))","v":""},null,null,null,null,"","","2060613",null,""]
[null,null,null,"","",null,null,null,"",{"$f":"IF(D15=\"\",\"\",VLOOKUP(D15,CATALOGO!$B$2:$E$349,4,FALSE))","v":""},null,null,null,null,"","","2060613",null,""]
[null,null,null,"","",null,null,null,"",{"$f":"IF(D16=\"\",\"\",VLOOKUP(D16,CATALOGO!$B$2:$E$349,4,FALSE))","v":""},null,null,null,null,"","","2060613",null,""]
[null,null,null,"","",null,null,null,"",{"$f":"IF(D17=\"\",\"\",VLOOKUP(D17,CATALOGO!$B$2:$E$349,4,FALSE))","v":""},null,null,null,null,"","","2060613",null,""]
[null,null,null,"","",null,null,null,"",{"$f":"IF(D18=\"\",\"\",VLOOKUP(D18,CATALOGO!$B$2:$E$349,4,FALSE))","v":""},null,null,null,null,"","","2060613",null,""]
[null,null,null,"","",null,null,null,"",{"$f":"IF(D19=\"\",\"\",VLOOKUP(D19,CATALOGO!$B$2:$E$349,4,FALSE))","v":""},null,null,null,null,"","","2060613",null,""]
[null,null,null,"","",null,null,null,"",{"$f":"IF(D20=\"\",\"\",VLOOKUP(D20,CATALOGO!$B$2:$E$349,4,FALSE))","v":""},null,null,null,null,"","","2060613",null,""]
[null,null,null,"","",null,null,null,"",{"$f":"IF(D21=\"\",\"\",VLOOKUP(D21,CATALOGO!$B$2:$E$349,4,FALSE))","v":""},null,null,null,null,"","","2060613",null,""]
[null,null,null,"","",null,null,null,"",{"$f":"IF(D22=\"\",\"\",VLOOKUP(D22,CATALOGO!$B$2:$E$349,4,FALSE))","v":""},null,null,null,null,"","","2060613",null,""]
[null,null,null,"","",null,null,null,"",{"$f":"IF(D23=\"\",\"\",VLOOKUP(D23,CATALOGO!$B$2:$E$349,4,FALSE))","v":""},null,null,null,null,"","","2060613",null,""]
[null,null,null,"","",null,null,null,"",{"$f":"IF(D24=\"\",\"\",VLOOKUP(D24,CATALOGO!$B$2:$E$349,4,FALSE))","v":""},null,null,null,null,"","","2060613",null,""]
[null,null,null,"","",null,null,null,"",{"$f":"IF(D25=\"\",\"\",VLOOKUP(D25,CATALOGO!$B$2:$E$349,4,FALSE))","v":""},null,null,null,null,"","","2060613",null,""]
[null,null,null,"","",null,null,null,"",{"$f":"IF(D26=\"\",\"\",VLOOKUP(D26,CATALOGO!$B$2:$E$349,4,FALSE))","v":""},null,null,null,null,"","","2060613",null,""]
[null,null,null,"","",null,null,null,"",{"$f":"IF(D27=\"\",\"\",VLOOKUP(D27,CATALOGO!$B$2:$E$349,4,FALSE))","v":""},null,null,null,null,"","","2060613",null,""]
[null,null,null,"","",null,null,null,"",{"$f":"IF(D28=\"\",\"\",VLOOKUP(D28,CATALOGO!$B$2:$E$349,4,FALSE))","v":""},null,null,null,null,"","","2060613",null,""]
[null,null,null,"","",null,null,null,"",{"$f":"IF(D29=\"\",\"\",VLOOKUP(D29,CATALOGO!$B$2:$E$349,4,FALSE))","v":""},null,null,null,null,"","","2060613",null,""]
[null,null,null,"","",null,null,null,"",{"$f":"IF(D30=\"\",\"\",VLOOKUP(D30,CATALOGO!$B$2:$E$349,4,FALSE))","v":""},null,null,null,null,"","","2060613",null,""]
[null,null,null,"","",null,null,null,"",{"$f":"IF(D31=\"\",\"\",VLOOKUP(D31,CATALOGO!$B$2:$E$349,4,FALSE))","v":""},null,null,null,null,"","","2060613",null,""]
[null,null,null,"","",null,null,null,"",{"$f":"IF(D32=\"\",\"\",VLOOKUP(D32,CATALOGO!$B$2:$E$349,4,FALSE))","v":""},null,null,null,null,"","","2060613",null,""]
[null,null,null,"","",null,null,null,"",{"$f":"IF(D33=\"\",\"\",VLOOKUP(D33,CATALOGO!$B$2:$E$349,4,FALSE))","v":""},null,null,null,null,"","","2060613",null,""]
[null,null,null,"","",null,null,null,"",{"$f":"IF(D34=\"\",\"\",VLOOKUP(D34,CATALOGO!$B$2:$E$349,4,FALSE))","v":""},null,null,null,null,"","","2060613",null,""]
[null,null,null,"","",null,null,null,"",{"$f":"IF(D35=\"\",\"\",VLOOKUP(D35,CATALOGO!$B$2:$E$349,4,FALSE))","v":""},null,null,null,null,"","","2060613",null,""]
[null,null,null,"","",null,null,null,"",{"$f":"IF(D36=\"\",\"\",VLOOKUP(D36,CATALOGO!$B$2:$E$349,4,FALSE))","v":""},null,null,null,null,"","","2060613",null,""]
[null,null,null,"","",null,null,null,"",{"$f":"IF(D37=\"\",\"\",VLOOKUP(D37,CATALOGO!$B$2:$E$349,4,FALSE))","v":""},null,null,null,null,"","","2060613",null,""]
[null,null,null,"","",null,null,null,"",{"$f":"IF(D38=\"\",\"\",VLOOKUP(D38,CATALOGO!$B$2:$E$349,4,FALSE))","v":""},null,null,null,null,"","","2060613",null,""]
[null,null,null,"","",null,null,null,"",{"$f":"IF(D39=\"\",\"\",VLOOKUP(D39,CATALOGO!$B$2:$E$349,4,FALSE))","v":""},null,null,null,null,"","","2060613",null,""]
[null,null,null,"","",null,null,null,"",{"$f":"IF(D40=\"\",\"\",VLOOKUP(D40,CATALOGO!$B$2:$E$349,4,FALSE))","v":""},null,null,null,null,"","","2060613",null,""]
[null,null,null,"","",null,null,null,"",{"$f":"IF(D41=\"\",\"\",VLOOKUP(D41,CATALOGO!$B$2:$E$349,4,FALSE))","v":""},null,null,null,null,"","","2060613",null,""]
[null,null,null,"","",null,null,null,"",{"$f":"IF(D42=\"\",\"\",VLOOKUP(D42,CATALOGO!$B$2:$E$349,4,FALSE))","v":""},null,null,null,null,"","","2060613",null,""]
[null,null,null,{"$f":"IF(A43=\"\",\"\",VLOOKUP(A43,CATALOGO,2,FALSE))","v":""},{"$f":"IF(A43=\"\",\"\",VLOOKUP(A43,CATALOGO,3,FALSE))","v":""},null,null,null,{"$f":"IF(A43=\"\",\"\",VLOOKUP(A43,CATALOGO,4,FALSE))","v":""},{"$f":"IF(D43=\"\",\"\",VLOOKUP(D43,CATALOGO!$B$2:$E$349,4,FALSE))","v":""},null,null,null,null,"","","2060613",null,{"$f":"IF(A43=\"\",\"\",VLOOKUP(A43,CATALOGO,6,FALSE))","v":""}]
[null,null,null,"","",null,null,null,"",{"$f":"IF(D44=\"\",\"\",VLOOKUP(D44,CATALOGO!$B$2:$E$349,4,FALSE))","v":""},null,null,null,null,"","","2060613",null,""]
[null,null,null,"","",null,null,null,"",{"$f":"IF(D45=\"\",\"\",VLOOKUP(D45,CATALOGO!$B$2:$E$349,4,FALSE))","v":""},null,null,null,null,"","","2060613",null,""]
[null,null,null,"","",null,null,null,"",{"$f":"IF(D46=\"\",\"\",VLOOKUP(D46,CATALOGO!$B$2:$E$349,4,FALSE))","v":""},null,null,null,null,"","","2060613",null,""]
[null,null,null,"","",null,null,null,"",{"$f":"IF(D47=\"\",\"\",VLOOKUP(D47,CATALOGO!$B$2:$E$349,4,FALSE))","v":""},null,null,null,null,"","","2060613",null,""]
[null,null,null,"","",null,null,null,"",{"$f":"IF(D48=\"\",\"\",VLOOKUP(D48,CATALOGO!$B$2:$E$349,4,FALSE))","v":""},null,null,null,null,"","","2060613",null,""]
[null,null,null,"","",null,null,null,"",{"$f":"IF(D49=\"\",\"\",VLOOKUP(D49,CATALOGO!$B$2:$E$349,4,FALSE))","v":""},null,null,null,null,"","","2060613",null,""]
[null,null,null,"","",null,null,null,"",{"$f":"IF(D50=\"\",\"\",VLOOKUP(D50,CATALOGO!$B$2:$E$349,4,FALSE))","v":""},null,null,null,null,"","","2060613",null,""]
[null,null,null,"","",null,null,null,"",{"$f":"IF(D51=\"\",\"\",VLOOKUP(D51,CATALOGO!$B$2:$E$349,4,FALSE))","v":""},null,null,null,null,"","","2060613",null,""]
[null,null,null,"","",null,null,null,"",{"$f":"IF(D52=\"\",\"\",VLOOKUP(D52,CATALOGO!$B$2:$E$349,4,FALSE))","v":""},null,null,null,null,"","","2060613",null,""]
[null,null,null,"","",null,null,null,"",{"$f":"IF(D53=\"\",\"\",VLOOKUP(D53,CATALOGO!$B$2:$E$349,4,FALSE))","v":""},null,null,null,null,"","","2060613",null,""]
[null,null,null,"","",null,null,null,"",{"$f":"IF(D54=\"\",\"\",VLOOKUP(D54,CATALOGO!$B$2:$E$349,4,FALSE))","v":""},null,null,null,null,"","","2060613",null,""]
[null,null,null,"","",null,null,null,"",{"$f":"IF(D55=\"\",\"\",VLOOKUP(D55,CATALOGO!$B$2:$E$349,4,FALSE))","v":""},null,null,null,null,"","","2060613",null,""]
[null,null,null,"","",null,null,null,"",{"$f":"IF(D56=\"\",\"\",VLOOKUP(D56,CATALOGO!$B$2:$E$349,4,FALSE))","v":""},null,null,null,null,"","","2060613",null,""]
[null,null,null,"","",null,null,null,"",{"$f":"IF(D57=\"\",\"\",VLOOKUP(D57,CATALOGO!$B$2:$E$349,4,FALSE))","v":""},null,null,null,null,"","","2060613",null,""]
[null,null,null,"","",null,null,null,"",{"$f":"IF(D58=\"\",\"\",VLOOKUP(D58,CATALOGO!$B$2:$E$349,4,FALSE))","v":""},null,null,null,null,"","","2060613",null,""]
[null,null,null,"","",null,null,null,"",{"$f":"IF(D59=\"\",\"\",VLOOKUP(D59,CATALOGO!$B$2:$E$349,4,FALSE))","v":""},null,null,null,null,"","","2060613",null,""]
[null,null,null,"","",null,null,null,"",{"$f":"IF(D60=\"\",\"\",VLOOKUP(D60,CATALOGO!$B$2:$E$349,4,FALSE))","v":""},null,null,null,null,"","","2060613",null,""]
[null,null,null,"","",null,null,null,"",{"$f":"IF(D61=\"\",\"\",VLOOKUP(D61,CATALOGO!$B$2:$E$349,4,FALSE))","v":""},null,null,null,null,"","","2060613",null,""]
[null,null,null,"","",null,null,null,"",{"$f":"IF(D62=\"\",\"\",VLOOKUP(D62,CATALOGO!$B$2:$E$349,4,FALSE))","v":""},null,null,null,null,"","","2060613",null,""]
[null,null,null,"","",null,null,null,"",{"$f":"IF(D63=\"\",\"\",VLOOKUP(D63,CATALOGO!$B$2:$E$349,4,FALSE))","v":""},null,null,null,null,"","","2060613",null,""]
[null,null,null,"","",null,null,null,"",{"$f":"IF(D64=\"\",\"\",VLOOKUP(D64,CATALOGO!$B$2:$E$349,4,FALSE))","v":""},null,null,null,null,"","","2060613",null,""]
[null,null,null,"","",null,null,null,"",{"$f":"IF(D65=\"\",\"\",VLOOKUP(D65,CATALOGO!$B$2:$E$349,4,FALSE))","v":""},null,null,null,null,"","","2060613",null,""]
[null,null,null,"","",null,null,null,"",{"$f":"IF(D66=\"\",\"\",VLOOKUP(D66,CATALOGO!$B$2:$E$349,4,FALSE))","v":""},null,null,null,null,"","","2060613",null,""]
[null,null,null,"","",null,null,null,"",{"$f":"IF(D67=\"\",\"\",VLOOKUP(D67,CATALOGO!$B$2:$E$349,4,FALSE))","v":""},null,null,null,null,"","","2060613",null,""]
[null,null,null,"","",null,null,null,"",{"$f":"IF(D68=\"\",\"\",VLOOKUP(D68,CATALOGO!$B$2:$E$349,4,FALSE))","v":""},null,null,null,null,"","","2060613",null,""]
[null,null,null,"","",null,null,null,"",{"$f":"IF(D69=\"\",\"\",VLOOKUP(D69,CATALOGO!$B$2:$E$349,4,FALSE))","v":""},null,null,null,null,"","","2060613"]
[null,null,null,"","",null,null,null,"",{"$f":"IF(D70=\"\",\"\",VLOOKUP(D70,CATALOGO!$B$2:$E$349,4,FALSE))","v":""},null,null,null,null,"","","2060613",null,{"$f":"IF(A70=\"\",\"\",VLOOKUP(A70,CATALOGO,6,FALSE))","v":""}]
[null,null,null,"","",null,null,null,"",{"$f":"IF(D71=\"\",\"\",VLOOKUP(D71,CATALOGO!$B$2:$E$349,4,FALSE))","v":""},null,null,null,null,"","","2060613",null,{"$f":"IF(A71=\"\",\"\",VLOOKUP(A71,CATALOGO,6,FALSE))","v":""}]
[null,null,null,"","",null,null,null,"",{"$f":"IF(D72=\"\",\"\",VLOOKUP(D72,CATALOGO!$B$2:$E$349,4,FALSE))","v":""},null,null,null,null,"","","2060613"]
[null,null,null,"","",null,null,null,"",{"$f":"IF(D73=\"\",\"\",VLOOKUP(D73,CATALOGO!$B$2:$E$349,4,FALSE))","v":""},null,null,null,null,"","","2060613"]
[null,null,null,"","",null,null,null,"",{"$f":"IF(D74=\"\",\"\",VLOOKUP(D74,CATALOGO!$B$2:$E$349,4,FALSE))","v":""},null,null,null,null,"","","2060613"]
[null,null,null,{"$f":"IF(A75=\"\",\"\",VLOOKUP(A75,CATALOGO,2,FALSE))","v":""},{"$f":"IF(A75=\"\",\"\",VLOOKUP(A75,CATALOGO,3,FALSE))","v":""},null,null,null,{"$f":"IF(A75=\"\",\"\",VLOOKUP(A75,CATALOGO,4,FALSE))","v":""},{"$f":"IF(D75=\"\",\"\",VLOOKUP(D75,CATALOGO!$B$2:$E$349,4,FALSE))","v":""},null,null,null,null,{"$f":"IF(A75=\"\",\"\",(L75+M75+N75+K75))","v":""},{"$f":"IF(J75=\"\",\"\",(J75*O75))","v":""},"2060613"]
[null,null,null,"","",null,null,null,"",{"$f":"IF(D76=\"\",\"\",VLOOKUP(D76,CATALOGO!$B$2:$E$349,4,FALSE))","v":""},null,null,null,null,"","",{"$f":"+E$4","v":"2060613"}]
[null,null,null,"","",null,null,null,"",{"$f":"IF(D77=\"\",\"\",VLOOKUP(D77,CATALOGO!$B$2:$E$349,4,FALSE))","v":""},null,null,null,null,"","","2060613"]
[null,null,null,"","",null,null,null,"",{"$f":"IF(D78=\"\",\"\",VLOOKUP(D78,CATALOGO!$B$2:$E$349,4,FALSE))","v":""},null,null,null,null,"","","2060613"]
[null,null,null,"","",null,null,null,"",{"$f":"IF(D79=\"\",\"\",VLOOKUP(D79,CATALOGO!$B$2:$E$349,4,FALSE))","v":""},null,null,null,null,"","","2060613"]
[null,null,null,"","",null,null,null,"",{"$f":"IF(D80=\"\",\"\",VLOOKUP(D80,CATALOGO!$B$2:$E$349,4,FALSE))","v":""},null,null,null,null,"","","2060613"]
[null,null,null,"","",null,null,null,"",{"$f":"IF(D81=\"\",\"\",VLOOKUP(D81,CATALOGO!$B$2:$E$349,4,FALSE))","v":""},null,null,null,null,"","","2060613"]
[null,null,null,null,null,null,null,null,null,null,null,null,null,null,null,{"$f":"SUM(P11:P81)","v":0}]

{"sheet":"Hoja2","index":1,"n_rows":15,"n_cols":3,"rows_kept":15,"cut":false,"hidden":true,"merged":[]}
["1. PUNO."]
["2. ACORA.",null,5]
["3. AMANTANI."]
["4. ATUNCOLLA."]
["5. CAPACHICA."]
["6. CHUCUITO."]
["7. COATA."]
["8. HUATA."]
["9. MAÑAZO."]
["10. PAUCARCOLLA."]
["11. PICHACANI (Laraqueri)."]
["12. PLATERIA."]
["13. SAN ANTONIO (San Antonio de Esquilache)."]
["14. TIQUILLACA."]
["15. VILQUE."]

{"sheet":"INSTRUCTIVO PARA LLENAR","index":2,"n_rows":79,"n_cols":12,"rows_kept":79,"cut":false,"hidden":false,"merged":[[1,9,1,10],[2,3,2,6],[7,8,7,9],[4,6,4,7],[4,1,4,2],[4,3,4,4],[8,1,8,2],[8,3,8,4],[1,3,1,6],[8,6,8,7],[5,1,5,2],[6,1,6,2],[6,6,6,7],[7,1,7,3],[1,7,1,8]]}
[]
[null,null,null,"UNIDAD DE GESTION EDUCATIVA PUNO",null,null,null,"DISTRITO",null,"ATUNCOLLA"]
[null,null,null,"CUADRO DE NECESIDADES 2018"]
[]
[null,"Centro de Costo \nInstitucion Educativa",null,70000,null,null,120]
[null,null,null,null,null,null,null,null,0]
[null,"Codigo Modular",null,70020041,null,null,3,null,null,123]
[]
[null,"Nombres y Apellidos DIRECTOR(e)(a)",null,"JUAN PEREZ PEREZ",null,null,4,null,null,{"$f":"SUM(J12:J81)","v":{"$error":"#REF!"}}]
[]
[null,"CODIGO INTERNO","CATALOGO SIGA","DESCRIPCIÓN","Unidad\nde medida","Precio Estimado","I DOTACION","II DOTACION","CANTIDAD","TOTAL","OBSERVACIONES","CLASIFICADOR"]
[null,1,{"$f":"IF(B12=\"\",\"\",VLOOKUP(B12,CATALOGO,2,FALSE))","v":"133000140205"},{"$f":"IF(B12=\"\",\"\",VLOOKUP(B12,CATALOGO,3,FALSE))","v":"AMBIENTADOR EN PASTILLA PARA BAÑO X 40 gr APROX."},{"$f":"IF(B12=\"\",\"\",VLOOKUP(B12,CATALOGO,4,FALSE))","v":"UNIDAD"},{"$f":"IF(B12=\"\",\"\",VLOOKUP(B12,CATALOGO,5,FALSE))","v":7},null,null,{"$f":"IF(B12=\"\",\"\",(#REF!+G12+H12+#REF!))","v":{"$error":"#REF!"}},{"$f":"IF(F12=\"\",\"\",(F12*I12))","v":{"$error":"#REF!"}},null,{"$f":"IF(B12=\"\",\"\",VLOOKUP(B12,CATALOGO,6,FALSE))","v":0}]
[null,2,"133000140079","AMBIENTADOR EN SPRAY X 360 mL","UNIDAD",7,null,null,{"$f":"IF(B13=\"\",\"\",(#REF!+G13+H13+#REF!))","v":{"$error":"#REF!"}},{"$error":"#REF!"}]
[null,3,"133000140077","AMBIENTADOR EN SPRAY X 400 mL APROX.","UNIDAD",7,null,null,{"$f":"IF(B14=\"\",\"\",(#REF!+G14+H14+#REF!))","v":{"$error":"#REF!"}},{"$error":"#REF!"}]
[null,4,"133000140091","AMBIENTADOR EN SPRAY X 650 mL","UNIDAD",7,null,null,{"$f":"IF(B15=\"\",\"\",(#REF!+G15+H15+#REF!))","v":{"$error":"#REF!"}},{"$error":"#REF!"}]
[null,5,"646100080005","ANTISARRO PARA WATER","UNIDAD",3.2,null,null,{"$f":"IF(B16=\"\",\"\",(#REF!+G16+H16+#REF!))","v":{"$error":"#REF!"}},{"$error":"#REF!"}]
[null,6,"710600010012","ARCHIVADOR DE CARTON CON PALANCA LOMO ANCHO TAMAÑO OFICIO","UNIDAD",3.6579999999999999,null,null,{"$f":"IF(B17=\"\",\"\",(#REF!+G17+H17+#REF!))","v":{"$error":"#REF!"}},{"$error":"#REF!"}]
[null,7,"716000010022","BOLIGRAFO (LAPICERO) DE TINTA LIQUIDA PUNTA FINA COLOR  AZUL","UNIDAD",3.3,null,null,{"$f":"IF(B18=\"\",\"\",(#REF!+G18+H18+#REF!))","v":{"$error":"#REF!"}},{"$error":"#REF!"}]
[null,8,"716000010001","BOLIGRAFO (LAPICERO) DE TINTA LIQUIDA PUNTA FINA COLOR  NEGRO","UNIDAD",2.3954,null,null,{"$f":"IF(B19=\"\",\"\",(#REF!+G19+H19+#REF!))","v":{"$error":"#REF!"}},{"$error":"#REF!"}]
[null,9,"716000010002","BOLIGRAFO (LAPICERO) DE TINTA LIQUIDA PUNTA FINA COLOR  ROJO","UNIDAD",3.3,null,null,{"$f":"IF(B20=\"\",\"\",(#REF!+G20+H20+#REF!))","v":{"$error":"#REF!"}},{"$error":"#REF!"}]
[null,10,"716000010212","BOLIGRAFO (LAPICERO) DE TINTA SECA PUNTA MEDIA COLOR  AZUL","UNIDAD",0.4,null,null,{"$f":"IF(B21=\"\",\"\",(#REF!+G21+H21+#REF!))","v":{"$error":"#REF!"}},{"$error":"#REF!"}]
[null,11,"716000010213","BOLIGRAFO (LAPICERO) DE TINTA SECA PUNTA MEDIA COLOR  NEGRO","UNIDAD",0.4,null,null,{"$f":"IF(B22=\"\",\"\",(#REF!+G22+H22+#REF!))","v":{"$error":"#REF!"}},{"$error":"#REF!"}]
[null,12,"716000010214","BOLIGRAFO (LAPICERO) DE TINTA SECA PUNTA MEDIA COLOR  ROJO","UNIDAD",0.4,null,null,{"$f":"IF(B23=\"\",\"\",(#REF!+G23+H23+#REF!))","v":{"$error":"#REF!"}},{"$error":"#REF!"}]
[null,13,"711100010008","BORRADOR MIXTO TAMAÑO GRANDE","UNIDAD",0.8,null,null,{"$f":"IF(B24=\"\",\"\",(#REF!+G24+H24+#REF!))","v":{"$error":"#REF!"}},{"$error":"#REF!"}]
[null,14,"717300110160","CARTON PRENSADO N° 8 DE 70 cm X 100 cm","UNIDAD",8,null,null,{"$f":"IF(B25=\"\",\"\",(#REF!+G25+H25+#REF!))","v":{"$error":"#REF!"}},{"$error":"#REF!"}]
[null,15,"717300110328","CARTULINA CORRUGADA 100 g DE 50 cm X 70 cm DE COLOR","UNIDAD",0.23592399999999999,null,null,{"$f":"IF(B26=\"\",\"\",(#REF!+G26+H26+#REF!))","v":{"$error":"#REF!"}},{"$error":"#REF!"}]
[null,16,"717300110043","CARTULINA PLASTIFICADA DE 50 cm X 60 cm","UNIDAD",0.23592399999999999,null,null,{"$f":"IF(B27=\"\",\"\",(#REF!+G27+H27+#REF!))","v":{"$error":"#REF!"}},{"$error":"#REF!"}]
[null,17,"717300110094","CARTULINA PLASTIFICADA DE 50 cm X 65 cm COLOR AZUL","UNIDAD",0.23592399999999999,null,null,{"$f":"IF(B28=\"\",\"\",(#REF!+G28+H28+#REF!))","v":{"$error":"#REF!"}},{"$error":"#REF!"}]
[null,18,"717300110188","CARTULINA SATINADA 150 g  DE 70 cm X 100 cm","UNIDAD",0.23592399999999999,null,null,{"$f":"IF(B29=\"\",\"\",(#REF!+G29+H29+#REF!))","v":{"$error":"#REF!"}},{"$error":"#REF!"}]
[null,19,"717300110032","CARTULINA SATINADA 150 g DE 50 cm X 65 cm","UNIDAD",0.23592399999999999,null,null,{"$f":"IF(B30=\"\",\"\",(#REF!+G30+H30+#REF!))","v":{"$error":"#REF!"}},{"$error":"#REF!"}]
[null,20,"717300110332","CARTULINA SATINADA 150 g DE 50 cm X 65 cm  COLOR BLANCO","CIENTO",3,null,null,{"$f":"IF(B31=\"\",\"\",(#REF!+G31+H31+#REF!))","v":{"$error":"#REF!"}},{"$error":"#REF!"}]
[null,21,"717300110097","CARTULINA SATINADA 150 g DE 50 cm X 65 cm COLOR BLANCO","UNIDAD",0.23592399999999999,null,null,{"$f":"IF(B32=\"\",\"\",(#REF!+G32+H32+#REF!))","v":{"$error":"#REF!"}},{"$error":"#REF!"}]
[null,22,"717300110165","CARTULINA SATINADA 150 g DE 50 cm X 65 cm COLOR NEGRO","UNIDAD",0.23592399999999999,null,null,{"$f":"IF(B33=\"\",\"\",(#REF!+G33+H33+#REF!))","v":{"$error":"#REF!"}},{"$error":"#REF!"}]
[null,23,"717300110042","CARTULINA SATINADA 150 g DE 70 cm X 100 cm COLOR BLANCO","UNIDAD",0.23592399999999999,null,null,{"$f":"IF(B34=\"\",\"\",(#REF!+G34+H34+#REF!))","v":{"$error":"#REF!"}},{"$error":"#REF!"}]
[null,24,"717300110089","CARTULINA SIMPLE 120 g DE 70 cm X 100 cm COLOR BLANCO","UNIDAD",0.23592399999999999,null,null,{"$f":"IF(B35=\"\",\"\",(#REF!+G35+H35+#REF!))","v":{"$error":"#REF!"}},{"$error":"#REF!"}]
[null,25,"717300110329","CARTULINA SIMPLE 140 g 50 cm X 65 cm COLOR BLANCO","UNIDAD",0.23592399999999999,null,null,{"$f":"IF(B36=\"\",\"\",(#REF!+G36+H36+#REF!))","v":{"$error":"#REF!"}},{"$error":"#REF!"}]
[null,26,"717300110331","CARTULINA SIMPLE 140 g 50 cm X 65 cm COLOR NEGRO","UNIDAD",0.23592399999999999,null,null,{"$f":"IF(B37=\"\",\"\",(#REF!+G37+H37+#REF!))","v":{"$error":"#REF!"}},{"$error":"#REF!"}]
[null,27,"717300110403","CARTULINA SIMPLE 140 g 50 cm X 65 cm COLOR RAL 1016","UNIDAD",0.23592399999999999,null,null,{"$f":"IF(B38=\"\",\"\",(#REF!+G38+H38+#REF!))","v":{"$error":"#REF!"}},{"$error":"#REF!"}]
[null,28,"717300110404","CARTULINA SIMPLE 140 g 50 cm X 65 cm COLOR RAL 5015","UNIDAD",0.23592399999999999,null,null,{"$f":"IF(B39=\"\",\"\",(#REF!+G39+H39+#REF!))","v":{"$error":"#REF!"}},{"$error":"#REF!"}]
[null,29,"717300110405","CARTULINA SIMPLE 140 g 50 cm X 65 cm COLOR RAL 6001","UNIDAD",0.23592399999999999,null,null,{"$f":"IF(B40=\"\",\"\",(#REF!+G40+H40+#REF!))","v":{"$error":"#REF!"}},{"$error":"#REF!"}]
[null,30,"717300110330","CARTULINA SIMPLE 140 g 50 cm X 65 cm DE COLORES","UNIDAD",0.23592399999999999,null,null,{"$f":"IF(B41=\"\",\"\",(#REF!+G41+H41+#REF!))","v":{"$error":"#REF!"}},{"$error":"#REF!"}]
[null,31,"717300110270","CARTULINA SIMPLE 145 g DE 50 cm X 56 cm COLOR AMARILLO","UNIDAD",0.23592399999999999,null,null,{"$f":"IF(B42=\"\",\"\",(#REF!+G42+H42+#REF!))","v":{"$error":"#REF!"}},{"$error":"#REF!"}]
[null,32,"717300110266","CARTULINA SIMPLE 145 g DE 50 cm X 56 cm COLOR BLANCO","UNIDAD",0.23592399999999999,null,null,{"$f":"IF(B43=\"\",\"\",(#REF!+G43+H43+#REF!))","v":{"$error":"#REF!"}},{"$error":"#REF!"}]
[null,33,"717300110268","CARTULINA SIMPLE 145 g DE 50 cm X 56 cm COLOR CELESTE","UNIDAD",0.23592399999999999,null,null,{"$f":"IF(B44=\"\",\"\",(#REF!+G44+H44+#REF!))","v":{"$error":"#REF!"}},{"$f":"IF(F44=\"\",\"\",(F44*I44))","v":{"$error":"#REF!"}}]
[null,34,"717300110267","CARTULINA SIMPLE 145 g DE 50 cm X 56 cm COLOR ROSADO","UNIDAD",0.23592399999999999,null,null,{"$f":"IF(B45=\"\",\"\",(#REF!+G45+H45+#REF!))","v":{"$error":"#REF!"}},{"$error":"#REF!"}]
[null,35,"717300110269","CARTULINA SIMPLE 145 g DE 50 cm X 56 cm COLOR VERDE","UNIDAD",0.23592399999999999,null,null,{"$f":"IF(B46=\"\",\"\",(#REF!+G46+H46+#REF!))","v":{"$error":"#REF!"}},{"$error":"#REF!"}]
[null,36,"717300110337","CARTULINA SIMPLE 145 g DE 50 cm X 65 cm COLOR BLANCA","UNIDAD",0.23592399999999999,null,null,{"$f":"IF(B47=\"\",\"\",(#REF!+G47+H47+#REF!))","v":{"$error":"#REF!"}},{"$error":"#REF!"}]
[null,37,"717300110363","CARTULINA SIMPLE 145 g TAMAÑO  A4","CIENTO",3,null,null,{"$f":"IF(B48=\"\",\"\",(#REF!+G48+H48+#REF!))","v":{"$error":"#REF!"}},{"$error":"#REF!"}]
[null,38,"717300110342","CARTULINA SIMPLE 150 g 70 cm X 100 cm COLOR AMARILLO","UNIDAD",0.23592399999999999,null,null,{"$f":"IF(B49=\"\",\"\",(#REF!+G49+H49+#REF!))","v":{"$error":"#REF!"}},{"$error":"#REF!"}]
[null,39,"717300110002","CARTULINA SIMPLE 150 g DE 50 cm X 65 cm","UNIDAD",0.23592399999999999,null,null,{"$f":"IF(B50=\"\",\"\",(#REF!+G50+H50+#REF!))","v":{"$error":"#REF!"}},{"$error":"#REF!"}]
[null,40,"717300110034","CARTULINA SIMPLE 150 g DE 50 cm X 65 cm COLOR AMARILLO","UNIDAD",0.23592399999999999,null,null,{"$f":"IF(B51=\"\",\"\",(#REF!+G51+H51+#REF!))","v":{"$error":"#REF!"}},{"$error":"#REF!"}]
[null,41,"717300110226","CARTULINA SIMPLE 150 g DE 50 cm X 65 cm COLOR AZUL","UNIDAD",0.23592399999999999,null,null,{"$f":"IF(B52=\"\",\"\",(#REF!+G52+H52+#REF!))","v":{"$error":"#REF!"}},{"$error":"#REF!"}]
[null,42,"717300110035","CARTULINA SIMPLE 150 g DE 50 cm X 65 cm COLOR BLANCO","UNIDAD",0.23592399999999999,null,null,{"$f":"IF(B53=\"\",\"\",(#REF!+G53+H53+#REF!))","v":{"$error":"#REF!"}},{"$error":"#REF!"}]
[null,43,"717300110036","CARTULINA SIMPLE 150 g DE 50 cm X 65 cm COLOR CELESTE","UNIDAD",0.23592399999999999,null,null,{"$f":"IF(B54=\"\",\"\",(#REF!+G54+H54+#REF!))","v":{"$error":"#REF!"}},{"$error":"#REF!"}]
[null,44,"717300110313","CARTULINA SIMPLE 150 g DE 50 cm X 65 cm COLOR MARRÓN","UNIDAD",0.23592399999999999,null,null,{"$f":"IF(B55=\"\",\"\",(#REF!+G55+H55+#REF!))","v":{"$error":"#REF!"}},{"$error":"#REF!"}]
[null,45,"717300110135","CARTULINA SIMPLE 150 g DE 50 cm X 65 cm COLOR ROJO","UNIDAD",0.23592399999999999,null,null,{"$f":"IF(B56=\"\",\"\",(#REF!+G56+H56+#REF!))","v":{"$error":"#REF!"}},{"$error":"#REF!"}]
[null,46,"717300110092","CARTULINA SIMPLE 150 g DE 50 cm X 65 cm COLOR ROSADO","UNIDAD",0.23592399999999999,null,null,{"$f":"IF(B57=\"\",\"\",(#REF!+G57+H57+#REF!))","v":{"$error":"#REF!"}},{"$error":"#REF!"}]
[null,47,"717300110091","CARTULINA SIMPLE 150 g DE 50 cm X 65 cm COLOR VERDE","UNIDAD",0.23592399999999999,null,null,{"$f":"IF(B58=\"\",\"\",(#REF!+G58+H58+#REF!))","v":{"$error":"#REF!"}},{"$error":"#REF!"}]
[null,48,"717300110285","CARTULINA SIMPLE 150 g DE 70 cm X 100 cm COLOR BLANCO","CIENTO",3,null,null,{"$f":"IF(B59=\"\",\"\",(#REF!+G59+H59+#REF!))","v":{"$error":"#REF!"}},{"$error":"#REF!"}]
[null,49,"717300110019","CARTULINA SIMPLE 150 g TAMAÑO A4","CIENTO",3,null,null,{"$f":"IF(B60=\"\",\"\",(#REF!+G60+H60+#REF!))","v":{"$error":"#REF!"}},{"$error":"#REF!"}]
[null,50,"717300110125","CARTULINA SIMPLE 150 g TAMAÑO A5 COLOR AMARILLO","UNIDAD",0.23592399999999999,null,null,{"$f":"IF(B61=\"\",\"\",(#REF!+G61+H61+#REF!))","v":{"$error":"#REF!"}},{"$error":"#REF!"}]
[null,51,"717300110121","CARTULINA SIMPLE 150 g TAMAÑO A5 COLOR BLANCO","UNIDAD",0.23592399999999999,null,null,{"$f":"IF(B62=\"\",\"\",(#REF!+G62+H62+#REF!))","v":{"$error":"#REF!"}},{"$error":"#REF!"}]
[null,52,"717300110123","CARTULINA SIMPLE 150 g TAMAÑO A5 COLOR CELESTE","UNIDAD",0.23592399999999999,null,null,{"$f":"IF(B63=\"\",\"\",(#REF!+G63+H63+#REF!))","v":{"$error":"#REF!"}},{"$error":"#REF!"}]
[null,53,"717300110122","CARTULINA SIMPLE 150 g TAMAÑO A5 COLOR ROSADO","UNIDAD",0.23592399999999999,null,null,{"$f":"IF(B64=\"\",\"\",(#REF!+G64+H64+#REF!))","v":{"$error":"#REF!"}},{"$error":"#REF!"}]
[null,54,"717300110124","CARTULINA SIMPLE 150 g TAMAÑO A5 COLOR VERDE","UNIDAD",0.23592399999999999,null,null,{"$f":"IF(B65=\"\",\"\",(#REF!+G65+H65+#REF!))","v":{"$error":"#REF!"}},{"$error":"#REF!"}]
[null,55,"717300110039","CARTULINA SIMPLE 160 g DE 50 cm X 65 cm","UNIDAD",0.23592399999999999,null,null,{"$f":"IF(B66=\"\",\"\",(#REF!+G66+H66+#REF!))","v":{"$error":"#REF!"}},{"$error":"#REF!"}]
[null,56,"717300110013","CARTULINA SIMPLE 160 g DE 61 cm X 86 cm","UNIDAD",0.23592399999999999,null,null,{"$f":"IF(B67=\"\",\"\",(#REF!+G67+H67+#REF!))","v":{"$error":"#REF!"}},{"$error":"#REF!"}]
[null,57,"717300110070","CARTULINA SIMPLE 160 g DE 65 cm X 50 cm COLOR NEGRO","UNIDAD",0.23592399999999999,null,null,{"$f":"IF(B68=\"\",\"\",(#REF!+G68+H68+#REF!))","v":{"$error":"#REF!"}},{"$error":"#REF!"}]
[null,null,"","","","",null,null,{"$f":"IF(B69=\"\",\"\",(#REF!+G69+H69+#REF!))","v":""},""]
[null,null,"","","","",null,null,{"$f":"IF(B70=\"\",\"\",(#REF!+G70+H70+#REF!))","v":""},""]
[null,null,"","","","",null,null,{"$f":"IF(B71=\"\",\"\",(#REF!+G71+H71+#REF!))","v":""},""]
[null,null,"","","","",null,null,{"$f":"IF(B72=\"\",\"\",(#REF!+G72+H72+#REF!))","v":""},""]
[null,null,"","","","",null,null,{"$f":"IF(B73=\"\",\"\",(#REF!+G73+H73+#REF!))","v":""},""]
[null,null,"","","","",null,null,{"$f":"IF(B74=\"\",\"\",(#REF!+G74+H74+#REF!))","v":""},""]
[null,null,"","","","",null,null,{"$f":"IF(B75=\"\",\"\",(#REF!+G75+H75+#REF!))","v":""},""]
[null,null,{"$f":"IF(B76=\"\",\"\",VLOOKUP(B76,CATALOGO,2,FALSE))","v":""},{"$f":"IF(B76=\"\",\"\",VLOOKUP(B76,CATALOGO,3,FALSE))","v":""},{"$f":"IF(B76=\"\",\"\",VLOOKUP(B76,CATALOGO,4,FALSE))","v":""},{"$f":"IF(B76=\"\",\"\",VLOOKUP(B76,CATALOGO,5,FALSE))","v":""},null,null,{"$f":"IF(B76=\"\",\"\",(#REF!+G76+H76+#REF!))","v":""},{"$f":"IF(F76=\"\",\"\",(F76*I76))","v":""}]
[null,null,"","","","",null,null,{"$f":"IF(B77=\"\",\"\",(#REF!+G77+H77+#REF!))","v":""},""]
[null,null,"","","","",null,null,{"$f":"IF(B78=\"\",\"\",(#REF!+G78+H78+#REF!))","v":""},""]
[null,null,"","","","",null,null,{"$f":"IF(B79=\"\",\"\",(#REF!+G79+H79+#REF!))","v":""},""]

{"sheet":"CATALOGO","index":3,"n_rows":349,"n_cols":6,"rows_kept":349,"cut":false,"hidden":false,"merged":[]}
["N°","CODIGO","NOMBRE DE ITEM","UNIDAD","PRECIO ESTIMADO","CLASIFICADOR"]
[1,"133000140205","AMBIENTADOR EN PASTILLA PARA BAÑO X 40 gr APROX.","UNIDAD",7]
[2,"133000140079","AMBIENTADOR EN SPRAY X 360 mL","UNIDAD",7,"2.3. 1 5. 3 1"]
[3,"133000140077","AMBIENTADOR EN SPRAY X 400 mL APROX.","UNIDAD",7,"2.3. 1 5. 3 1"]
[4,"133000140091","AMBIENTADOR EN SPRAY X 650 mL","UNIDAD",7,"2.3. 1 5. 3 1"]
[5,"646100080005","ANTISARRO PARA WATER","UNIDAD",3.2,"2.3. 1 5. 3 1"]
[6,"710600010012","ARCHIVADOR DE CARTON CON PALANCA LOMO ANCHO TAMAÑO OFICIO","UNIDAD",3.6579999999999999,"2.3. 1 5. 3 1"]
[7,"716000010022","BOLIGRAFO (LAPICERO) DE TINTA LIQUIDA PUNTA FINA COLOR  AZUL","UNIDAD",3.3,"2.3. 1 5. 3 1"]
[8,"716000010001","BOLIGRAFO (LAPICERO) DE TINTA LIQUIDA PUNTA FINA COLOR  NEGRO","UNIDAD",2.3954,"2.3. 1 5. 3 1"]
[9,"716000010002","BOLIGRAFO (LAPICERO) DE TINTA LIQUIDA PUNTA FINA COLOR  ROJO","UNIDAD",3.3,"2.3. 1 5. 3 1"]
[10,"716000010212","BOLIGRAFO (LAPICERO) DE TINTA SECA PUNTA MEDIA COLOR  AZUL","UNIDAD",0.4,"2.3. 1 5. 3 1"]
[11,"716000010213","BOLIGRAFO (LAPICERO) DE TINTA SECA PUNTA MEDIA COLOR  NEGRO","UNIDAD",0.4,"2.3. 1 5. 3 1"]
[12,"716000010214","BOLIGRAFO (LAPICERO) DE TINTA SECA PUNTA MEDIA COLOR  ROJO","UNIDAD",0.4,"2.3. 1 5. 3 1"]
[13,"711100010008","BORRADOR MIXTO TAMAÑO GRANDE","UNIDAD",0.8,"2.3. 1 5. 1 2"]
[14,"717300110160","CARTON PRENSADO N° 8 DE 70 cm X 100 cm","UNIDAD",8,"2.3. 1 3. 1 1"]
[15,"717300110328","CARTULINA CORRUGADA 100 g DE 50 cm X 70 cm DE COLOR","UNIDAD",0.23592399999999999]
[16,"717300110043","CARTULINA PLASTIFICADA DE 50 cm X 60 cm","UNIDAD",0.23592399999999999,"2.3. 1 9. 1 2"]
[17,"717300110094","CARTULINA PLASTIFICADA DE 50 cm X 65 cm COLOR AZUL","UNIDAD",0.23592399999999999,"2.3. 1 9. 1 2"]
[18,"717300110188","CARTULINA SATINADA 150 g  DE 70 cm X 100 cm","UNIDAD",0.23592399999999999,"2.3. 1 9. 1 2"]
[19,"717300110032","CARTULINA SATINADA 150 g DE 50 cm X 65 cm","UNIDAD",0.23592399999999999,"2.3. 1 9. 1 2"]
[20,"717300110332","CARTULINA SATINADA 150 g DE 50 cm X 65 cm  COLOR BLANCO","CIENTO",3,"2.3. 1 9. 1 2"]
[21,"717300110097","CARTULINA SATINADA 150 g DE 50 cm X 65 cm COLOR BLANCO","UNIDAD",0.23592399999999999,"2.3. 1 9. 1 2"]
[22,"717300110165","CARTULINA SATINADA 150 g DE 50 cm X 65 cm COLOR NEGRO","UNIDAD",0.23592399999999999,"2.3. 1 9. 1 2"]
[23,"717300110042","CARTULINA SATINADA 150 g DE 70 cm X 100 cm COLOR BLANCO","UNIDAD",0.23592399999999999,"2.3. 1 9. 1 2"]
[24,"717300110089","CARTULINA SIMPLE 120 g DE 70 cm X 100 cm COLOR BLANCO","UNIDAD",0.23592399999999999]
[25,"717300110329","CARTULINA SIMPLE 140 g 50 cm X 65 cm COLOR BLANCO","UNIDAD",0.23592399999999999,"2.3. 1 5. 1 2"]
[26,"717300110331","CARTULINA SIMPLE 140 g 50 cm X 65 cm COLOR NEGRO","UNIDAD",0.23592399999999999,"2.3. 1 5. 1 2"]
[27,"717300110403","CARTULINA SIMPLE 140 g 50 cm X 65 cm COLOR RAL 1016","UNIDAD",0.23592399999999999,"2.3. 1 5. 1 2"]
[28,"717300110404","CARTULINA SIMPLE 140 g 50 cm X 65 cm COLOR RAL 5015","UNIDAD",0.23592399999999999,"2.3. 1 5. 1 2"]
[29,"717300110405","CARTULINA SIMPLE 140 g 50 cm X 65 cm COLOR RAL 6001","UNIDAD",0.23592399999999999,"2.3. 1 5. 1 2"]
[30,"717300110330","CARTULINA SIMPLE 140 g 50 cm X 65 cm DE COLORES","UNIDAD",0.23592399999999999,"2.3. 1 5. 1 2"]
[31,"717300110270","CARTULINA SIMPLE 145 g DE 50 cm X 56 cm COLOR AMARILLO","UNIDAD",0.23592399999999999,"2.3. 1 5. 1 2"]
[32,"717300110266","CARTULINA SIMPLE 145 g DE 50 cm X 56 cm COLOR BLANCO","UNIDAD",0.23592399999999999,"2.3. 1 5. 1 2"]
[33,"717300110268","CARTULINA SIMPLE 145 g DE 50 cm X 56 cm COLOR CELESTE","UNIDAD",0.23592399999999999,"2.3. 1 5. 1 2"]
[34,"717300110267","CARTULINA SIMPLE 145 g DE 50 cm X 56 cm COLOR ROSADO","UNIDAD",0.23592399999999999,"2.3. 1 5. 1 2"]
[35,"717300110269","CARTULINA SIMPLE 145 g DE 50 cm X 56 cm COLOR VERDE","UNIDAD",0.23592399999999999,"2.3. 1 5. 1 2"]
[36,"717300110337","CARTULINA SIMPLE 145 g DE 50 cm X 65 cm COLOR BLANCA","UNIDAD",0.23592399999999999,"2.3. 1 5. 1 2"]
[37,"717300110363","CARTULINA SIMPLE 145 g TAMAÑO  A4","CIENTO",3,"2.3. 1 5. 1 2"]
[38,"717300110342","CARTULINA SIMPLE 150 g 70 cm X 100 cm COLOR AMARILLO","UNIDAD",0.23592399999999999,"2.3. 1 5. 1 2"]
[39,"717300110002","CARTULINA SIMPLE 150 g DE 50 cm X 65 cm","UNIDAD",0.23592399999999999,"2.3. 1 5. 1 2"]
[40,"717300110034","CARTULINA SIMPLE 150 g DE 50 cm X 65 cm COLOR AMARILLO","UNIDAD",0.23592399999999999,"2.3. 1 5. 1 2"]
[41,"717300110226","CARTULINA SIMPLE 150 g DE 50 cm X 65 cm COLOR AZUL","UNIDAD",0.23592399999999999,"2.3. 1 5. 1 2"]
[42,"717300110035","CARTULINA SIMPLE 150 g DE 50 cm X 65 cm COLOR BLANCO","UNIDAD",0.23592399999999999,"2.3. 1 5. 1 2"]
[43,"717300110036","CARTULINA SIMPLE 150 g DE 50 cm X 65 cm COLOR CELESTE","UNIDAD",0.23592399999999999,"2.3. 1 5. 1 2"]
[44,"717300110313","CARTULINA SIMPLE 150 g DE 50 cm X 65 cm COLOR MARRÓN","UNIDAD",0.23592399999999999,"2.3. 1 5. 1 2"]
[45,"717300110135","CARTULINA SIMPLE 150 g DE 50 cm X 65 cm COLOR ROJO","UNIDAD",0.23592399999999999,"2.3. 1 5. 1 2"]
[46,"717300110092","CARTULINA SIMPLE 150 g DE 50 cm X 65 cm COLOR ROSADO","UNIDAD",0.23592399999999999,"2.3. 1 5. 1 2"]
[47,"717300110091","CARTULINA SIMPLE 150 g DE 50 cm X 65 cm COLOR VERDE","UNIDAD",0.23592399999999999,"2.3. 1 5. 1 2"]
[48,"717300110285","CARTULINA SIMPLE 150 g DE 70 cm X 100 cm COLOR BLANCO","CIENTO",3,"2.3. 1 5. 1 2"]
[49,"717300110019","CARTULINA SIMPLE 150 g TAMAÑO A4","CIENTO",3,"2.3. 1 5. 1 2"]
[50,"717300110125","CARTULINA SIMPLE 150 g TAMAÑO A5 COLOR AMARILLO","UNIDAD",0.23592399999999999,"2.3. 1 5. 1 2"]
[51,"717300110121","CARTULINA SIMPLE 150 g TAMAÑO A5 COLOR BLANCO","UNIDAD",0.23592399999999999,"2.3. 1 5. 1 2"]
[52,"717300110123","CARTULINA SIMPLE 150 g TAMAÑO A5 COLOR CELESTE","UNIDAD",0.23592399999999999,"2.3. 1 5. 1 2"]
[53,"717300110122","CARTULINA SIMPLE 150 g TAMAÑO A5 COLOR ROSADO","UNIDAD",0.23592399999999999,"2.3. 1 5. 1 2"]
[54,"717300110124","CARTULINA SIMPLE 150 g TAMAÑO A5 COLOR VERDE","UNIDAD",0.23592399999999999,"2.3. 1 5. 1 2"]
[55,"717300110039","CARTULINA SIMPLE 160 g DE 50 cm X 65 cm","UNIDAD",0.23592399999999999,"2.3. 1 5. 1 2"]
[56,"717300110013","CARTULINA SIMPLE 160 g DE 61 cm X 86 cm","UNIDAD",0.23592399999999999,"2.3. 1 5. 1 2"]
[57,"717300110070","CARTULINA SIMPLE 160 g DE 65 cm X 50 cm COLOR NEGRO","UNIDAD",0.23592399999999999,"2.3. 1 5. 1 2"]
[58,"717300110009","CARTULINA SIMPLE 165 g DE 65 cm X 50 cm","UNIDAD",0.23592399999999999,"2.3. 1 5. 1 2"]
[59,"717300110075","CARTULINA SIMPLE 165 g DE 65 cm X 50 cm COLOR BLANCO","UNIDAD",0.23592399999999999,"2.3. 1 5. 1 2"]
[60,"717300110086","CARTULINA SIMPLE 170 g  DE 70 cm X 100 cm COLOR CELESTE","CIENTO",3,"2.3. 1 5. 1 2"]
[61,"717300110051","CARTULINA SIMPLE 180 g DE 100 cm X 70 cm COLOR ROSADO","UNIDAD",0.23592399999999999,"2.3. 1 5. 1 2"]
[62,"717300110098","CARTULINA SIMPLE 180 g DE 50 cm X 65 cm COLOR CELESTE","UNIDAD",0.23592399999999999,"2.3. 1 5. 1 2"]
[63,"717300110099","CARTULINA SIMPLE 180 g DE 50 cm X 65 cm COLOR ROSADO","UNIDAD",0.23592399999999999,"2.3. 1 5. 1 2"]
[64,"717300110014","CARTULINA SIMPLE 180 g DE 61 cm X 86 cm","UNIDAD",0.23592399999999999,"2.3. 1 5. 1 2"]
[65,"717300110095","CARTULINA SIMPLE 180 g DE 69 cm x 89 cm COLOR  CELESTE","EMPAQUE X 500",0.23592399999999999,"2.3. 1 5. 1 2"]
[66,"717300110085","CARTULINA SIMPLE 180 g DE 69 cm X 89 cm COLOR ROSADO","CIENTO",3,"2.3. 1 5. 1 2"]
[67,"717300110084","CARTULINA SIMPLE 180 g DE 69 cm X 89 cm COLOR VERDE","CIENTO",3,"2.3. 1 5. 1 2"]
[68,"717300110047","CARTULINA SIMPLE 180 g DE 70 cm X 100 cm COLOR  BLANCO","UNIDAD",0.23592399999999999,"2.3. 1 5. 1 2"]
[69,"717300110046","CARTULINA SIMPLE 180 g DE 70 cm X 100 cm COLOR ROSADO","CIENTO",3,"2.3. 1 5. 1 2"]
[70,"717300110003","CARTULINA SIMPLE 180 g TAMAÑO A4","UNIDAD",0.23592399999999999,"2.3. 1 5. 1 2"]
[71,"717300110005","CARTULINA SIMPLE 220 g DE 66 cm X 102 cm","UNIDAD",0.23592399999999999,"PAPEL LUSTRE DE 60 cm X 50 cm COLOR AZUL"]
[72,"717300110004","CARTULINA SIMPLE 220 g DE 70 cm X 100 cm","UNIDAD",0.23592399999999999,"PAPEL LUSTRE DE 50 cm X 65 cm COLOR ROJO"]
[73,"717300110012","CARTULINA SIMPLE 90 g DE 70 cm X 100 cm","UNIDAD",0.23592399999999999,"PAPEL LUSTRE DE 50 cm X 65 cm COLOR AZUL"]
[74,"717300110130","CARTULINA TIPO TAGG 150 g DE 23.2 cm X 32.5 cm","UNIDAD",0.23592399999999999,"PAPEL LUSTRE DE 50 cm X 65 cm COLOR AMARILLO"]
[75,"767400040059","CD GRABABLE DE 700 MB","UNIDAD",0.23592399999999999,"PAPEL LUSTRE DE 50 cm X 65 cm COLOR VERDE"]
[76,"767400040047","CD GRABABLE DE 720 MB","UNIDAD",null,"PAPEL LUSTRE DE 50 cm X 65 cm COLOR CELESTE"]
[77,"133000070031","CERA AL AGUA AUTOBRILLANTE COLOR NEUTRAL","GALON",25,"PAPEL LUSTRE DE 60 cm X 50 cm COLOR CELESTE"]
[78,"133000070049","CERA AL AGUA AUTOBRILLANTE COLOR NEUTRAL X 20 L","UNIDAD",25,"PAPEL LUSTRE DE 60 cm X 50 cm COLOR NARANJA"]
[79,"133000070046","CERA AL AGUA PARA PISO AUTOBRILLANTE COLOR AMARILLO","GALON",25,"PAPEL LUSTRE DE 60 cm X 50 cm COLOR LILA"]
[80,"133000070047","CERA AL AGUA PARA PISO AUTOBRILLANTE COLOR NEGRO","GALON",25,"PAPEL LUSTRE DE 60 cm X 50 cm COLOR MORADO"]
[81,"133000070045","CERA AL AGUA PARA PISO AUTOBRILLANTE COLOR ROJO","GALON",25,"PAPEL LUSTRE DE 60 cm X 50 cm COLOR GUINDA"]
[82,"133000070037","CERA AL AGUA PARA PISO COLOR AMARILLO","GALON",25]
[83,"133000070035","CERA AL AGUA PARA PISO COLOR BLANCO","GALON",25]
[84,"133000070036","CERA AL AGUA PARA PISO COLOR NEGRO","GALON",25]
[85,"133000070034","CERA AL AGUA PARA PISO COLOR ROJO","GALON",25]
[86,"133000070038","CERA AL AGUA PARA PISO X 5 L","UNIDAD",25]
[87,"133000070010","CERA AL AGUA PARA PISO X 55 gal","UNIDAD",25]
[88,"133000070032","CERA AL AGUA PARA PISO.","GALON",25]
[89,"133000070025","CERA AL AGUA PERFUMADA X 1 L","UNIDAD",25]
[90,"133000070048","CERA AL AGUA PERFUMADA.","GALON",25]
[91,"133000070053","CERA LÍQUIDA CON SILICONA PARA PISO COLOR ROJO X 1 gal","UNIDAD",25]
[92,"133000070056","CERA LÍQUIDA CON SILICONA PARA PISO X 1 gal","UNIDAD",25]
[93,"133000070054","CERA LÍQUIDA PARA PISO AUTOBRILLANTE COLOR BLANCO","GALON",25]
[94,"133000070043","CERA LIQUIDA PARA PISO COLOR ROJO","GALON",25]
[95,"133000070042","CERA LIQUIDA PARA PISO X 1 gal","UNIDAD",25]
[96,"710300010010","CINTA ADHESIVA TRANSPARENTE 2 in X 72 yd","UNIDAD",3.2]
[97,"710300160006","CINTA DE PAPEL PARA ENMASCARAR - MASKING TAPE 2 in X 40 yd","UNIDAD",1.77]
[98,"718500050045","CLIP DE METAL 33 mm","UNIDAD",2.3954]
[99,"718500050032","CLIP DE METAL 33 mm X 100","UNIDAD",2.3954]
[100,"718500050001","CLIP DE METAL CHICO Nº 1 X 100","UNIDAD",2.3954]
[101,"718500050030","CLIP MARIPOSA DE METAL Nº 2 X 12","UNIDAD",2.3954]
[102,"718500050004","CLIP MARIPOSA DE METAL Nº 3 X 12","UNIDAD",2.3954]
[103,"718500050017","CLIP MARIPOSA DE METAL Nº 3 X 50","UNIDAD",2.3954]
[104,"239400090220","CONO DE PLASTICO PARA ENTRENAMIENTO 30 cm","UNIDAD",3.8]
[105,"711100030005","CORRECTOR LIQUIDO TIPO LAPICERO","UNIDAD",2.5]
[106,"890400010045","CORROSPUN 1.00 m X 1.00 m","UNIDAD",8.9]
[107,"890400010045","CORROSPUN 1.00 m X 1.00 m - COLORES VARIOS","UNIDAD",8.9]
[108,"890400010151","CORROSPUN 1.00 m X 1.00 m COLOR AMARILLO","UNIDAD",8.9]
[109,"890400010152","CORROSPUN 1.00 m X 1.00 m COLOR CELESTE","UNIDAD",8.9]
[110,"890400010150","CORROSPUN 1.00 m X 1.00 m COLOR FUCSIA","UNIDAD",8.9]
[111,"890400010153","CORROSPUN 1.00 m X 1.00 m COLOR VERDE CLARO","UNIDAD",8.9]
[112,"890400010187","CORROSPUN 1.40 m X 1.80 m COLOR AMARILLO","UNIDAD",8.9]
[113,"890400010192","CORROSPUN 1.40 m X 1.80 m COLOR FUCSIA","UNIDAD",8.9]
[114,"890400010191","CORROSPUN 1.40 m X 1.80 m COLOR MARRON","UNIDAD",8.9]
[115,"890400010189","CORROSPUN 1.40 m X 1.80 m COLOR NEGRO","UNIDAD",8.9]
[116,"890400010190","CORROSPUN 1.40 m X 1.80 m COLOR ROJO","UNIDAD",8.9]
[117,"890400010186","CORROSPUN 1.40 m X 1.80 m COLOR VERDE","UNIDAD",8.9]
[118,"890400010188","CORROSPUN 1.40 m X 1.80 m COLOR VERDE CLARO","UNIDAD",8.9]
[119,"890400010163","CORROSPUN DE 1.00 m X 1.50 m","UNIDAD",8.9]
[120,"890400010082","CORROSPUN DE 1.40 m X 1.00 m","UNIDAD",8.9]
[121,"890400010067","CORROSPUN DE 70 cm X 50 cm","UNIDAD",8.9]
[122,"890400010110","CORROSPUN DE 70 cm X 50 cm COLOR ROSADO","UNIDAD",8.9]
[123,"890400010178","CORROSPUN X 1.50 m DE ANCHO","METRO",8.9]
[124,"890400010177","CORROSPUN X 1.80 m DE ANCHO","UNIDAD",8.9]
[125,"890400010165","CORROSPUN X 2.00 m DE ANCHO","METRO",8.9]
[126,"890400010074","CORROSPUN X 70 cm DE ANCHO COLOR BLANCO","METRO",8.9]
[127,"890400010174","CORROSPUN X 70 cm DE ANCHO COLOR DORADO","METRO",8.9]
[128,"890400010072","CORROSPUN X 70 cm DE ANCHO COLOR MARRON","METRO",8.9]
[129,"890400010070","CORROSPUN X 70 cm DE ANCHO COLOR NEGRO","METRO",8.9]
[130,"890400010175","CORROSPUN X 70 cm DE ANCHO COLOR PLATEADO","METRO",8.9]
[131,"890400010071","CORROSPUN X 70 cm DE ANCHO COLOR ROJO","METRO",8.9]
[132,"890400010073","CORROSPUN X 70 cm DE ANCHO COLOR VERDE","METRO",8.9]
[133,"890400010075","CORROSPUN X 70 CM DE ANCHO COLOR VERDE CLARO","METRO",8.9]
[134,"717200030014","CUADERNO CUADRICULADO TAMAÑO A4 X 100 HOJAS","UNIDAD",4.43]
[135,"717200030287","CUADERNO DOBLE ESPIRAL CUADRICULADO TAMAÑO A4 X 180 HOJAS","UNIDAD",7.25]
[136,"715000320033","CUCHILLA PARA CORTAR PAPEL 10 mm","UNIDAD",1]
[137,"133000160091","DETERGENTE GRANULADO X 3 kg","UNIDAD",35]
[138,"133000160140","DETERGENTE GRANULADO X 350 g APROX.","UNIDAD",35]
[139,"133000160124","DETERGENTE GRANULADO X 4 kg","UNIDAD",35]
[140,"133000160100","DETERGENTE GRANULADO X 4.5 kg","UNIDAD",35]
[141,"133000160086","DETERGENTE GRANULADO X 5 kg","UNIDAD",35]
[142,"767400040151","DISCO  DVD - RW 4 GB","UNIDAD",0.68]
[143,"767400040083","DISCO DVD - RW DE 4.7 GB","UNIDAD",0.68]
[144,"767400040014","DISCO DVD GRABABLE DE 4.7 GB","UNIDAD",0.68]
[145,"767400040094","DISCO DVD GRABABLE DE 4.7 GB SERIGRAFIADO","UNIDAD",0.68]
[146,"715000110041","ENGRAPADOR CHICO DE OFICINA CON YUNQUE GIRATORIO","UNIDAD",19]
[147,"135000050045","ESCOBA BAJA POLICIA DE 2 PITAS 2 ZUNCHOS","UNIDAD",7.5]
[148,"135000080025","ESCOBILLON DE CERDA PARA PISO X 30 cm","UNIDAD",6.8]
[149,"710600040024","FOLDER MANILA TAMAÑO  A4","EMPAQUE X 25",7.5]
[150,"710600060005","FORRO DE PLASTICO TAMAÑO OFICIO","UNIDAD",8.9]
[151,"710300060057","GOMA EN BARRA X 40 g APROX.","UNIDAD",8]
[152,"718500080026","GRAPA 26/6 X 5000","UNIDAD",1.85]
[153,"135000360019","GUANTE DE JEBE DE USO DOMESTICO PUÑO LARGO","PAR"]
[154,"135000360009","GUANTE DE JEBE DE USO DOMESTICO TALLA 10","PAR",8]
[155,"135000360022","GUANTE DE JEBE DE USO DOMESTICO TALLA 12","PAR",8]
[156,"135000360003","GUANTE DE JEBE DE USO DOMESTICO TALLA 6","PAR",8]
[157,"135000360007","GUANTE DE JEBE DE USO DOMESTICO TALLA 6 1/2","PAR",8]
[158,"135000360004","GUANTE DE JEBE DE USO DOMESTICO TALLA 7","PAR",8]
[159,"135000360008","GUANTE DE JEBE DE USO DOMESTICO TALLA 7 1/2","PAR",8]
[160,"135000360005","GUANTE DE JEBE DE USO DOMESTICO TALLA 8","PAR",8]
[161,"135000360006","GUANTE DE JEBE DE USO DOMESTICO TALLA 8 1/2","PAR",8]
[162,"135000360002","GUANTE DE JEBE DE USO DOMESTICO TALLA 9","PAR",8]
[163,"135000360001","GUANTE DE JEBE DE USO DOMESTICO TALLA 9 1/2","PAR",8]
[164,"135000360015","GUANTE DE JEBE DE USO DOMESTICO TALLA L","PAR",8]
[165,"135000360029","GUANTE DE JEBE DE USO DOMESTICO TALLA L X 10","PAR",8]
[166,"135000360011","GUANTE DE JEBE DE USO SEMI INDUSTRIAL TALLA 6","PAR",8]
[167,"135000360013","GUANTE DE JEBE DE USO SEMI INDUSTRIAL TALLA 7 1/2","PAR",8]
[168,"139200100117","JABON CARBOLICO EN BARRA X 200 g","UNIDAD",1]
[169,"235200040014","JUEGO DE AJEDREZ","UNIDAD",15]
[170,"133000220009","KRESO X 1 L","UNIDAD",3.5]
[171,"716000040070","LAPIZ GRAFITO Nº 2","UNIDAD",0.59]
[172,"717200140152","LIBRO DE ACTAS EMPASTADO RAYADO TAMAÑO A4 X 100 HOJAS","UNIDAD",9.9]
[173,"133000270008","LIMPIA VIDRIO EN SPRAY X 1L","UNIDAD",6]
[174,"767500590004","MEMORIA PORTATIL USB DE 8 GB","UNIDAD",20]
[175,"135000180056","MOPA DE ALGODON LIMPIA VIDRIOS DE 100 cm","UNIDAD",8]
[176,"135000180058","MOPA DE ALGODON LIMPIA VIDRIOS DE 25 cm","UNIDAD",8]
[177,"135000180057","MOPA DE ALGODON LIMPIA VIDRIOS DE 60 cm","UNIDAD",8]
[178,"715000440001","MOTA PARA PIZARRA ACRILICA","UNIDAD",3]
[179,"239400050007","NET PARA VOLEY","UNIDAD",54]
[180,"717200050227","PAPEL BOND 75 g  TAMAÑO A4","EMPAQUE X 500",10.33]
[181,"717200050413","PAPEL BOND 75 g TAMAÑO A4 DE COLORES","EMPAQUE X 500",30]
[182,"717200290118","PAPEL COMETA","UNIDAD",0.5]
[183,"717200180040","PAPEL CREPE 50 cm X 1.60 m","UNIDAD",0.5]
[184,"717200180039","PAPEL CREPE 50 cm X 1.60 m COLORES VARIADOS","DECENA",3.5]
[185,"717200180041","PAPEL CREPE 50 cm X 1.80 cm X 10 PLIEGOS","UNIDAD",0.5]
[186,"717200180058","PAPEL CREPE 50 cm X 1.80 m  COLOR AMARILLO","DECENA",3.5]
[187,"717200180054","PAPEL CREPE 50 cm X 1.80 m  COLOR BLANCO","DECENA",3.5]
[188,"717200180061","PAPEL CREPE 50 cm X 1.80 m  COLOR FUCSIA","DECENA",3.5]
[189,"717200180062","PAPEL CREPE 50 cm X 1.80 m  COLOR GUINDA","DECENA",3.5]
[190,"717200180068","PAPEL CREPE 50 cm X 1.80 m  COLOR MORADO","DECENA",3.5]
[191,"717200180057","PAPEL CREPE 50 cm X 1.80 m  COLOR ROJO","DECENA",3.5]
[192,"717200180056","PAPEL CREPE 50 cm X 1.80 m  COLOR VERDE","DECENA",3.5]
[193,"717200180053","PAPEL CREPE 50 cm X 1.80 m COLOR  CELESTE","DECENA",3.5]
[194,"717200180064","PAPEL CREPE 50 cm X 1.80 m COLOR ANARANJADO","DECENA",3.5]
[195,"717200180067","PAPEL CREPE 50 cm X 1.80 m COLOR DORADO","DECENA",3.5]
[196,"717200180065","PAPEL CREPE 50 cm X 1.80 m COLOR LILA","DECENA",3.5]
[197,"717200180060","PAPEL CREPE 50 cm X 1.80 m COLOR MARRON","DECENA",3.5]
[198,"717200180038","PAPEL CREPE 50 cm X 1.80 m COLOR MELÓN","UNIDAD",0.5]
[199,"717200180037","PAPEL CREPE 50 cm X 1.80 m COLOR MORADO","UNIDAD",0.5]
[200,"717200180063","PAPEL CREPE 50 cm X 1.80 m COLOR NEGRO","DECENA",3.5]
[201,"717200180066","PAPEL CREPE 50 cm X 1.80 m COLOR PLATEADO","DECENA",3.5]
[202,"717200180059","PAPEL CREPE 50 cm X 1.80 m COLOR ROSADO","DECENA",3.5]
[203,"717200180020","PAPEL CREPE 50 cm X 2.00 m","UNIDAD",0.5]
[204,"717200180048","PAPEL CREPE 50 cm X 2.00 m  COLOR AMARILLO","DECENA",3.5]
[205,"717200180049","PAPEL CREPE 50 cm X 2.00 m  COLOR AZUL","DECENA",3.5]
[206,"717200180044","PAPEL CREPE 50 cm X 2.00 m  COLOR FUCSIA","DECENA",3.5]
[207,"717200180047","PAPEL CREPE 50 cm X 2.00 m  COLOR ROJO","DECENA",3.5]
[208,"717200180046","PAPEL CREPE 50 cm X 2.00 m  COLOR VERDE","DECENA",3.5]
[209,"717200180045","PAPEL CREPE 50 cm X 2.00 m COLOR ANARANJADO","DECENA",3.5]
[210,"717200180042","PAPEL CREPE 50 cm X 2.00 m COLOR BLANCO","DECENA",3.5]
[211,"717200180043","PAPEL CREPE 50 cm X 2.00 m COLOR CELESTE","DECENA",3.5]
[212,"717200180050","PAPEL CREPE 50 cm X 2.00 m COLOR FUCSIA","UNIDAD",0.5]
[213,"717200180017","PAPEL CREPE DE 1.80 m X 50 cm","UNIDAD",0.5]
[214,"717200180013","PAPEL CREPE DE 1.80 m X 50 cm COLOR AZUL","UNIDAD",0.5]
[215,"717200180019","PAPEL CREPE DE 1.80 m X 50 cm COLOR BLANCO","UNIDAD",0.5]
[216,"717200180018","PAPEL CREPE DE 1.80 m X 50 cm COLOR CELESTE","UNIDAD",0.5]
[217,"717200180012","PAPEL CREPE DE 1.80 m X 50 cm COLOR ROJO","UNIDAD",0.5]
[218,"717200180015","PAPEL CREPE DE 1.80 m X 50 cm COLOR VERDE","UNIDAD",0.5]
[219,"717200180052","PAPEL CREPE METALIZADO 50 cm X 2.00 cm","UNIDAD",0.5]
[220,"717200150015","PAPEL CUADRICULADO 8 OFICIOS","UNIDAD",0.23]
[221,"717200170106","PAPEL LUSTRE 48 cm X 64 cm COLOR ANARANJADO","UNIDAD",0.46]
[222,"717200170110","PAPEL LUSTRE 48 cm X 64 cm COLOR AZUL","UNIDAD",0.46]
[223,"717200170107","PAPEL LUSTRE 48 cm X 64 cm COLOR CELESTE","UNIDAD",0.46]
[224,"717200170109","PAPEL LUSTRE 48 cm X 64 cm COLOR FUCSIA","UNIDAD",0.46]
[225,"717200170111","PAPEL LUSTRE 48 cm X 64 cm COLOR LILA","UNIDAD",0.46]
[226,"717200170133","PAPEL LUSTRE 48 cm X 64 cm COLOR RAL 1028","UNIDAD",0.46]
[227,"717200170131","PAPEL LUSTRE 48 cm X 64 cm COLOR RAL 3005","UNIDAD",0.46]
[228,"717200170130","PAPEL LUSTRE 48 cm X 64 cm COLOR RAL 4012","UNIDAD",0.46]
[229,"717200170132","PAPEL LUSTRE 48 cm X 64 cm COLOR RAL 8002","UNIDAD",0.46]
[230,"717200170108","PAPEL LUSTRE 48 cm X 64 cm COLOR ROSADO","UNIDAD",0.46]
[231,"717200170105","PAPEL LUSTRE 48 cm X 64 cm COLOR VERDE CLARO","UNIDAD",0.46]
[232,"717200170088","PAPEL LUSTRE 50 cm X 70 cm COLOR BLANCO","UNIDAD",0.46]
[233,"717200170089","PAPEL LUSTRE 50 cm X 70 cm COLOR MARRON","UNIDAD",0.46]
[234,"717200170090","PAPEL LUSTRE 50 cm X 70 cm COLOR ROSADO","UNIDAD",0.46]
[235,"717200170097","PAPEL LUSTRE 50 cm X 75 cm DE COLORES","UNIDAD",0.46]
[236,"717200170134","PAPEL LUSTRE 64 cm X 78 cm COLOR AMARILLO","UNIDAD",0.46]
[237,"717200170140","PAPEL LUSTRE 64 cm X 78 cm COLOR AZUL","UNIDAD",0.46]
[238,"717200170136","PAPEL LUSTRE 64 cm X 78 cm COLOR CELESTE","UNIDAD",0.46]
[239,"717200170135","PAPEL LUSTRE 64 cm X 78 cm COLOR NARANJA","UNIDAD",0.46]
[240,"717200170139","PAPEL LUSTRE 64 cm X 78 cm COLOR ROJO","UNIDAD",0.46]
[241,"717200170138","PAPEL LUSTRE 64 cm X 78 cm COLOR ROSADO","UNIDAD",0.46]
[242,"717200170137","PAPEL LUSTRE 64 cm X 78 cm COLOR VERDE","UNIDAD",0.46]
[243,"717200170087","PAPEL LUSTRE 70 cm X 50 cm COLOR ANARANJADO","UNIDAD",0.46]
[244,"717200170092","PAPEL LUSTRE DE 32 cm X 47 cm BLOCK X 30","UNIDAD",0.46]
[245,"717200170104","PAPEL LUSTRE DE 48 cm X 64 cm","UNIDAD",0.46]
[246,"717200170098","PAPEL LUSTRE DE 48 cm X 64 cm COLOR AMARILLO","UNIDAD",0.46]
[247,"717200170099","PAPEL LUSTRE DE 48 cm X 64 cm COLOR NEGRO","UNIDAD",0.46]
[248,"717200170100","PAPEL LUSTRE DE 48 cm X 64 cm COLOR ROJO","UNIDAD",0.46]
[249,"717200170101","PAPEL LUSTRE DE 48 cm X 64 cm COLOR TURQUESA","UNIDAD",0.46]
[250,"717200170102","PAPEL LUSTRE DE 48 cm X 64 cm COLOR VERDE","UNIDAD",0.46]
[251,"717200170103","PAPEL LUSTRE DE 48 cm X 64 cm COLOR VERDE LIMON","UNIDAD",0.46]
[252,"717200170036","PAPEL LUSTRE DE 50 cm X 65 cm COLOR AMARILLO","UNIDAD",0.46]
[253,"717200170035","PAPEL LUSTRE DE 50 cm X 65 cm COLOR AZUL","UNIDAD",0.46]
[254,"717200170040","PAPEL LUSTRE DE 50 cm X 65 cm COLOR CELESTE","UNIDAD",0.46]
[255,"717200170096","PAPEL LUSTRE DE 50 cm X 65 cm COLOR LIMON","UNIDAD",0.46]
[256,"717200170042","PAPEL LUSTRE DE 50 cm X 65 cm COLOR NARANJA","UNIDAD",0.46]
[257,"717200170095","PAPEL LUSTRE DE 50 cm X 65 cm COLOR NILO","UNIDAD",0.46]
[258,"717200170034","PAPEL LUSTRE DE 50 cm X 65 cm COLOR ROJO","UNIDAD",0.46]
[259,"717200170037","PAPEL LUSTRE DE 50 cm X 65 cm COLOR VERDE","UNIDAD",0.46]
[260,"717200170094","PAPEL LUSTRE DE 50 cm X 65 cm DE COLORES","UNIDAD",0.46]
[261,"717200170093","PAPEL LUSTRE DE 50 cm X 70 cm DE COLORES","UNIDAD",0.46]
[262,"717200170026","PAPEL LUSTRE DE 60 cm X 50 cm COLOR AMARILLO","UNIDAD",0.46]
[263,"717200170027","PAPEL LUSTRE DE 60 cm X 50 cm COLOR AZUL","UNIDAD",0.46]
[264,"717200170055","PAPEL LUSTRE DE 60 cm X 50 cm COLOR CELESTE","UNIDAD",0.46]
[265,"717200170091","PAPEL LUSTRE DE 60 cm X 50 cm COLOR CORAL","UNIDAD",0.46]
[266,"717200170058","PAPEL LUSTRE DE 60 cm X 50 cm COLOR FUCSIA","UNIDAD",0.46]
[267,"717200170063","PAPEL LUSTRE DE 60 cm X 50 cm COLOR GUINDA","UNIDAD",0.46]
[268,"717200170060","PAPEL LUSTRE DE 60 cm X 50 cm COLOR LILA","UNIDAD",0.46]
[269,"717200170059","PAPEL LUSTRE DE 60 cm X 50 cm COLOR MARRON","UNIDAD",0.46]
[270,"717200170076","PAPEL LUSTRE DE 60 cm X 50 cm COLOR MELON","UNIDAD",0.46]
[271,"717200170062","PAPEL LUSTRE DE 60 cm X 50 cm COLOR MORADO","UNIDAD",0.46]
[272,"717200170057","PAPEL LUSTRE DE 60 cm X 50 cm COLOR NARANJA","UNIDAD",0.46]
[273,"717200170086","PAPEL LUSTRE DE 70 cm X 50 cm COLOR CELESTE","UNIDAD",0.46]
[274,"717200290247","PAPEL MICROCÁPSULA PARA ELABORACION DE RELIEVE TAMAÑO A4","UNIDAD",0.46]
[275,"717200290290","PAPEL PARA MAQUINA TERMOCONFORMADO PARA REPRODUCIR EN BRAILLE 35.2 cm X 47.4 cm","UNIDAD",0.46]
[276,"717200290248","PAPEL PARA MAQUINA TERMOCONFORMADO PARA REPRODUCIR EN BRAILLE TAMAÑO A4","UNIDAD",0.46]
[277,"717200290221","PAPEL SEDA 50 cm X  65 cm","UNIDAD",0.46]
[278,"717200290276","PAPEL SEDA DE 50 cm X 70 cm","UNIDAD",0.46]
[279,"717200290158","PAPEL SEDA DE 55 cm X 40 cm DE COLOR","UNIDAD",0.46]
[280,"717200290135","PAPEL SEDA DE 76.00 cm X 52.50 cm COLOR AMARILLO","UNIDAD",0.46]
[281,"717200290107","PAPEL SEDA DE 76.00 cm X 52.50 cm COLOR BLANCO","UNIDAD",0.46]
[282,"717200290133","PAPEL SEDA DE 76.00 cm X 52.50 cm COLOR FUCSIA","UNIDAD",0.46]
[283,"717200290136","PAPEL SEDA DE 76.00 cm X 52.50 cm COLOR NARANJA","UNIDAD",0.46]
[284,"717200290134","PAPEL SEDA DE 76.00 cm X 52.50 cm COLOR VERDE","UNIDAD",0.46]
[285,"717200260012","PAPELOGRAFO 56 g DE 86 cm X 61 cm","UNIDAD",0.46]
[286,"717200260001","PAPELOGRAFO 60 g DE 86 cm X 61 cm","UNIDAD",0.46]
[287,"717200260045","PAPELOGRAFO 75 g DE 62 cm X 86 cm","UNIDAD",0.46]
[288,"717200260033","PAPELOGRAFO BLANCO 56 g DE 61cm X 86 cm","UNIDAD",0.46]
[289,"717200260046","PAPELOGRAFO BLANCO 75 g DE 61cm X 86 cm","UNIDAD",0.46]
[290,"717200260027","PAPELOGRAFO CUADRICULADO (1 cm APROX.) 56 g DE 86 cm X 61 cm","UNIDAD",0.46]
[291,"717200260028","PAPELOGRAFO CUADRICULADO (2 cm APROX.) 56 g DE 86 cm X 61 cm","UNIDAD",0.46]
[292,"717200260029","PAPELOGRAFO CUADRICULADO (3 cm APROX.) 56 g DE 86 cm X 61 cm","UNIDAD",0.46]
[293,"717200260047","PAPELOGRAFO CUADRICULADO 56 g DE 61 cm X 86 cm","UNIDAD",0.46]
[294,"717200260023","PAPELOGRAFO CUADRICULADO 56 g DE 86 cm X 61 cm","UNIDAD",0.46]
[295,"717200260044","PAPELOGRAFO CUADRICULADO 75 g DE 61 cm X 86 cm","UNIDAD",0.46]
[296,"717200260048","PAPELÓGRAFO RAYADO 56 g 61 cm X 86 cm","UNIDAD",0.46]
[297,"717200260013","PAPELOGRAFO RAYADO 60 g DE 61 cm X 86 cm","UNIDAD",0.46]
[298,"239400060013","PELOTA DE BASQUETBOL Nº 5","UNIDAD",39]
[299,"239400060015","PELOTA DE FUTBOL N° 5","UNIDAD",49]
[300,"239400060034","PELOTA DE FUTSAL Nº 3.5","UNIDAD",52]
[301,"239400060067","PELOTA DE GOMA DE VOLEIBOL","UNIDAD",39]
[302,"239400060042","PELOTA DE GOMA PARA BASQUETBOL N° 07","UNIDAD",45]
[303,"715000120010","PERFORADOR DE 2 ESPIGAS PARA 15 A 20 HOJAS","UNIDAD",7.7880000000000003]
[304,"746473050001","PIZARRA ACRILICA","UNIDAD",150]
[305,"716000060415","PLUMON MARCADOR DE TINTA AL AGUA PUNTA GRUESA COLOR AZUL - PARA PAPEL","UNIDAD",2.5]
[306,"716000060413","PLUMON MARCADOR DE TINTA AL AGUA PUNTA GRUESA COLOR NEGRO - PARA PAPEL","UNIDAD",2.5]
[307,"716000060414","PLUMON MARCADOR DE TINTA AL AGUA PUNTA GRUESA COLOR ROJO - PARA PAPEL","UNIDAD",2.5]
[308,"716000060540","PLUMON PARA PIZARRA ACRILICA PUNTA GRUESA RECARGABLE COLOR AZUL","UNIDAD",3.5]
[309,"716000060542","PLUMON PARA PIZARRA ACRILICA PUNTA GRUESA RECARGABLE COLOR NEGRO","UNIDAD",3.5]
[310,"716000060541","PLUMON PARA PIZARRA ACRILICA PUNTA GRUESA RECARGABLE COLOR ROJO","UNIDAD",3.5]
[311,"716000060443","PLUMON RESALTADOR PUNTA GRUESA BISELADA COLOR AMARILLO","UNIDAD",2.5]
[312,"716000060445","PLUMON RESALTADOR PUNTA GRUESA BISELADA VERDE","UNIDAD",2.5]
[313,"715000140018","PORTA LAPICERO ACRILICO TIPO CUBO","UNIDAD",2.1358000000000001]
[314,"135000130003","RECOGEDOR DE METAL TAMAÑO GRANDE","UNIDAD",8.5]
[315,"135000130004","RECOGEDOR DE METAL TAMAÑO MEDIANO","UNIDAD",8.5]
[316,"135000130012","RECOGEDOR DE PLASTICO CON JALADOR","UNIDAD",8.5]
[317,"135000130020","RECOGEDOR DE PLASTICO DE 30 cm","UNIDAD",8.5]
[318,"135000130018","RECOGEDOR DE PLASTICO DE MANO","UNIDAD",8.5]
[319,"135000130006","RECOGEDOR DE PLASTICO TAMAÑO GRANDE","UNIDAD",8.5]
[320,"135000130007","RECOGEDOR DE PLASTICO TAMAÑO MEDIANO","UNIDAD",8.5]
[321,"715000190001","REGLA DE PLASTICO 30 cm","UNIDAD",0.9]
[322,"870100010001","SERVICIO DE AGUA POTABLE","SERVICIO",0]
[323,"870100020003","SERVICIO DE ENERGIA ELECTRICA","SERVICIO",0]
[324,"710600100234","SOBRE MANILA TAMAÑO  A4","EMPAQUE X 50",8.673]
[325,"718500100017","SUJETADOR PARA PAPEL (TIPO FASTENER) DE METAL","EMPAQUE X 50",3.5]
[326,"646100030027","TACHO DE PLÁSTICO TIPO SANSON 100 L APROX.","UNIDAD",59.98]
[327,"646100030240","TACHO DE POLIETILENO PARA RECICLAJE DE BASURA 16 L APROX.","UNIDAD",18.5]
[328,"716000090064","TAMPON CON CUBIERTA DE PLASTICO 12.5 cm X 9.5 cm APROX. COLOR AZUL","UNIDAD",2.5]
[329,"716000090066","TAMPON CON CUBIERTA DE PLASTICO 12.5 cm X 9.5 cm APROX. COLOR NEGRO","UNIDAD",2.5]
[330,"895700081005","TELA FRANELA 1.00 m X 1.50 m","UNIDAD",5.5]
[331,"715000230050","TIJERA DE METAL DE 5 in CON PUNTA ROMA Y MANGO DE PLASTICO","UNIDAD",1.95]
[332,"716000260013","TINTA PARA PLUMON DE PIZARRA ACRILICA X 27.5 mL COLOR AZUL","UNIDAD",8]
[333,"716000260015","TINTA PARA PLUMON DE PIZARRA ACRILICA X 27.5 mL COLOR NEGRO","UNIDAD",8]
[334,"716000260014","TINTA PARA PLUMON DE PIZARRA ACRILICA X 27.5 mL COLOR ROJO","UNIDAD",8]
[335,"716000160014","TINTA PARA TAMPON X 30 mL APROX. COLOR AZUL","UNIDAD",1.25]
[336,"716000160015","TINTA PARA TAMPON X 30 mL APROX. COLOR NEGRO","UNIDAD",1.25]
[337,"135000180103","TRAPEADOR COMPLETO DE MOPA MANGO DE MADERA 29 cm X 1.29 m","UNIDAD",16]
[338,"135000180080","TRAPEADOR COMPLETO DE MOPA MANGO DE MADERA 30 cm X 1.55 m","UNIDAD",16]
[339,"135000180090","TRAPEADOR COMPLETO DE MOPA MANGO DE MADERA 32 cm X 1.30 m","UNIDAD",16]
[340,"135000180046","TRAPEADOR DE HILO CON MANGO DE MADERA","UNIDAD",16]
[341,"135000180073","TRAPEADOR DE YUTE 40 cm X 60 cm","UNIDAD",16]
[342,"135000180089","TRAPEADOR DE YUTE 50 cm X 80 cm","UNIDAD",16]
[343,"135000180092","TRAPEADOR DE YUTE 60 cm X 60 cm","UNIDAD",16]
[344,"135000180096","TRAPEADOR MICROFIBRA 40 cm X 60 cm","UNIDAD",16]
[345,"135000180054","TRAPEADOR MOPA DE ALGODON DE 30 cm","UNIDAD",16]
[346,"135000180041","TRAPEADOR MOPA DE PABILO DE 30 cm","UNIDAD",16]
[347,"135000180042","TRAPEADOR MOPA DE PABILO DE 50 cm","UNIDAD",16]
[348,"135000180067","TRAPEADOR MOPA DE PABILO DE 80 cm","UNIDAD",16]

{"sheet":"LISTADO IIEE","index":4,"n_rows":896,"n_cols":13,"rows_kept":896,"cut":false,"hidden":true,"merged":[]}
["N°","Distrito","Centro Poblado","Cód. Mod.","Nombre de IE","Nivel","Modalidad","Tipo IE","Total  de estudiantes matriculados (*)",null,"area","servicio de energia "]
[1,"Mañazo",null,"1360122","CEBA - MAÑAZO","Básica Alternativa - Avanzado",null,"Pública - Sector Educación",53,{"$f":"+B2","v":"Mañazo"},"Urbana",{"$f":"+IF(K2=\"Rural\",I2*2*12,IF(K2=\"Rural 1\",I2*3.5*12,IF(K2=\"Rural 2\",I2*3*12,IF(K2=\"Rural 3\",I2*2.5*12,IF(K2=\"Urbana\",I2*1.6*12,IF(K2=\"Urbana 1\",I2*1.3*12,0))))))","v":1017.6000000000001},{"$f":"+A2","v":1}]
[2,"Puno",null,"1360155","CEBA - 32","Básica Alternativa - Avanzado",null,"Pública - Sector Educación",128,"Puno","Urbana",2457.6000000000004,2]
[3,"Puno",null,"1360130","CEBA - 45 EMILIO ROMERO PADILLA","Básica Alternativa - Avanzado",null,"Pública - Sector Educación",78,"Puno","Urbana",1497.6000000000001,3]
[4,"Puno",null,"1024355","CEBA - 70025 INDEPENDENCIA NACIONAL","Básica Alternativa - Avanzado",null,"Pública - Sector Educación",58,"Puno","Urbana",1113.6000000000001,4]
[5,"Puno",null,"0239632","CEBA - 71013 GLORIOSO SAN CARLOS","Básica Alternativa - Avanzado",null,"Pública - Sector Educación",170,"Puno","Urbana",3264,{"$f":"+A6","v":5}]
[6,"Puno",null,"1564590","CEBA - APLICACION PEDAGOGICO PUNO","Básica Alternativa - Avanzado",null,"Pública - Sector Educación",0,"Puno","Urbana",0,6]
[7,"Puno",null,"1724855","CEBA - GUE SAN CARLOS","Básica Alternativa - Avanzado",null,"Pública - Sector Educación",208,"Puno","Urbana",3993.6000000000004,7]
[8,"Puno",null,"1360148","CEBA - JOSE ANTONIO ENCINAS","Básica Alternativa - Avanzado",null,"Pública - Sector Educación",155,"Puno","Urbana",2976,8]
[9,"Puno",null,"1024314","CEBA - SANTA ROSA","Básica Alternativa - Avanzado",null,"Pública - Sector Educación",79,"Puno","Urbana",1516.8000000000002,9]
[10,"Puno",null,"1331883","CEBA - VILLA DEL LAGO","Básica Alternativa - Avanzado",null,"Pública - Sector Educación",129,"Puno","Urbana",2476.8000000000002,10]
[11,"Puno",null,"1702331","CEBA - VIRGEN DE LA ASUNCION","Básica Alternativa - Avanzado",null,"Pública - Sector Educación",43,"Puno","Urbana",825.59999999999991,11]
[12,"Puno",null,"1025741","CEBA - 70025 INDEPENDENCIA NACIONAL","Básica Alternativa - Inicial e Intermedio",null,"Pública - Sector Educación",12,"Puno","Urbana",230.40000000000003,12]
[13,"Puno",null,"0240523","CEBA - 71013 GLORIOSO SAN CARLOS","Básica Alternativa - Inicial e Intermedio",null,"Pública - Sector Educación",42,"Puno","Urbana",806.40000000000009,13]
[14,"Puno",null,"0240408","CEBA - GUE SAN CARLOS","Básica Alternativa - Inicial e Intermedio",null,"Pública - Sector Educación",0,"Puno","Urbana",0,14]
[15,"Puno",null,"1024397","CEBA - JOSE ANTONIO ENCINAS","Básica Alternativa - Inicial e Intermedio",null,"Pública - Sector Educación",null,"Puno","Urbana",0,15]
[16,"Puno",null,"1764067","CEBA - VIRGEN DE LA ASUNCION","Básica Alternativa - Inicial e Intermedio",null,"Pública - Sector Educación",null,"Puno","Urbana",0,16]
[1,"ACORA","SACUYO","0229641","204","Inicial","Educación Básica Regular      ","A1  - Pública - Sector Educación                                  ",10,"ACORA","Rural 2",360,1]
[2,"ACORA","SOCCA","0539254","258","Inicial","Educación Básica Regular      ","A1  - Pública - Sector Educación                                  ",23,"ACORA","Rural 2",828,2]
[3,"ACORA","JAYU JAYU","0799437","312","Inicial","Educación Básica Regular      ","A1  - Pública - Sector Educación                                  ",15,"ACORA","Rural 3",450,3]
[4,"ACORA","JILATAMARCA","1414721","396","Inicial","Educación Básica Regular      ","A1  - Pública - Sector Educación                                  ",3,"ACORA","Rural 1",126,4]
[5,"ACORA","CULTA","1470939","1193","Inicial","Educación Básica Regular      ","A1  - Pública - Sector Educación                                  ",20,"ACORA","Rural 3",600,5]
[6,"ACORA","THUNUHUAYA","1556463","1206","Inicial","Educación Básica Regular      ","A1  - Pública - Sector Educación                                  ",11,"ACORA","Rural 2",396,6]
[7,"ACORA","QUELCA","1569714","1212","Inicial","Educación Básica Regular      ","A1  - Pública - Sector Educación                                  ",12,"ACORA","Rural 2",432,7]
[8,"ACORA","PIRCO","1621184","1238","Inicial","Educación Básica Regular      ","A1  - Pública - Sector Educación                                  ",4,"ACORA","Rural 1",168,8]
[9,"ACORA","AGUAS CALIENTES","1621408","1260","Inicial","Educación Básica Regular      ","A1  - Pública - Sector Educación                                  ",7,"ACORA","Rural 1",294,9]
[10,"ACORA","CIUDAD NUEVA","1662394","1308","Inicial","Educación Básica Regular      ","A1  - Pública - Sector Educación                                  ",6,"ACORA","Rural 3",180,10]
[11,"ACORA","ISCACHURO","1710672","70085","Inicial","Educación Básica Regular      ","A1  - Pública - Sector Educación                                  ",5,"ACORA","Rural 2",180,11]
[12,"ACORA","ISCATA","1710664","70158","Inicial","Educación Básica Regular      ","A1  - Pública - Sector Educación                                  ",11,"ACORA","Rural 2",396,12]
[13,"ACORA","CHANCACHI","1470962","1189 LA MERCED","Inicial","Educación Básica Regular      ","A1  - Pública - Sector Educación                                  ",10,"ACORA","Rural 2",360,13]
[14,"ACORA","AYRUMAS CARUMAS","1470871","1194 JEAN PIAGET","Inicial","Educación Básica Regular      ","A1  - Pública - Sector Educación                                  ",12,"ACORA","Rural 1",504,14]
[15,"ACORA","CHALLOCOLLO","1470913","1195 NUEVO PARAISO","Inicial","Educación Básica Regular      ","A1  - Pública - Sector Educación                                  ",5,"ACORA","Rural 3",150,15]
[16,"ACORA","CUSINI","1470947","1198 NIÑO JESUS DE PRAGA","Inicial","Educación Básica Regular      ","A1  - Pública - Sector Educación                                  ",7,"ACORA","Rural 2",252,16]
[17,"ACORA","MOLLOCO","1556380","1213 RAYITOS DE LUZ","Inicial","Educación Básica Regular      ","A1  - Pública - Sector Educación                                  ",5,"ACORA","Rural 3",150,17]
[18,"ACORA","CUCHO ESQUEÑA","1556331","1214 MI DIVINO NIÑO","Inicial","Educación Básica Regular      ","A1  - Pública - Sector Educación                                  ",8,"ACORA","Rural 3",240,18]
[19,"ACORA","CARITAMAYA","1556307","1216 SAN SANTIAGO DE CARITAMAYA","Inicial","Educación Básica Regular      ","A1  - Pública - Sector Educación                                  ",11,"ACORA","Rural 3",330,19]
[20,"ACORA","JACHA HUINCHOCA","1556349","1217 ARCO IRIS DE LA SABIDURIA","Inicial","Educación Básica Regular      ","A1  - Pública - Sector Educación                                  ",17,"ACORA","Rural 3",510,20]
[21,"ACORA","CAPALLA","1569698","1229 LOS PEQUEÑOS GENIOS","Inicial","Educación Básica Regular      ","A1  - Pública - Sector Educación                                  ",6,"ACORA","Rural 3",180,21]
[22,"ACORA","SANTA ROSA DE YANAQUE","1569722","1230 SANTA ROSA","Inicial","Educación Básica Regular      ","A1  - Pública - Sector Educación                                  ",7,"ACORA","Rural 2",252,22]
[23,"ACORA","TOTORANI","1621176","1237 VIRGEN DEL ROSARIO","Inicial","Educación Básica Regular      ","A1  - Pública - Sector Educación                                  ",10,"ACORA","Rural 2",360,23]
[24,"ACORA","COLLINI","1621218","1241 DIVINA MISERICORDIA","Inicial","Educación Básica Regular      ","A1  - Pública - Sector Educación                                  ",12,"ACORA","Rural 3",360,24]
[25,"ACORA","THUNCO","1621291","1249 SAN ANTONIO DE THUNCO","Inicial","Educación Básica Regular      ","A1  - Pública - Sector Educación                                  ",10,"ACORA","Rural 3",300,25]
[26,"ACORA","AMPARANI","1621358","1255 SANTA TERESITA DEL NIÑO JESUS","Inicial","Educación Básica Regular      ","A1  - Pública - Sector Educación                                  ",21,"ACORA","Rural 2",756,26]
[27,"ACORA","CHAJANA","1621382","1258 EMILIA BARCIA BONIFFATTI","Inicial","Educación Básica Regular      ","A1  - Pública - Sector Educación                                  ",8,"ACORA","Rural 1",336,27]
[28,"ACORA","PARAPICHUZA","1621523","1272 PASITOS MAGICOS","Inicial","Educación Básica Regular      ","A1  - Pública - Sector Educación                                  ",4,"ACORA","Rural 1",168,28]
[29,"ACORA","TUNQUIPA","1621648","1282 LOS AMIGUITOS DE CORAZON DE JESUS","Inicial","Educación Básica Regular      ","A1  - Pública - Sector Educación                                  ",6,"ACORA","Rural 2",216,29]
[30,"ACORA","HUARCANTINQUIHUI","1621655","1283 SEÑOR DE HUANCA","Inicial","Educación Básica Regular      ","A1  - Pública - Sector Educación                                  ",8,"ACORA","Rural 2",288,30]
[31,"ACORA","IMATA","1621663","1284 MARIA MONTESSORI","Inicial","Educación Básica Regular      ","A1  - Pública - Sector Educación                                  ",10,"ACORA","Rural 1",420,31]
[32,"ACORA","JACHACACHI","1621671","1285 NIÑO JESUS DE JACHACACHI","Inicial","Educación Básica Regular      ","A1  - Pública - Sector Educación                                  ",8,"ACORA","Rural 2",288,32]
[33,"ACORA","CCACCALLACA","1623628","1291 CORAZON DE JESUS","Inicial","Educación Básica Regular      ","A1  - Pública - Sector Educación                                  ",7,"ACORA","Rural 3",210,33]
[34,"ACORA","COCOSANI","1654946","1297 VIRGENCITA DE LA ASUNCION","Inicial","Educación Básica Regular      ","A1  - Pública - Sector Educación                                  ",7,"ACORA","Rural 2",252,34]
[35,"ACORA","CCOPAMAYA","1654953","1298 CAPULLITOS DE CANTUTA","Inicial","Educación Básica Regular      ","A1  - Pública - Sector Educación                                  ",10,"ACORA","Rural 2",360,35]
[36,"ACORA","ISCAHUINCHOCA","1654961","1299 LOS ANGELITOS","Inicial","Educación Básica Regular      ","A1  - Pública - Sector Educación                                  ",13,"ACORA","Rural 2",468,36]
[37,"ACORA","QUENAFAJA","1655042","1307 SEMILLITAS DEL MAÑANA","Inicial","Educación Básica Regular      ","A1  - Pública - Sector Educación                                  ",8,"ACORA","Rural 3",240,37]
[38,"ACORA","ACORA","0229542","194 CORAZON DE JESUS","Inicial","Educación Básica Regular      ","A1  - Pública - Sector Educación                                  ",117,"ACORA","Urbana",2246.4,38]
[39,"ACORA","CCACCA","1746254","CCACCA","Inicial","Educación Básica Regular      ","A1  - Pública - Sector Educación                                  ",9,"ACORA","Rural 2",324,39]
[40,"ACORA","HUAÑASCURO","1679323","HUAÑUSCURO","Inicial","Educación Básica Regular      ","A1  - Pública - Sector Educación                                  ",9,"ACORA","Rural 3",270,40]
[41,"AMANTANI","TAQUILE","1025352","291","Inicial","Educación Básica Regular      ","A1  - Pública - Sector Educación                                  ",50,"AMANTANI","Rural 1",2100,41]
[42,"AMANTANI","AMANTANI","1470996","1196 LOS ANGELES DE SANTA ROSA","Inicial","Educación Básica Regular      ","A1  - Pública - Sector Educación                                  ",13,"AMANTANI","Rural 2",468,42]
[43,"AMANTANI","AMANTANI","1470954","1197 SOR ANA DE LOS ANGELES","Inicial","Educación Básica Regular      ","A1  - Pública - Sector Educación                                  ",10,"AMANTANI","Rural 2",360,43]
[44,"AMANTANI","OCCOSUYO","1621192","1239 DIVINO NIÑO","Inicial","Educación Básica Regular      ","A1  - Pública - Sector Educación                                  ",15,"AMANTANI","Rural 1",630,44]
[45,"AMANTANI","SAN CAYANO / SANCAYUNE","1621317","1251 LUZ DEL SABER","Inicial","Educación Básica Regular      ","A1  - Pública - Sector Educación                                  ",11,"AMANTANI","Rural 1",462,45]
[46,"AMANTANI","VILLA ORINOJON","1621481","1268 KANTUTAS DE VILLA","Inicial","Educación Básica Regular      ","A1  - Pública - Sector Educación                                  ",6,"AMANTANI","Rural 1",252,46]
[47,"AMANTANI","INCATIANA","1621531","1273 SEMILLITAS DE ESPERANZA","Inicial","Educación Básica Regular      ","A1  - Pública - Sector Educación                                  ",17,"AMANTANI","Rural 1",714,47]
[48,"ATUNCOLLA","ATUNCOLLA","1023209","293","Inicial","Educación Básica Regular      ","A1  - Pública - Sector Educación                                  ",20,"ATUNCOLLA","Rural 2",720,48]
[49,"ATUNCOLLA","LLUNGO","1621283","1248","Inicial","Educación Básica Regular      ","A1  - Pública - Sector Educación                                  ",37,{"$f":"+B66","v":"ATUNCOLLA"},"Rural 2",{"$f":"+IF(K66=\"Rural\",I66*2*12,IF(K66=\"Rural 1\",I66*3.5*12,IF(K66=\"Rural 2\",I66*3*12,IF(K66=\"Rural 3\",I66*2.5*12,IF(K66=\"Urbana\",I66*1.6*12,IF(K66=\"Urbana 1\",I66*1.3*12,0))))))","v":1332},49]
[50,"ATUNCOLLA","ULLAGACHI","1621606","1279","Inicial","Educación Básica Regular      ","A1  - Pública - Sector Educación                                  ",13,"ATUNCOLLA","Rural 2",468,50]
[51,"ATUNCOLLA","MORO","1470988","1191 SANTA BARBARA","Inicial","Educación Básica Regular      ","A1  - Pública - Sector Educación                                  ",30,"ATUNCOLLA","Rural 3",900,51]
[52,"ATUNCOLLA","SAN JERONIMO DE HULLAGACHI","1471002","1192 ULLAGACHI-ATUNCOLLA","Inicial","Educación Básica Regular      ","A1  - Pública - Sector Educación                                  ",9,"ATUNCOLLA","Rural 2",324,52]
[53,"ATUNCOLLA","BUENAVISTA","1556273","1218 NUEVO AMANECER","Inicial","Educación Básica Regular      ","A1  - Pública - Sector Educación                                  ",10,"ATUNCOLLA","Rural 2",360,{"$f":"+A70","v":53}]
[54,"ATUNCOLLA","UMAYO","1621630","1281 NIÑO JESUS SEMILLITAS DE ESPERANZA","Inicial","Educación Básica Regular      ","A1  - Pública - Sector Educación                                  ",7,"ATUNCOLLA","Rural 2",252,54]
[55,"ATUNCOLLA","SAN JOSE PRINCIPIO","1654987","1301 MUSUQ T'IKITA","Inicial","Educación Básica Regular      ","A1  - Pública - Sector Educación                                  ",27,"ATUNCOLLA","Rural 3",810,55]
[56,"ATUNCOLLA","ANANSAYA","1654979","13ANANZAYA","Inicial","Educación Básica Regular      ","A1  - Pública - Sector Educación                                  ",8,"ATUNCOLLA","Rural 2",288,56]
[57,"ATUNCOLLA","PATACANCHA","1746262","PATACANCHA","Inicial","Educación Básica Regular      ","A1  - Pública - Sector Educación                                  ",8,"ATUNCOLLA","Rural 2",288,57]
[58,"CAPACHICA","CAPACHICA","1023282","201","Inicial","Educación Básica Regular      ","A1  - Pública - Sector Educación                                  ",18,"CAPACHICA","Rural 3",540,58]
[59,"CAPACHICA","YAPURA","1023324","297","Inicial","Educación Básica Regular      ","A1  - Pública - Sector Educación                                  ",6,"CAPACHICA","Rural 2",216,59]
[60,"CAPACHICA","LLACHON","1025717","298","Inicial","Educación Básica Regular      ","A1  - Pública - Sector Educación                                  ",17,"CAPACHICA","Rural 1",714,60]
[61,"CAPACHICA","LLACHON","1621374","1257","Inicial","Educación Básica Regular      ","A1  - Pública - Sector Educación                                  ",10,"CAPACHICA","Rural 1",420,61]
[62,"CAPACHICA","CCOTOS","1621390","1259","Inicial","Educación Básica Regular      ","A1  - Pública - Sector Educación                                  ",8,"CAPACHICA","Rural 2",288,62]
[63,"CAPACHICA","JAJANRA","1621689","1286","Inicial","Educación Básica Regular      ","A1  - Pública - Sector Educación                                  ",9,"CAPACHICA","Rural 2",324,63]
[64,"CAPACHICA","SANTA MARIA","1623610","1290","Inicial","Educación Básica Regular      ","A1  - Pública - Sector Educación                                  ",7,"CAPACHICA","Rural 1",294,64]
[65,"CAPACHICA","CAPANO","1470897","1199 SAN JUAN DE CAPANO","Inicial","Educación Básica Regular      ","A1  - Pública - Sector Educación                                  ",9,"CAPACHICA","Rural 2",324,65]
[66,"CAPACHICA","ISAÑURA","1621614","1232 MISKY WASI","Inicial","Educación Básica Regular      ","A1  - Pública - Sector Educación                                  ",16,"CAPACHICA","Rural 2",576,66]
[67,"CAPACHICA","COLLPA","1621366","1256 NIÑO DE JESUS","Inicial","Educación Básica Regular      ","A1  - Pública - Sector Educación                                  ",8,"CAPACHICA","Rural 1",336,67]
[68,"CAPACHICA","HILATA","1621424","1262 NIÑO SAN SALVADOR","Inicial","Educación Básica Regular      ","A1  - Pública - Sector Educación                                  ",16,"CAPACHICA","Rural 2",576,68]
[69,"CAPACHICA","TANTEON","1621457","1265 ALFONSO UGARTE","Inicial","Educación Básica Regular      ","A1  - Pública - Sector Educación                                  ",12,"CAPACHICA","Rural 2",432,69]
[70,"CAPACHICA","ESCALLANI","1621465","1266 DON JOSE DE SAN MARTIN","Inicial","Educación Básica Regular      ","A1  - Pública - Sector Educación                                  ",20,"CAPACHICA","Rural 2",720,70]
[71,"CAPACHICA","CCOTOS","1621507","1270 JOSE DE SAN MARTIN","Inicial","Educación Básica Regular      ","A1  - Pública - Sector Educación                                  ",6,"CAPACHICA","Rural 2",216,71]
[72,"CAPACHICA","CHAPA","1470921","12SEMILLITAS DEL SABER","Inicial","Educación Básica Regular      ","A1  - Pública - Sector Educación                                  ",26,"CAPACHICA","Rural 2",936,72]
[73,"CHUCUITO","CHUCUITO","0229666","206","Inicial","Educación Básica Regular      ","A1  - Pública - Sector Educación                                  ",36,"CHUCUITO","Rural 3",1080,73]
[74,"CHUCUITO","CARINA","1023449","300","Inicial","Educación Básica Regular      ","A1  - Pública - Sector Educación                                  ",11,"CHUCUITO","Rural 2",396,74]
[75,"CHUCUITO","CUSIPATA","1025725","329","Inicial","Educación Básica Regular      ","A1  - Pública - Sector Educación                                  ",11,"CHUCUITO","Rural 3",330,75]
[76,"CHUCUITO","INCHUPALLA","1621168","1236","Inicial","Educación Básica Regular      ","A1  - Pública - Sector Educación                                  ",9,"CHUCUITO","Rural 2",324,76]
[77,"CHUCUITO","LUQUINA CHICO","1556372","1209 LAGO SAGRADO DE LUQUINA CHICO","Inicial","Educación Básica Regular      ","A1  - Pública - Sector Educación                                  ",10,"CHUCUITO","Rural 2",360,77]
[78,"CHUCUITO","PARINA","1556406","1210 TESORITOS DE PARINA","Inicial","Educación Básica Regular      ","A1  - Pública - Sector Educación                                  ",14,"CHUCUITO","Rural 3",420,78]
[79,"CHUCUITO","LUQUINA GRANDE","1621242","1244 SEMILLITAS DEL MAÑANA","Inicial","Educación Básica Regular      ","A1  - Pública - Sector Educación                                  ",4,"CHUCUITO","Rural 2",144,79]
[80,"CHUCUITO","POTOJANI GRANDE","1621267","1246 SHADDAY","Inicial","Educación Básica Regular      ","A1  - Pública - Sector Educación                                  ",16,"CHUCUITO","Rural 2",576,80]
[81,"CHUCUITO","COCHIRAYA","1621309","1250 DIVINO CORAZON","Inicial","Educación Básica Regular      ","A1  - Pública - Sector Educación                                  ",8,"CHUCUITO","Rural 2",288,81]
[82,"CHUCUITO","TACASAYA","1621697","1287 NIÑOS DEL LAGO SAGRADOS DE TACASAYA","Inicial","Educación Básica Regular      ","A1  - Pública - Sector Educación                                  ",9,"CHUCUITO","Rural 2",324,82]
[83,"CHUCUITO","HUAIRAPATA","1525583","401 NIÑO JESUS","Inicial","Educación Básica Regular      ","A1  - Pública - Sector Educación                                  ",12,"CHUCUITO","Rural 2",432,83]
[84,"COATA","SORAZA","1025477","289","Inicial","Educación Básica Regular      ","A1  - Pública - Sector Educación                                  ",35,"COATA","Rural 2",1260,84]
[85,"COATA","ANGEL CARATA","1556265","1208","Inicial","Educación Básica Regular      ","A1  - Pública - Sector Educación                                  ",9,"COATA","Rural 2",324,85]
[86,"COATA","SUCASCO","1556455","1221","Inicial","Educación Básica Regular      ","A1  - Pública - Sector Educación                                  ",55,"COATA","Rural 3",1650,86]
[87,"COATA","CARATA","1626795","1292","Inicial","Educación Básica Regular      ","A1  - Pública - Sector Educación                                  ",10,"COATA","Rural 3",300,87]
[88,"COATA","JOCHI SAN FRANCISCO","1556356","1219 PUKLLAY WASI","Inicial","Educación Básica Regular      ","A1  - Pública - Sector Educación                                  ",32,"COATA","Rural 3",960,88]
[89,"COATA","LLUCO CENTRAL","1556364","1220 SEMILLITAS DEL SEÑOR DE PENTECOSTES","Inicial","Educación Básica Regular      ","A1  - Pública - Sector Educación                                  ",19,"COATA","Rural 2",684,89]
[90,"COATA","CANDILE","1556299","1222 RAYITO DE SOL CANDILE","Inicial","Educación Básica Regular      ","A1  - Pública - Sector Educación                                  ",6,"COATA","Rural 2",216,90]
[91,"COATA","PUTUCUNI","1556422","1223 DIVINO NIÑO JESUS","Inicial","Educación Básica Regular      ","A1  - Pública - Sector Educación                                  ",20,"COATA","Rural 2",720,91]
[92,"COATA","POJSIN","1556414","1224 NUESTRA SEÑORA VIRGEN DEL ROSARIO","Inicial","Educación Básica Regular      ","A1  - Pública - Sector Educación                                  ",10,"COATA","Rural 2",360,92]
[93,"COATA","SANTA CRUZ DE CAPARA","1556448","1225 VILLA SANTA CRUZ DE SAMUCHACA","Inicial","Educación Básica Regular      ","A1  - Pública - Sector Educación                                  ",6,"COATA","Rural 2",216,93]
[94,"COATA","LLACHAHUI","1621416","1261 LOS ANGELITOS DE JESUS","Inicial","Educación Básica Regular      ","A1  - Pública - Sector Educación                                  ",8,"COATA","Rural 2",288,94]
[95,"COATA","COLLANA LOJERA","1621499","1269 CAPULLITOS DE AMOR","Inicial","Educación Básica Regular      ","A1  - Pública - Sector Educación                                  ",13,"COATA","Rural 2",468,95]
[96,"COATA","UQUISILLA","1621580","1277 JESUS EMANUEL","Inicial","Educación Básica Regular      ","A1  - Pública - Sector Educación                                  ",11,"COATA","Rural 2",396,96]
[97,"COATA","SANTIAGO SORAZA","1626803","1293 JESUS NAZARENO","Inicial","Educación Básica Regular      ","A1  - Pública - Sector Educación                                  ",6,"COATA","Rural 2",216,97]
[98,"COATA","COATA","0229617","261 SAN AGUSTIN","Inicial","Educación Básica Regular      ","A1  - Pública - Sector Educación                                  ",27,"COATA","Rural 2",972,98]
[99,"HUATA","HUATTA","0487348","215","Inicial","Educación Básica Regular      ","A1  - Pública - Sector Educación                                  ",55,"HUATA","Rural 3",1650,99]
[100,"HUATA","CHINCHERPAMPA","1654995","1302","Inicial","Educación Básica Regular      ","A1  - Pública - Sector Educación                                  ",4,"HUATA","Rural 2",144,100]
[101,"HUATA","PAMPA YASIN","1621564","1275 ALTA GRACIA DE YASIN","Inicial","Educación Básica Regular      ","A1  - Pública - Sector Educación                                  ",28,"HUATA","Rural 2",1008,101]
[102,"HUATA","FAON","1655000","1303 SAN MIGUEL DE FAON","Inicial","Educación Básica Regular      ","A1  - Pública - Sector Educación                                  ",9,"HUATA","Rural 2",324,102]
[103,"HUATA","QUIVILLACA","1658921","1309 INMACULADA CONCEPCION","Inicial","Educación Básica Regular      ","A1  - Pública - Sector Educación                                  ",13,"HUATA","Rural 2",468,103]
[104,"MAÑAZO","MAÑAZO","0229690","209","Inicial","Educación Básica Regular      ","A1  - Pública - Sector Educación                                  ",49,"MAÑAZO","Urbana",940.80000000000007,104]
[105,"MAÑAZO","CHARAMAYA","1556315","1226","Inicial","Educación Básica Regular      ","A1  - Pública - Sector Educación                                  ",8,"MAÑAZO","Rural 1",336,105]
[106,"MAÑAZO","HUILAMOCCO","1621234","1243","Inicial","Educación Básica Regular      ","A1  - Pública - Sector Educación                                  ",15,"MAÑAZO","Rural 2",540,106]
[107,"MAÑAZO","CARI CARI","1470905","1202 QORI SONCCO","Inicial","Educación Básica Regular      ","A1  - Pública - Sector Educación                                  ",19,"MAÑAZO","Rural 2",684,107]
[108,"MAÑAZO","SANTA ROSA","1621572","1276 SANTA ROSA","Inicial","Educación Básica Regular      ","A1  - Pública - Sector Educación                                  ",20,"MAÑAZO","Urbana",384,108]
[109,"MAÑAZO","ALTO ALIANZA","1655018","1304 DIVINO NIÑO ALTO ALIANZA","Inicial","Educación Básica Regular      ","A1  - Pública - Sector Educación                                  ",22,"MAÑAZO","Urbana",422.40000000000003,109]
[110,"MAÑAZO","MAÑAZO","1679331","ALFONSO UGARTE","Inicial","Educación Básica Regular      ","A1  - Pública - Sector Educación                                  ",16,"MAÑAZO","Urbana",307.20000000000005,110]
[111,"PAUCARCOLLA","COLLANA","1023803","295","Inicial","Educación Básica Regular      ","A1  - Pública - Sector Educación                                  ",18,"PAUCARCOLLA","Rural 3",540,111]
[112,"PAUCARCOLLA","PAUCARCOLLA","0513192","323","Inicial","Educación Básica Regular      ","A1  - Pública - Sector Educación                                  ",24,"PAUCARCOLLA","Rural 3",720,112]
[113,"PAUCARCOLLA","CHALE","1621275","1247","Inicial","Educación Básica Regular      ","A1  - Pública - Sector Educación                                  ",41,{"$f":"+B130","v":"PAUCARCOLLA"},"Urbana",{"$f":"+IF(K130=\"Rural\",I130*2*12,IF(K130=\"Rural 1\",I130*3.5*12,IF(K130=\"Rural 2\",I130*3*12,IF(K130=\"Rural 3\",I130*2.5*12,IF(K130=\"Urbana\",I130*1.6*12,IF(K130=\"Urbana 1\",I130*1.3*12,0))))))","v":787.2},113]
[114,"PAUCARCOLLA","CANCHARANI","1621150","1235 NIÑO SAN SALVADOR","Inicial","Educación Básica Regular      ","A1  - Pública - Sector Educación                                  ",5,"PAUCARCOLLA","Rural 3",150,114]
[115,"PAUCARCOLLA","CUPE","1621325","1252 VIRGEN DE GUADALUPE","Inicial","Educación Básica Regular      ","A1  - Pública - Sector Educación                                  ",6,"PAUCARCOLLA","Rural 2",216,115]
[116,"PAUCARCOLLA","ANTONIANI","1621333","1253 IMACULADA CONCEPCION","Inicial","Educación Básica Regular      ","A1  - Pública - Sector Educación                                  ",4,"PAUCARCOLLA","Rural 2",144,116]
[117,"PAUCARCOLLA","CORTE ESTACION","1621473","1267 RAYITOS DE SOL","Inicial","Educación Básica Regular      ","A1  - Pública - Sector Educación                                  ",11,"PAUCARCOLLA","Rural 3",330,{"$f":"+A134","v":117}]
[118,"PAUCARCOLLA","YANICO / TITILE","1621556","1274 SEMILLITAS DEL FUTURO","Inicial","Educación Básica Regular      ","A1  - Pública - Sector Educación                                  ",6,"PAUCARCOLLA","Rural 2",216,118]
[119,"PICHACANI","LARAQUERI","0474627","225","Inicial","Educación Básica Regular      ","A1  - Pública - Sector Educación                                  ",52,"PICHACANI","Rural 3",1560,119]
[120,"PICHACANI","PICHACANI","0539858","268","Inicial","Educación Básica Regular      ","A1  - Pública - Sector Educación                                  ",10,"PICHACANI","Rural 2",360,120]
[121,"PICHACANI","SOQUESANI","1025568","299","Inicial","Educación Básica Regular      ","A1  - Pública - Sector Educación                                  ",16,"PICHACANI","Rural 2",576,121]
[122,"PICHACANI","ANCACCA","1470863","1204 LOS PEQUEÑOS CONQUISTADORES","Inicial","Educación Básica Regular      ","A1  - Pública - Sector Educación                                  ",14,"PICHACANI","Rural 2",504,122]
[123,"PICHACANI","JATUCACHI","1584846","1295 LOS NEVADITOS","Inicial","Educación Básica Regular      ","A1  - Pública - Sector Educación                                  ",17,"PICHACANI","Rural 1",714,123]
[124,"PICHACANI","HUARIJUYO","1372853","380 HUARIJUYO","Inicial","Educación Básica Regular      ","A1  - Pública - Sector Educación                                  ",14,"PICHACANI","Rural 2",504,124]
[125,"PICHACANI","ARBOLEDA","1710680","ARBOLEDA","Inicial","Educación Básica Regular      ","A1  - Pública - Sector Educación                                  ",11,"PICHACANI","Rural 2",396,125]
[126,"PLATERIA","CCOTA","0229625","202","Inicial","Educación Básica Regular      ","A1  - Pública - Sector Educación                                  ",29,"PLATERIA","Rural 3",870,126]
[127,"PLATERIA","PLATERIA","0501338","257","Inicial","Educación Básica Regular      ","A1  - Pública - Sector Educación                                  ",22,"PLATERIA","Rural 3",660,127]
[128,"PLATERIA","AÑO CALLEJON","1470889","1201","Inicial","Educación Básica Regular      ","A1  - Pública - Sector Educación                                  ",10,"PLATERIA","Rural 2",360,128]
[129,"PLATERIA","SIHUECANI","1621226","1242","Inicial","Educación Básica Regular      ","A1  - Pública - Sector Educación                                  ",11,"PLATERIA","Rural 2",396,129]
[130,"PLATERIA","CAMATA","1556281","1207 SANTA ROSA","Inicial","Educación Básica Regular      ","A1  - Pública - Sector Educación                                  ",14,"PLATERIA","Rural 2",504,130]
[131,"PLATERIA","PERCA","1621713","1289 ESPONGITAS DEL SABER","Inicial","Educación Básica Regular      ","A1  - Pública - Sector Educación                                  ",19,"PLATERIA","Rural 2",684,131]
[132,"PLATERIA","CAMACANI","0229740","214 NIÑO JESUS DE PRAGA","Inicial","Educación Básica Regular      ","A1  - Pública - Sector Educación                                  ",18,"PLATERIA","Rural 3",540,132]
[133,"PLATERIA","CHILATA","1679349","CHILATA","Inicial","Educación Básica Regular      ","A1  - Pública - Sector Educación                                  ",4,"PLATERIA","Rural 2",144,133]
[134,"PUNO","PORTEÑO","0229526","192","Inicial","Educación Básica Regular      ","A1  - Pública - Sector Educación                                  ",202,"PUNO","Urbana",3878.4000000000005,134]
[135,"PUNO","PUNO","0229575","197","Inicial","Educación Básica Regular      ","A1  - Pública - Sector Educación                                  ",233,"PUNO","Urbana",4473.6000000000004,135]
[136,"PUNO","HACIENDA COLLACACHI","0229633","203","Inicial","Educación Básica Regular      ","A1  - Pública - Sector Educación                                  ",9,"PUNO","Rural 2",324,136]
[137,"PUNO","LAYKAKOTA","0229682","208","Inicial","Educación Básica Regular      ","A1  - Pública - Sector Educación                                  ",137,"PUNO","Urbana",2630.4,137]
[138,"PUNO","PUNO","0506733","224","Inicial","Educación Básica Regular      ","A1  - Pública - Sector Educación                                  ",180,"PUNO","Urbana",3456,138]
[139,"PUNO","MAGISTERIAL","0548511","248","Inicial","Educación Básica Regular      ","A1  - Pública - Sector Educación                                  ",97,"PUNO","Urbana",1862.4,139]
[140,"PUNO","ICHU","0548610","249","Inicial","Educación Básica Regular      ","A1  - Pública - Sector Educación                                  ",7,"PUNO","Rural 3",210,140]
[141,"PUNO","CIUDAD UNIVERSITARIA","0506931","252","Inicial","Educación Básica Regular      ","A1  - Pública - Sector Educación                                  ",121,"PUNO","Urbana",2323.2000000000003,141]
[142,"PUNO","CHIMU","0520130","253","Inicial","Educación Básica Regular      ","A1  - Pública - Sector Educación                                  ",7,"PUNO","Rural 3",210,142]
[143,"PUNO","CHANU CHANU ETAPA 1","0506832","254","Inicial","Educación Básica Regular      ","A1  - Pública - Sector Educación                                  ",21,"PUNO","Urbana",403.20000000000005,143]
[144,"PUNO","CHANU CHANU ETAPA 1","0574970","255","Inicial","Educación Básica Regular      ","A1  - Pública - Sector Educación                                  ",258,"PUNO","Urbana",4953.6000000000004,144]
[145,"PUNO","UROS CHULLUNI","0539353","264","Inicial","Educación Básica Regular      ","A1  - Pública - Sector Educación                                  ",59,"PUNO","Rural 3",1770,145]
[146,"PUNO","BELLAVISTA","0574913","270","Inicial","Educación Básica Regular      ","A1  - Pública - Sector Educación                                  ",130,"PUNO","Urbana",2496,146]
[147,"PUNO","LAYKAKOTA","0618363","274","Inicial","Educación Básica Regular      ","A1  - Pública - Sector Educación                                  ",80,"PUNO","Urbana",1536,147]
[148,"PUNO","BARRIO LLAVINI","0618371","275","Inicial","Educación Básica Regular      ","A1  - Pública - Sector Educación                                  ",61,"PUNO","Urbana",1171.2,148]
[149,"PUNO","SANTIAGO CHEJONA","0618389","276","Inicial","Educación Básica Regular      ","A1  - Pública - Sector Educación                                  ",60,"PUNO","Urbana",1152,149]
[150,"PUNO","PUNO","0618397","278","Inicial","Educación Básica Regular      ","A1  - Pública - Sector Educación                                  ",108,"PUNO","Urbana",2073.6000000000004,150]
[151,"PUNO","PUNO","0618405","279","Inicial","Educación Básica Regular      ","A1  - Pública - Sector Educación                                  ",99,"PUNO","Urbana",1900.8000000000002,151]
[152,"PUNO","TORRES SAN CARLOS","0701490","287","Inicial","Educación Básica Regular      ","A1  - Pública - Sector Educación                                  ",82,"PUNO","Urbana",1574.4,152]
[153,"PUNO","SALCEDO","1023191","288","Inicial","Educación Básica Regular      ","A1  - Pública - Sector Educación                                  ",21,"PUNO","Urbana",403.20000000000005,153]
[154,"PUNO","PUNO","0701508","290","Inicial","Educación Básica Regular      ","A1  - Pública - Sector Educación                                  ",71,"PUNO","Urbana",1363.2,154]
[155,"PUNO","AZIRUNI","1023233","294","Inicial","Educación Básica Regular      ","A1  - Pública - Sector Educación                                  ",169,"PUNO","Urbana",3244.8,155]
[156,"PUNO","JAYLLIHUAYA","1023274","296","Inicial","Educación Básica Regular      ","A1  - Pública - Sector Educación                                  ",14,"PUNO","Urbana",268.8,156]
[157,"PUNO","SANTA ROSA","0701482","322","Inicial","Educación Básica Regular      ","A1  - Pública - Sector Educación                                  ",71,"PUNO","Urbana",1363.2,157]
[158,"PUNO","LOS ANDES","1023357","325","Inicial","Educación Básica Regular      ","A1  - Pública - Sector Educación                                  ",22,"PUNO","Urbana",422.40000000000003,158]
[159,"PUNO","PUNO","1023431","327","Inicial","Educación Básica Regular      ","A1  - Pública - Sector Educación                                  ",62,"PUNO","Urbana",1190.4000000000001,159]
[160,"PUNO","ALTO BELLAVISTA","1025576","330","Inicial","Educación Básica Regular      ","A1  - Pública - Sector Educación                                  ",63,"PUNO","Urbana",1209.6000000000001,160]
[161,"PUNO","SALCEDO","1154426","332","Inicial","Educación Básica Regular      ","A1  - Pública - Sector Educación                                  ",20,"PUNO","Urbana",384,161]
[162,"PUNO","2 DE MAYO","0539056","379","Inicial","Educación Básica Regular      ","A1  - Pública - Sector Educación                                  ",29,"PUNO","Urbana",556.80000000000007,162]
[163,"PUNO","ISLA TUPIRI","1540210","1205","Inicial","Educación Básica Regular      ","A1  - Pública - Sector Educación                                  ",15,"PUNO","Rural 1",630,163]
[164,"PUNO","PUNO","1556257","1227","Inicial","Educación Básica Regular      ","A1  - Pública - Sector Educación                                  ",20,"PUNO","Urbana",384,164]
[165,"PUNO","CHIMU","1679398","70160","Inicial","Educación Básica Regular      ","A1  - Pública - Sector Educación                                  ",15,"PUNO","Rural 3",450,165]
[166,"PUNO","PUNO","1470970","1190 ESTRELLITAS DEL SABER","Inicial","Educación Básica Regular      ","A1  - Pública - Sector Educación                                  ",67,"PUNO","Urbana",1286.4000000000001,166]
[167,"PUNO","PUNO","1525591","1203 PASITOS DE ORO","Inicial","Educación Básica Regular      ","A1  - Pública - Sector Educación                                  ",138,"PUNO","Urbana",2649.6000000000004,167]
[168,"PUNO","AZIRUNI","1556323","1211 CUIDAD JARDIN","Inicial","Educación Básica Regular      ","A1  - Pública - Sector Educación                                  ",71,"PUNO","Urbana",1363.2,168]
[169,"PUNO","MANTO NUEVA ESPERANZA","1556398","1228 NUEVA ESPERANZA","Inicial","Educación Básica Regular      ","A1  - Pública - Sector Educación                                  ",40,"PUNO","Urbana",768,169]
[170,"PUNO","ALTO PUNO","1578483","1231 RETOÑITOS","Inicial","Educación Básica Regular      ","A1  - Pública - Sector Educación                                  ",31,"PUNO","Urbana",595.20000000000005,170]
[171,"PUNO","PUNO","1621143","1234 CAPULLITOS DE LA VIRGEN INMACULADA CONCEPCION","Inicial","Educación Básica Regular      ","A1  - Pública - Sector Educación                                  ",24,"PUNO","Urbana",460.80000000000007,171]
[172,"PUNO","MACHALLATA","1659788","1294 DULCE INFANCIA","Inicial","Educación Básica Regular      ","A1  - Pública - Sector Educación                                  ",38,"PUNO","Urbana",729.6,172]
[173,"PUNO","ISLA CCAPI LOS UROS","1655026","1305 SUMA K'ANTAWI","Inicial","Educación Básica Regular      ","A1  - Pública - Sector Educación                                  ",29,"PUNO","Rural 1",1218,173]
[174,"PUNO","SAN ANTONIO","0229534","193 CLUB DE LEONES","Inicial","Educación Básica Regular      ","A1  - Pública - Sector Educación                                  ",258,"PUNO","Urbana",4953.6000000000004,174]
[175,"PUNO","PUNO","0229559","195 MARIA AUXILIADORA","Inicial","Educación Básica Regular      ","A1  - Pública - Sector Educación                                  ",293,"PUNO","Urbana",5625.6,175]
[176,"PUNO","PUNO","0229567","196 GLORIOSO SAN CARLOS","Inicial","Educación Básica Regular      ","A1  - Pública - Sector Educación                                  ",232,"PUNO","Urbana",4454.4000000000005,176]
[177,"PUNO","JOSE ENCINAS","0229674","207 JOSE ANTONIO ENCINAS","Inicial","Educación Básica Regular      ","A1  - Pública - Sector Educación                                  ",133,{"$f":"+B194","v":"PUNO"},"Urbana",{"$f":"+IF(K194=\"Rural\",I194*2*12,IF(K194=\"Rural 1\",I194*3.5*12,IF(K194=\"Rural 2\",I194*3*12,IF(K194=\"Rural 3\",I194*2.5*12,IF(K194=\"Urbana\",I194*1.6*12,IF(K194=\"Urbana 1\",I194*1.3*12,0))))))","v":2553.6000000000004},177]
[178,"PUNO","CHACARILLA DEL LAGO","0474353","219 SANTA ROSA DE LIMA","Inicial","Educación Básica Regular      ","A1  - Pública - Sector Educación                                  ",82,"PUNO","Urbana",1574.4,178]
[179,"PUNO","VILLA COPA CABANA","1571462","239 NIÑO JESUS DE PRAGA","Inicial","Educación Básica Regular      ","A1  - Pública - Sector Educación                                  ",12,"PUNO","Urbana",230.40000000000003,179]
[180,"PUNO","SAN MARTIN","0660258","284 CARLOS DREYER","Inicial","Educación Básica Regular      ","A1  - Pública - Sector Educación                                  ",68,"PUNO","Urbana",1305.6000000000001,180]
[181,"PUNO","PORTEÑO","0706507","285 GRAN UNIDAD ESCOLAR SAN CARLOS","Inicial","Educación Básica Regular      ","A1  - Pública - Sector Educación                                  ",227,"PUNO","Urbana",4358.4000000000005,{"$f":"+A198","v":181}]
[182,"PUNO","VILLA DEL LAGO","1023316","324 DIVINO NIÑO JESUS","Inicial","Educación Básica Regular      ","A1  - Pública - Sector Educación                                  ",165,"PUNO","Urbana",3168,182]
[183,"PUNO","VICTORIA","1023399","326 MANUEL NUÑEZ BUTRON","Inicial","Educación Básica Regular      ","A1  - Pública - Sector Educación                                  ",166,"PUNO","Urbana",3187.2000000000003,183]
[184,"PUNO","ALTO HUASCAR","1746296","ALTO HUASCAR","Inicial","Educación Básica Regular      ","A1  - Pública - Sector Educación                                  ",16,"PUNO","Urbana",307.20000000000005,184]
[185,"PUNO","PUNO","1679364","MANTO","Inicial","Educación Básica Regular      ","A1  - Pública - Sector Educación                                  ",16,"PUNO","Urbana",307.20000000000005,185]
[186,"PUNO","MI PERU","1746270","MI PERU","Inicial","Educación Básica Regular      ","A1  - Pública - Sector Educación                                  ",5,"PUNO","Rural 3",150,186]
[187,"PUNO","SALCEDO","1746288","RINCONADA SALCEDO","Inicial","Educación Básica Regular      ","A1  - Pública - Sector Educación                                  ",12,"PUNO","Urbana",230.40000000000003,187]
[188,"PUNO","SAN MARTIN","1761006","SAN MARTIN DE PORRES","Inicial","Educación Básica Regular      ","A1  - Pública - Sector Educación                                  ",41,"PUNO","Urbana",787.2,188]
[189,"PUNO","PUNO","1679356","VALLECITO","Inicial","Educación Básica Regular      ","A1  - Pública - Sector Educación                                  ",18,"PUNO","Urbana",345.6,189]
[190,"PUNO","PUNO","1679372","VICTOR RAUL HAYA DE LA TORRE","Inicial","Educación Básica Regular      ","A1  - Pública - Sector Educación                                  ",8,"PUNO","Urbana",153.60000000000002,190]
[191,"SAN ANTONIO","JUNCAL","1345289","240","Inicial","Educación Básica Regular      ","A1  - Pública - Sector Educación                                  ",14,"SAN ANTONIO","Rural 1",588,191]
[192,"SAN ANTONIO","CACHIPASCANA","1621432","1263 SAN JOSE","Inicial","Educación Básica Regular      ","A1  - Pública - Sector Educación                                  ",6,"SAN ANTONIO","Rural 1",252,192]
[193,"SAN ANTONIO","KOMERUCHO","1621622","1280 AGUILAS DEL SABER","Inicial","Educación Básica Regular      ","A1  - Pública - Sector Educación                                  ",7,"SAN ANTONIO","Rural 1",294,193]
[194,"TIQUILLACA","TIQUILLACA","0229708","210","Inicial","Educación Básica Regular      ","A1  - Pública - Sector Educación                                  ",12,"TIQUILLACA","Rural 2",432,194]
[195,"TIQUILLACA","CHILA","1621259","1245 DIVINO NIÑO SAN SALVADOR","Inicial","Educación Básica Regular      ","A1  - Pública - Sector Educación                                  ",8,"TIQUILLACA","Rural 2",288,195]
[196,"TIQUILLACA","CONDORIRI","1655034","1306 NUEVA VISION","Inicial","Educación Básica Regular      ","A1  - Pública - Sector Educación                                  ",8,"TIQUILLACA","Rural 2",288,196]
[197,"VILQUE","VILQUE","0229732","213","Inicial","Educación Básica Regular      ","A1  - Pública - Sector Educación                                  ",44,"VILQUE","Rural 3",1320,197]
[198,"VILQUE","HUANCASAYA","1621135","1233 NIÑO JESUSITO","Inicial","Educación Básica Regular      ","A1  - Pública - Sector Educación                                  ",4,"VILQUE","Rural 2",144,198]
[199,"VILQUE","COTAÑA","1621200","1240 NIÑO JESUS","Inicial","Educación Básica Regular      ","A1  - Pública - Sector Educación                                  ",12,"VILQUE","Rural 2",432,199]
[200,"VILQUE","MACHACMARCA","1621341","1254 SEMILLITAS DE JESUS","Inicial","Educación Básica Regular      ","A1  - Pública - Sector Educación                                  ",12,"VILQUE","Rural 2",432,200]
[201,"VILQUE","HACIENDA CAIRANE","1621440","1264 LOS ANGELITOS DE CAIRANI","Inicial","Educación Básica Regular      ","A1  - Pública - Sector Educación                                  ",6,"VILQUE","Rural 2",216,201]
[202,"VILQUE","YANARICO","1621515","1271 EXALTACION-YANARICO","Inicial","Educación Básica Regular      ","A1  - Pública - Sector Educación                                  ",10,"VILQUE","Rural 2",360,202]
[203,"VILQUE","ULLAGACHI","1621598","1278 LA SAGRADA FAMILIA","Inicial","Educación Básica Regular      ","A1  - Pública - Sector Educación                                  ",4,"VILQUE","Rural 2",144,203]
[204,"VILQUE","AZUL CANCHA","1621705","1288 RAYITO AZUL","Inicial","Educación Básica Regular      ","A1  - Pública - Sector Educación                                  ",4,"VILQUE","Rural 2",144,204]
[1,"ACORA","ACORA","3870434","2 DE MAYO","Inicial  Prog No Escolariz","Educación Básica Regular      ","A1  - Pública - Sector Educación                                  ",6,"ACORA","Urbana",115.20000000000002,1]
[2,"ACORA","AMACHOCO","3937888","AMACHOCO","Inicial  Prog No Escolariz","Educación Básica Regular      ","A1  - Pública - Sector Educación                                  ",7,"ACORA","Rural",168,2]
[3,"ACORA","ANCCACCA","3932263","ANCCACCA","Inicial  Prog No Escolariz","Educación Básica Regular      ","A1  - Pública - Sector Educación                                  ",5,"ACORA","Rural",120,3]
[4,"ACORA","CHUSAMARCA","3937889","ANGELITOS DE DIOS","Inicial  Prog No Escolariz","Educación Básica Regular      ","A1  - Pública - Sector Educación                                  ",12,"ACORA","Rural",288,4]
[5,"ACORA","ANOCARIRE","2061407","ANOCARIRI","Inicial  Prog No Escolariz","Educación Básica Regular      ","A1  - Pública - Sector Educación                                  ",6,"ACORA","Rural",144,5]
[6,"ACORA","AMPARANI","2058019","AYMAHUI QUENARIRI","Inicial  Prog No Escolariz","Educación Básica Regular      ","A1  - Pública - Sector Educación                                  ",8,"ACORA","Rural",192,6]
[7,"ACORA","ACORA","2059511","CAPULLITOS","Inicial  Prog No Escolariz","Educación Básica Regular      ","A1  - Pública - Sector Educación                                  ",7,"ACORA","Urbana",134.4,7]
[8,"ACORA","CARITAMAYA","2062912","CARITAMAYA A","Inicial  Prog No Escolariz","Educación Básica Regular      ","A1  - Pública - Sector Educación                                  ",10,"ACORA","Urbana",192,8]
[9,"ACORA","CARITAMAYA","2062923","CARITAMAYA B","Inicial  Prog No Escolariz","Educación Básica Regular      ","A1  - Pública - Sector Educación                                  ",7,"ACORA","Urbana",134.4,9]
[10,"ACORA","TOTORANI","3916593","CASITA MAGICA","Inicial  Prog No Escolariz","Educación Básica Regular      ","A1  - Pública - Sector Educación                                  ",8,"ACORA","Rural",192,10]
[11,"ACORA","CCACCA","2062915","CCACCA","Inicial  Prog No Escolariz","Educación Básica Regular      ","A1  - Pública - Sector Educación                                  ",8,"ACORA","Rural",192,11]
[12,"ACORA","CCOTA CCOTA","2060628","CCOTA CCOTA","Inicial  Prog No Escolariz","Educación Básica Regular      ","A1  - Pública - Sector Educación                                  ",12,"ACORA","Urbana",230.40000000000003,12]
[13,"ACORA","CENTRAL PUKARA","2060613","CENTRAL PUKARA","Inicial  Prog No Escolariz","Educación Básica Regular      ","A1  - Pública - Sector Educación                                  ",8,"ACORA","Rural",192,13]
[14,"ACORA","CHANCACHI","2060629","CHANCACHI CENTRAL","Inicial  Prog No Escolariz","Educación Básica Regular      ","A1  - Pública - Sector Educación                                  ",5,"ACORA","Rural",120,14]
[15,"ACORA","CHILLEROTA","2138732","CHILLEROTA","Inicial  Prog No Escolariz","Educación Básica Regular      ","A1  - Pública - Sector Educación                                  ",4,"ACORA","Rural 1",168,15]
[16,"ACORA","CHUSAMARCA","3870430","CHUSAMARCA","Inicial  Prog No Escolariz","Educación Básica Regular      ","A1  - Pública - Sector Educación                                  ",7,"ACORA","Rural",168,16]
[17,"ACORA","COLLINI","3937887","COLLINI","Inicial  Prog No Escolariz","Educación Básica Regular      ","A1  - Pública - Sector Educación                                  ",7,"ACORA","Rural",168,17]
[18,"ACORA","CHAMCHILLA","2058007","CUCHO CHAMCHILLA","Inicial  Prog No Escolariz","Educación Básica Regular      ","A1  - Pública - Sector Educación                                  ",12,"ACORA","Rural",288,18]
[19,"ACORA","CUCHO ESQUEÑA","2138739","CUCHO ESQUEÑA","Inicial  Prog No Escolariz","Educación Básica Regular      ","A1  - Pública - Sector Educación                                  ",8,"ACORA","Rural",192,19]
[20,"ACORA","CULTA","2138737","CULTA PILCUYO","Inicial  Prog No Escolariz","Educación Básica Regular      ","A1  - Pública - Sector Educación                                  ",8,"ACORA","Rural",192,20]
[21,"ACORA","CUSINI","3922314","CUSINI","Inicial  Prog No Escolariz","Educación Básica Regular      ","A1  - Pública - Sector Educación                                  ",8,"ACORA","Rural",192,21]
[22,"ACORA","HUARICONSE","3948586","HUAIRCONSE","Inicial  Prog No Escolariz","Educación Básica Regular      ","A1  - Pública - Sector Educación                                  ",5,"ACORA","Rural",120,22]
[23,"ACORA","VILLA SOCCA","2043226","HUALLATANI","Inicial  Prog No Escolariz","Educación Básica Regular      ","A1  - Pública - Sector Educación                                  ",10,"ACORA","Rural",240,23]
[24,"ACORA","HUATACHI CHILA","2066304","HUANTACACHI","Inicial  Prog No Escolariz","Educación Básica Regular      ","A1  - Pública - Sector Educación                                  ",5,"ACORA","Rural",120,24]
[25,"ACORA","HUANTACACHI CHILA","2061409","HUANTACACHI","Inicial  Prog No Escolariz","Educación Básica Regular      ","A1  - Pública - Sector Educación                                  ",7,"ACORA","Rural",168,25]
[26,"ACORA","AMPARANI","3932268","HUAYCHANI","Inicial  Prog No Escolariz","Educación Básica Regular      ","A1  - Pública - Sector Educación                                  ",7,"ACORA","Rural",168,26]
[27,"ACORA","HUILACAYA","3870435","HUILACAYA","Inicial  Prog No Escolariz","Educación Básica Regular      ","A1  - Pública - Sector Educación                                  ",9,"ACORA","Rural",216,27]
[28,"ACORA","COLLINI","2060611","HUILALACA","Inicial  Prog No Escolariz","Educación Básica Regular      ","A1  - Pública - Sector Educación                                  ",4,"ACORA","Rural 1",168,28]
[29,"ACORA","HUILASIPE CALAPUJO","2130009","HUILASIPE CALAPUJO","Inicial  Prog No Escolariz","Educación Básica Regular      ","A1  - Pública - Sector Educación                                  ",4,"ACORA","Rural 1",168,29]
[30,"ACORA","JAYU JAYU","3937886","JAYU JAYU","Inicial  Prog No Escolariz","Educación Básica Regular      ","A1  - Pública - Sector Educación                                  ",7,"ACORA","Urbana",134.4,30]
[31,"ACORA","JAYU JAYU","2130001","JAYU JAYU RINCONADA","Inicial  Prog No Escolariz","Educación Básica Regular      ","A1  - Pública - Sector Educación                                  ",4,"ACORA","Rural 1",168,31]
[32,"ACORA","JURUHUANANI","3932267","JURUHUANANI","Inicial  Prog No Escolariz","Educación Básica Regular      ","A1  - Pública - Sector Educación                                  ",7,"ACORA","Rural",168,32]
[33,"ACORA","KALLANCA","2058011","KALLANCA","Inicial  Prog No Escolariz","Educación Básica Regular      ","A1  - Pública - Sector Educación                                  ",5,"ACORA","Rural",120,33]
[34,"ACORA","KENACO","2061417","KENACO","Inicial  Prog No Escolariz","Educación Básica Regular      ","A1  - Pública - Sector Educación                                  ",5,"ACORA","Rural",120,34]
[35,"ACORA","ISCACHURO","3932259","MACHAQA QHANTATI","Inicial  Prog No Escolariz","Educación Básica Regular      ","A1  - Pública - Sector Educación                                  ",7,"ACORA","Rural",168,35]
[36,"ACORA","MARQUIRE","2061408","MARQUIRE","Inicial  Prog No Escolariz","Educación Básica Regular      ","A1  - Pública - Sector Educación                                  ",7,"ACORA","Rural",168,36]
[37,"ACORA","BARRIO MIRAFLORES","2059503","MIRAFLORES A","Inicial  Prog No Escolariz","Educación Básica Regular      ","A1  - Pública - Sector Educación                                  ",7,{"$f":"+B258","v":"ACORA"},"Urbana",{"$f":"+IF(K258=\"Rural\",I258*2*12,IF(K258=\"Rural 1\",I258*3.5*12,IF(K258=\"Rural 2\",I258*3*12,IF(K258=\"Rural 3\",I258*2.5*12,IF(K258=\"Urbana\",I258*1.6*12,IF(K258=\"Urbana 1\",I258*1.3*12,0))))))","v":134.4},37]
[38,"ACORA","MOCARAYA","2057907","MOCARAYA","Inicial  Prog No Escolariz","Educación Básica Regular      ","A1  - Pública - Sector Educación                                  ",6,"ACORA","Rural",144,38]
[39,"ACORA","MOLLOCO","2062907","MOLLOCO A","Inicial  Prog No Escolariz","Educación Básica Regular      ","A1  - Pública - Sector Educación                                  ",9,"ACORA","Rural",216,39]
[40,"ACORA","MOLLOCO","2062910","MOLLOCO B","Inicial  Prog No Escolariz","Educación Básica Regular      ","A1  - Pública - Sector Educación                                  ",7,"ACORA","Rural",168,40]
[41,"ACORA","AMPARANI","3916584","NUEVA ESPERANZA","Inicial  Prog No Escolariz","Educación Básica Regular      ","A1  - Pública - Sector Educación                                  ",8,"ACORA","Rural",192,{"$f":"+A262","v":41}]
[42,"ACORA","PARCCOCCOTA","2059522","PARCCOCCOTA","Inicial  Prog No Escolariz","Educación Básica Regular      ","A1  - Pública - Sector Educación                                  ",8,"ACORA","Rural",192,42]
[43,"ACORA","ISCAPATAZA","3947759","PATASITAS","Inicial  Prog No Escolariz","Educación Básica Regular      ","A1  - Pública - Sector Educación                                  ",3,"ACORA","Rural 1",126,43]
[44,"ACORA","PUTINI","2062924","PUTINI","Inicial  Prog No Escolariz","Educación Básica Regular      ","A1  - Pública - Sector Educación                                  ",6,"ACORA","Rural",144,44]
[45,"ACORA","MARQUIRI","3932265","RAYITOS DE SOL","Inicial  Prog No Escolariz","Educación Básica Regular      ","A1  - Pública - Sector Educación                                  ",9,"ACORA","Rural",216,45]
[46,"ACORA","ACORA","2059516","RETOÑITOS","Inicial  Prog No Escolariz","Educación Básica Regular      ","A1  - Pública - Sector Educación                                  ",7,"ACORA","Urbana",134.4,46]
[47,"ACORA","SAN CARLOS","2060618","SAN CARLOS","Inicial  Prog No Escolariz","Educación Básica Regular      ","A1  - Pública - Sector Educación                                  ",6,"ACORA","Rural",144,47]
[48,"ACORA","SAN JOSE DE CALALA","2060617","SAN JOSE DE CALALA","Inicial  Prog No Escolariz","Educación Básica Regular      ","A1  - Pública - Sector Educación                                  ",4,"ACORA","Rural 1",168,48]
[49,"ACORA","BARRIO SAN JUAN","2059514","SAN JUAN","Inicial  Prog No Escolariz","Educación Básica Regular      ","A1  - Pública - Sector Educación                                  ",10,"ACORA","Urbana",192,49]
[50,"ACORA","BARRIO SAN MARTIN","2059502","SAN MARTIN","Inicial  Prog No Escolariz","Educación Básica Regular      ","A1  - Pública - Sector Educación                                  ",8,"ACORA","Urbana",153.60000000000002,50]
[51,"ACORA","ACORA","2059501","SAN PEDRO","Inicial  Prog No Escolariz","Educación Básica Regular      ","A1  - Pública - Sector Educación                                  ",8,"ACORA","Urbana",153.60000000000002,51]
[52,"ACORA","ACORA","2059518","SANGRE AYMARA","Inicial  Prog No Escolariz","Educación Básica Regular      ","A1  - Pública - Sector Educación                                  ",8,"ACORA","Urbana",153.60000000000002,52]
[53,"ACORA","SANTA ROSA DE YANAQUE","2138724","SILLUYAMAYA","Inicial  Prog No Escolariz","Educación Básica Regular      ","A1  - Pública - Sector Educación                                  ",7,"ACORA","Rural",168,53]
[54,"ACORA","VILLA SOCCA","2060605","SOCCA PATJA","Inicial  Prog No Escolariz","Educación Básica Regular      ","A1  - Pública - Sector Educación                                  ",7,"ACORA","Rural",168,54]
[55,"ACORA","MARCA ESQUEÑA","3932269","SUMA Q'ANTAWI","Inicial  Prog No Escolariz","Educación Básica Regular      ","A1  - Pública - Sector Educación                                  ",8,"ACORA","Rural",192,55]
[56,"ACORA","THUNCO","3932261","THUNCO","Inicial  Prog No Escolariz","Educación Básica Regular      ","A1  - Pública - Sector Educación                                  ",6,"ACORA","Rural",144,56]
[57,"ACORA","THUNUHUAYA","3932281","THUNUHUAYA","Inicial  Prog No Escolariz","Educación Básica Regular      ","A1  - Pública - Sector Educación                                  ",9,"ACORA","Rural",216,57]
[58,"ACORA","CARITAMAYA","2060609","TITIJO","Inicial  Prog No Escolariz","Educación Básica Regular      ","A1  - Pública - Sector Educación                                  ",4,"ACORA","Rural 1",168,58]
[59,"ACORA","ACORA","2058016","TUPAC AMARU","Inicial  Prog No Escolariz","Educación Básica Regular      ","A1  - Pública - Sector Educación                                  ",10,"ACORA","Urbana",192,59]
[60,"ACORA","ACORA","2138713","VICTORIA","Inicial  Prog No Escolariz","Educación Básica Regular      ","A1  - Pública - Sector Educación                                  ",9,"ACORA","Urbana",172.8,60]
[61,"ACORA","ANCCACCA","3916589","WIÑAY PACHA WAWA","Inicial  Prog No Escolariz","Educación Básica Regular      ","A1  - Pública - Sector Educación                                  ",4,"ACORA","Rural 1",168,61]
[62,"ACORA","YANAPATA","2130008","YANAPATA","Inicial  Prog No Escolariz","Educación Básica Regular      ","A1  - Pública - Sector Educación                                  ",3,"ACORA","Rural 1",126,62]
[63,"ACORA","YUNGUYO CHAMACUTA","3870432","YUNGUYO CHAMACUTA","Inicial  Prog No Escolariz","Educación Básica Regular      ","A1  - Pública - Sector Educación                                  ",6,"ACORA","Rural",144,63]
[64,"ACORA","YUNGUYO CHAMACUTA","2060621","YUNGUYO CHAMACUTA","Inicial  Prog No Escolariz","Educación Básica Regular      ","A1  - Pública - Sector Educación                                  ",9,"ACORA","Rural",216,64]
[65,"AMANTANI","COLQUECACHI","2044001","COLQUECACHI","Inicial  Prog No Escolariz","Educación Básica Regular      ","A1  - Pública - Sector Educación                                  ",5,"AMANTANI","Rural",120,65]
[66,"AMANTANI","ESTANCIA TAQUILE","2044702","ESTANCIA TAQUILE","Inicial  Prog No Escolariz","Educación Básica Regular      ","A1  - Pública - Sector Educación                                  ",8,"AMANTANI","Rural",192,66]
[67,"AMANTANI","CHEJTANI","3949368","FLOR DE KANTUTTA","Inicial  Prog No Escolariz","Educación Básica Regular      ","A1  - Pública - Sector Educación                                  ",8,"AMANTANI","Urbana",153.60000000000002,67]
[68,"AMANTANI","HUAILLANOPAMPA","3884998","HUAYLLANO","Inicial  Prog No Escolariz","Educación Básica Regular      ","A1  - Pública - Sector Educación                                  ",6,"AMANTANI","Rural",144,68]
[69,"AMANTANI","AMANTANI","2044701","LAMPAYUNI","Inicial  Prog No Escolariz","Educación Básica Regular      ","A1  - Pública - Sector Educación                                  ",8,"AMANTANI","Urbana",153.60000000000002,69]
[70,"AMANTANI","CALAPATA VILLA ORINOJON","3947714","MUNAY WAWAKUNA","Inicial  Prog No Escolariz","Educación Básica Regular      ","A1  - Pública - Sector Educación                                  ",8,"AMANTANI","Rural",192,70]
[71,"AMANTANI","OCCOPAMPA","2044009","OCCOPAMPA","Inicial  Prog No Escolariz","Educación Básica Regular      ","A1  - Pública - Sector Educación                                  ",4,"AMANTANI","Rural 1",168,71]
[72,"AMANTANI","SANTA ROSA","2044707","SALTANAHUAYCCO","Inicial  Prog No Escolariz","Educación Básica Regular      ","A1  - Pública - Sector Educación                                  ",6,"AMANTANI","Rural",144,72]
[73,"AMANTANI","ALTO SANCAYUNI","3947053","WAWAKUNAJ RIJCHARIY","Inicial  Prog No Escolariz","Educación Básica Regular      ","A1  - Pública - Sector Educación                                  ",6,"AMANTANI","Rural",144,73]
[74,"ATUNCOLLA","ALI GRANDE","2053831","ALI GRANDE","Inicial  Prog No Escolariz","Educación Básica Regular      ","A1  - Pública - Sector Educación                                  ",9,"ATUNCOLLA","Rural",216,74]
[75,"ATUNCOLLA","BUENAVISTA","2053819","ASUNCION","Inicial  Prog No Escolariz","Educación Básica Regular      ","A1  - Pública - Sector Educación                                  ",6,"ATUNCOLLA","Rural",144,75]
[76,"ATUNCOLLA","CACSI UKU","2053830","CACSI UKU","Inicial  Prog No Escolariz","Educación Básica Regular      ","A1  - Pública - Sector Educación                                  ",6,"ATUNCOLLA","Rural",144,76]
[77,"ATUNCOLLA","CAYLLACUCHO","2053829","CAYLLACUCHO","Inicial  Prog No Escolariz","Educación Básica Regular      ","A1  - Pública - Sector Educación                                  ",8,"ATUNCOLLA","Rural",192,77]
[78,"ATUNCOLLA","CHOQUELA","2053812","CHOQUELA","Inicial  Prog No Escolariz","Educación Básica Regular      ","A1  - Pública - Sector Educación                                  ",8,"ATUNCOLLA","Rural",192,78]
[79,"ATUNCOLLA","SAN JOSE PRINCIPIO","3938648","DIVINO JESUS","Inicial  Prog No Escolariz","Educación Básica Regular      ","A1  - Pública - Sector Educación                                  ",6,"ATUNCOLLA","Urbana",115.20000000000002,79]
[80,"ATUNCOLLA","CHEJOLLANE","3932954","GOTITAS DE AMOR","Inicial  Prog No Escolariz","Educación Básica Regular      ","A1  - Pública - Sector Educación                                  ",8,"ATUNCOLLA","Rural",192,80]
[81,"ATUNCOLLA","JURIA","2053802","JURIA","Inicial  Prog No Escolariz","Educación Básica Regular      ","A1  - Pública - Sector Educación                                  ",6,"ATUNCOLLA","Rural",144,81]
[82,"ATUNCOLLA","LLULLUCHANI","2051505","LLULLUCHANI","Inicial  Prog No Escolariz","Educación Básica Regular      ","A1  - Pública - Sector Educación                                  ",7,"ATUNCOLLA","Rural",168,82]
[83,"ATUNCOLLA","ALI GRANDE","3916599","MUNAY WAWITA","Inicial  Prog No Escolariz","Educación Básica Regular      ","A1  - Pública - Sector Educación                                  ",7,"ATUNCOLLA","Rural",168,83]
[84,"ATUNCOLLA","JIPA GRANDE Y CHICO","3947713","RAYITOS DE LUZ","Inicial  Prog No Escolariz","Educación Básica Regular      ","A1  - Pública - Sector Educación                                  ",8,"ATUNCOLLA","Rural",192,84]
[85,"ATUNCOLLA","SANTA BARBARA","2053832","SANTA BARBARA","Inicial  Prog No Escolariz","Educación Básica Regular      ","A1  - Pública - Sector Educación                                  ",9,"ATUNCOLLA","Rural",216,85]
[86,"ATUNCOLLA","SAN JOSE DE PRINCIPIO","2053835","SANTA CRUZ","Inicial  Prog No Escolariz","Educación Básica Regular      ","A1  - Pública - Sector Educación                                  ",3,"ATUNCOLLA","Rural 1",126,86]
[87,"ATUNCOLLA","SANTA BARBARA","3932270","SEMILLAS QUE CRECEN","Inicial  Prog No Escolariz","Educación Básica Regular      ","A1  - Pública - Sector Educación                                  ",5,"ATUNCOLLA","Rural",120,87]
[88,"ATUNCOLLA","TICANI PAMPA","2051504","TICANI PAMPA","Inicial  Prog No Escolariz","Educación Básica Regular      ","A1  - Pública - Sector Educación                                  ",4,"ATUNCOLLA","Rural 1",168,88]
[89,"ATUNCOLLA","JURIAPATA","3938649","VIRGEN DE ASUNCION","Inicial  Prog No Escolariz","Educación Básica Regular      ","A1  - Pública - Sector Educación                                  ",8,"ATUNCOLLA","Rural",192,89]
[90,"ATUNCOLLA","YANAMOCCO","2051503","YANAMOCCO","Inicial  Prog No Escolariz","Educación Básica Regular      ","A1  - Pública - Sector Educación                                  ",10,"ATUNCOLLA","Rural",240,90]
[91,"CAPACHICA","SAN CRISTOBAL","3917314","ALTO CRISTAL","Inicial  Prog No Escolariz","Educación Básica Regular      ","A1  - Pública - Sector Educación                                  ",9,"CAPACHICA","Rural",216,91]
[92,"CAPACHICA","CAPANO","3870439","CAPANO","Inicial  Prog No Escolariz","Educación Básica Regular      ","A1  - Pública - Sector Educación                                  ",11,"CAPACHICA","Rural",264,92]
[93,"CAPACHICA","CARMEN","3932286","CARMEN","Inicial  Prog No Escolariz","Educación Básica Regular      ","A1  - Pública - Sector Educación                                  ",8,"CAPACHICA","Rural",192,93]
[94,"CAPACHICA","CCOLLPA","2032516","CCOLLPA","Inicial  Prog No Escolariz","Educación Básica Regular      ","A1  - Pública - Sector Educación                                  ",7,"CAPACHICA","Rural",168,94]
[95,"CAPACHICA","CCOTOS","2032518","CCOTOS I","Inicial  Prog No Escolariz","Educación Básica Regular      ","A1  - Pública - Sector Educación                                  ",10,"CAPACHICA","Rural",240,95]
[96,"CAPACHICA","CHILLORA","2050701","CHILLORA","Inicial  Prog No Escolariz","Educación Básica Regular      ","A1  - Pública - Sector Educación                                  ",6,"CAPACHICA","Rural",144,96]
[97,"CAPACHICA","ESCALLANI","2032513","ESCALLANI","Inicial  Prog No Escolariz","Educación Básica Regular      ","A1  - Pública - Sector Educación                                  ",6,"CAPACHICA","Rural",144,97]
[98,"CAPACHICA","ESCALLANI","2032512","ESCALLANI CENTRAL","Inicial  Prog No Escolariz","Educación Básica Regular      ","A1  - Pública - Sector Educación                                  ",5,"CAPACHICA","Rural",120,98]
[99,"CAPACHICA","HILATA","2050007","HILATA A","Inicial  Prog No Escolariz","Educación Básica Regular      ","A1  - Pública - Sector Educación                                  ",12,"CAPACHICA","Rural",288,99]
[100,"CAPACHICA","HUAREJON","3932284","HUAREJON","Inicial  Prog No Escolariz","Educación Básica Regular      ","A1  - Pública - Sector Educación                                  ",6,"CAPACHICA","Rural",144,100]
[101,"CAPACHICA","CAPANO","2049604","HUERTANO","Inicial  Prog No Escolariz","Educación Básica Regular      ","A1  - Pública - Sector Educación                                  ",6,{"$f":"+B322","v":"CAPACHICA"},"Rural",{"$f":"+IF(K322=\"Rural\",I322*2*12,IF(K322=\"Rural 1\",I322*3.5*12,IF(K322=\"Rural 2\",I322*3*12,IF(K322=\"Rural 3\",I322*2.5*12,IF(K322=\"Urbana\",I322*1.6*12,IF(K322=\"Urbana 1\",I322*1.3*12,0))))))","v":144},101]
[102,"CAPACHICA","CAPANO TOCTORO","2032515","JAJANRA","Inicial  Prog No Escolariz","Educación Básica Regular      ","A1  - Pública - Sector Educación                                  ",9,"CAPACHICA","Rural",216,102]
[103,"CAPACHICA","YAPURA","2032524","MIRAFLORES DE YAPURA","Inicial  Prog No Escolariz","Educación Básica Regular      ","A1  - Pública - Sector Educación                                  ",4,"CAPACHICA","Rural 1",168,103]
[104,"CAPACHICA","PARAMIS CHICO","2050009","PARAMIS","Inicial  Prog No Escolariz","Educación Básica Regular      ","A1  - Pública - Sector Educación                                  ",8,"CAPACHICA","Rural",192,104]
[105,"CAPACHICA","HILATA","2032523","SALLALLIN","Inicial  Prog No Escolariz","Educación Básica Regular      ","A1  - Pública - Sector Educación                                  ",6,"CAPACHICA","Rural",144,{"$f":"+A326","v":105}]
[106,"CAPACHICA","SAN CRISTOBAL","2049614","SAN CRISTOBAL","Inicial  Prog No Escolariz","Educación Básica Regular      ","A1  - Pública - Sector Educación                                  ",8,"CAPACHICA","Rural",192,106]
[107,"CAPACHICA","SANTA MARIA","2032521","SANTA MARIA CAMPIN","Inicial  Prog No Escolariz","Educación Básica Regular      ","A1  - Pública - Sector Educación                                  ",7,"CAPACHICA","Rural",168,107]
[108,"CAPACHICA","SIALE","3885212","SIALE","Inicial  Prog No Escolariz","Educación Básica Regular      ","A1  - Pública - Sector Educación                                  ",5,"CAPACHICA","Rural",120,108]
[109,"CAPACHICA","SIALE","2050002","SIALE","Inicial  Prog No Escolariz","Educación Básica Regular      ","A1  - Pública - Sector Educación                                  ",9,"CAPACHICA","Rural",216,109]
[110,"CAPACHICA","SILACACHI","2049602","SILICACHI","Inicial  Prog No Escolariz","Educación Básica Regular      ","A1  - Pública - Sector Educación                                  ",5,"CAPACHICA","Rural",120,110]
[111,"CAPACHICA","HILATA","2032517","UMASUYO","Inicial  Prog No Escolariz","Educación Básica Regular      ","A1  - Pública - Sector Educación                                  ",9,"CAPACHICA","Rural",216,111]
[112,"CAPACHICA","YANACACO","2032520","YANACACO","Inicial  Prog No Escolariz","Educación Básica Regular      ","A1  - Pública - Sector Educación                                  ",6,"CAPACHICA","Rural",144,112]
[113,"CHUCUITO","HUAIRAPATA","3870428","ARICURA","Inicial  Prog No Escolariz","Educación Básica Regular      ","A1  - Pública - Sector Educación                                  ",3,"CHUCUITO","Rural 1",126,113]
[114,"CHUCUITO","BARCO","2063701","BARCO","Inicial  Prog No Escolariz","Educación Básica Regular      ","A1  - Pública - Sector Educación                                  ",8,"CHUCUITO","Rural",192,114]
[115,"CHUCUITO","BARCO","2067802","BARCO","Inicial  Prog No Escolariz","Educación Básica Regular      ","A1  - Pública - Sector Educación                                  ",10,"CHUCUITO","Rural",240,115]
[116,"CHUCUITO","BOSQUE","2063715","BOSQUE","Inicial  Prog No Escolariz","Educación Básica Regular      ","A1  - Pública - Sector Educación                                  ",3,"CHUCUITO","Rural 1",126,116]
[117,"CHUCUITO","CAMATA","2070505","CAMATA","Inicial  Prog No Escolariz","Educación Básica Regular      ","A1  - Pública - Sector Educación                                  ",8,"CHUCUITO","Rural",192,117]
[118,"CHUCUITO","CHECAMAYA","3937894","CHECAMAYA","Inicial  Prog No Escolariz","Educación Básica Regular      ","A1  - Pública - Sector Educación                                  ",6,"CHUCUITO","Rural",144,118]
[119,"CHUCUITO","CHINCHERA","2067826","CHINCHERA","Inicial  Prog No Escolariz","Educación Básica Regular      ","A1  - Pública - Sector Educación                                  ",7,"CHUCUITO","Urbana",134.4,119]
[120,"CHUCUITO","CHINCHERA","2063726","CHINCHERA","Inicial  Prog No Escolariz","Educación Básica Regular      ","A1  - Pública - Sector Educación                                  ",10,"CHUCUITO","Urbana",192,120]
[121,"CHUCUITO","CHINCHERA","2067805","CHINCHERA CENTRAL","Inicial  Prog No Escolariz","Educación Básica Regular      ","A1  - Pública - Sector Educación                                  ",8,"CHUCUITO","Urbana",153.60000000000002,121]
[122,"CHUCUITO","CHURO PAMPA","2063720","CHURO PAMPA","Inicial  Prog No Escolariz","Educación Básica Regular      ","A1  - Pública - Sector Educación                                  ",3,"CHUCUITO","Rural 1",126,122]
[123,"CHUCUITO","CONCACHI","2068602","CONCACHI","Inicial  Prog No Escolariz","Educación Básica Regular      ","A1  - Pública - Sector Educación                                  ",9,"CHUCUITO","Rural",216,123]
[124,"CHUCUITO","CONCACHI","2063706","CONCACHI II","Inicial  Prog No Escolariz","Educación Básica Regular      ","A1  - Pública - Sector Educación                                  ",5,"CHUCUITO","Rural",120,124]
[125,"CHUCUITO","CUSIPATA","2067801","CUSIPATA","Inicial  Prog No Escolariz","Educación Básica Regular      ","A1  - Pública - Sector Educación                                  ",10,"CHUCUITO","Rural",240,125]
[126,"CHUCUITO","HUANCARANE","2067831","HUANCARANI","Inicial  Prog No Escolariz","Educación Básica Regular      ","A1  - Pública - Sector Educación                                  ",4,"CHUCUITO","Rural 1",168,126]
[127,"CHUCUITO","HUAIRAPATA","3932276","HUAYRAPATA","Inicial  Prog No Escolariz","Educación Básica Regular      ","A1  - Pública - Sector Educación                                  ",6,"CHUCUITO","Rural",144,127]
[128,"CHUCUITO","ICHU RAYA","2070518","ICHU RAYA","Inicial  Prog No Escolariz","Educación Básica Regular      ","A1  - Pública - Sector Educación                                  ",3,"CHUCUITO","Rural 1",126,128]
[129,"CHUCUITO","ICHU RAYA","2070501","ICHU RAYA","Inicial  Prog No Escolariz","Educación Básica Regular      ","A1  - Pública - Sector Educación                                  ",7,"CHUCUITO","Rural",168,129]
[130,"CHUCUITO","INQUINCHU","2063722","INQUINCHU","Inicial  Prog No Escolariz","Educación Básica Regular      ","A1  - Pública - Sector Educación                                  ",3,"CHUCUITO","Rural 1",126,130]
[131,"CHUCUITO","COCHIRAYA","3870429","JISKA COCHIRAYA","Inicial  Prog No Escolariz","Educación Básica Regular      ","A1  - Pública - Sector Educación                                  ",3,"CHUCUITO","Rural 1",126,131]
[132,"CHUCUITO","CALLANCA","3947705","KALACOTA","Inicial  Prog No Escolariz","Educación Básica Regular      ","A1  - Pública - Sector Educación                                  ",4,"CHUCUITO","Rural 1",168,132]
[133,"CHUCUITO","BARRIO SANTA BARBARA","3947715","NIÑO DE PRAGA","Inicial  Prog No Escolariz","Educación Básica Regular      ","A1  - Pública - Sector Educación                                  ",10,"CHUCUITO","Urbana",192,133]
[134,"CHUCUITO","OCCOPAMPA INCUILAYA","3932257","OCCOPAMPA","Inicial  Prog No Escolariz","Educación Básica Regular      ","A1  - Pública - Sector Educación                                  ",8,"CHUCUITO","Rural",192,134]
[135,"CHUCUITO","PARINA","3932275","PARINA","Inicial  Prog No Escolariz","Educación Básica Regular      ","A1  - Pública - Sector Educación                                  ",7,"CHUCUITO","Urbana",134.4,135]
[136,"CHUCUITO","PERKA","2063724","PERKA NORTE","Inicial  Prog No Escolariz","Educación Básica Regular      ","A1  - Pública - Sector Educación                                  ",3,"CHUCUITO","Rural 1",126,136]
[137,"CHUCUITO","POTOJANI CHICO","2068610","POTOJANI CHICO","Inicial  Prog No Escolariz","Educación Básica Regular      ","A1  - Pública - Sector Educación                                  ",9,"CHUCUITO","Rural",216,137]
[138,"CHUCUITO","POTOJANI GRANDE","2068608","POTOJANI GRANDE I","Inicial  Prog No Escolariz","Educación Básica Regular      ","A1  - Pública - Sector Educación                                  ",8,"CHUCUITO","Rural",192,138]
[139,"CHUCUITO","PATOJANI GRANDE","2068615","POTOJANI GRANDE II","Inicial  Prog No Escolariz","Educación Básica Regular      ","A1  - Pública - Sector Educación                                  ",7,"CHUCUITO","Rural",168,139]
[140,"CHUCUITO","PUCANI","2067112","PUCANI","Inicial  Prog No Escolariz","Educación Básica Regular      ","A1  - Pública - Sector Educación                                  ",5,"CHUCUITO","Rural",120,140]
[141,"CHUCUITO","PIRAPI","3916576","QANTATI URURI","Inicial  Prog No Escolariz","Educación Básica Regular      ","A1  - Pública - Sector Educación                                  ",7,"CHUCUITO","Rural",168,141]
[142,"CHUCUITO","SANTA BARBARA","2070516","SANTA BARBARA","Inicial  Prog No Escolariz","Educación Básica Regular      ","A1  - Pública - Sector Educación                                  ",10,"CHUCUITO","Urbana",192,142]
[143,"CHUCUITO","TAJQUINA","2067113","TAJQUINA","Inicial  Prog No Escolariz","Educación Básica Regular      ","A1  - Pública - Sector Educación                                  ",7,"CHUCUITO","Rural",168,143]
[144,"CHUCUITO","TAJQUINA","2068603","TAJQUINA","Inicial  Prog No Escolariz","Educación Básica Regular      ","A1  - Pública - Sector Educación                                  ",9,"CHUCUITO","Rural",216,144]
[145,"COATA","ALMOZANCHE","3884999","ALMOZANCHE","Inicial  Prog No Escolariz","Educación Básica Regular      ","A1  - Pública - Sector Educación                                  ",7,"COATA","Rural",168,145]
[146,"COATA","ACCOPATA","2048118","CHINCHE","Inicial  Prog No Escolariz","Educación Básica Regular      ","A1  - Pública - Sector Educación                                  ",9,"COATA","Rural",216,146]
[147,"COATA","COLLANA LOJERA","2048828","COLLANA LOJERA","Inicial  Prog No Escolariz","Educación Básica Regular      ","A1  - Pública - Sector Educación                                  ",8,"COATA","Rural",192,147]
[148,"COATA","JOCHI SAN FRANCISCO","3917319","JOCHI","Inicial  Prog No Escolariz","Educación Básica Regular      ","A1  - Pública - Sector Educación                                  ",5,"COATA","Rural 1",210,148]
[149,"COATA","POJSIN CARATA","3937892","LAS HORMIGUITAS","Inicial  Prog No Escolariz","Educación Básica Regular      ","A1  - Pública - Sector Educación                                  ",8,"COATA","Rural",192,149]
[150,"COATA","PUTUCUNI PATA","3941370","LOS BALSERITOS","Inicial  Prog No Escolariz","Educación Básica Regular      ","A1  - Pública - Sector Educación                                  ",7,"COATA","Rural",168,150]
[151,"COATA","UQUISILLA","3932956","MI CASITA","Inicial  Prog No Escolariz","Educación Básica Regular      ","A1  - Pública - Sector Educación                                  ",7,"COATA","Rural",168,151]
[152,"COATA","SUCASCO","2048829","MISTICACHI","Inicial  Prog No Escolariz","Educación Básica Regular      ","A1  - Pública - Sector Educación                                  ",9,"COATA","Urbana",172.8,152]
[153,"COATA","SANTA CRUZ","3926416","MUNAY TIKA","Inicial  Prog No Escolariz","Educación Básica Regular      ","A1  - Pública - Sector Educación                                  ",7,"COATA","Rural",168,153]
[154,"COATA","CARATA","3937891","MUSUQ T'IKA","Inicial  Prog No Escolariz","Educación Básica Regular      ","A1  - Pública - Sector Educación                                  ",8,"COATA","Rural",192,154]
[155,"COATA","SUCASCO","3932955","NUEVA BELLAVISTA","Inicial  Prog No Escolariz","Educación Básica Regular      ","A1  - Pública - Sector Educación                                  ",7,"COATA","Urbana",134.4,155]
[156,"COATA","LLUCO","3917316","PUJLLAY WASI","Inicial  Prog No Escolariz","Educación Básica Regular      ","A1  - Pública - Sector Educación                                  ",7,"COATA","Rural",168,156]
[157,"COATA","MUNOS","3926415","PUKLLAY WASI","Inicial  Prog No Escolariz","Educación Básica Regular      ","A1  - Pública - Sector Educación                                  ",8,"COATA","Rural",192,157]
[158,"COATA","SORAZA","2048831","SORAZA","Inicial  Prog No Escolariz","Educación Básica Regular      ","A1  - Pública - Sector Educación                                  ",6,"COATA","Rural",144,158]
[159,"COATA","TARIZANI","2048120","TARIZANI","Inicial  Prog No Escolariz","Educación Básica Regular      ","A1  - Pública - Sector Educación                                  ",7,"COATA","Rural",168,159]
[160,"HUATA","YASIN","3937890","HUELLITAS DE YASIN","Inicial  Prog No Escolariz","Educación Básica Regular      ","A1  - Pública - Sector Educación                                  ",9,"HUATA","Rural",216,160]
[161,"HUATA","QUIVILLACA","2047313","JESUS DE PRAGA","Inicial  Prog No Escolariz","Educación Básica Regular      ","A1  - Pública - Sector Educación                                  ",6,"HUATA","Rural",144,161]
[162,"HUATA","VISCACHANI","3947758","MUNAY RIJCHARIY","Inicial  Prog No Escolariz","Educación Básica Regular      ","A1  - Pública - Sector Educación                                  ",5,"HUATA","Rural",120,162]
[163,"HUATA","FAON","2047312","TUFRE CHAQUI","Inicial  Prog No Escolariz","Educación Básica Regular      ","A1  - Pública - Sector Educación                                  ",7,"HUATA","Rural",168,163]
[164,"MAÑAZO","AÑAZANI","2041620","AÑAZANI","Inicial  Prog No Escolariz","Educación Básica Regular      ","A1  - Pública - Sector Educación                                  ",9,"MAÑAZO","Rural",216,164]
[165,"MAÑAZO","CANLLACOLLO","3932952","CANLLACOLLO","Inicial  Prog No Escolariz","Educación Básica Regular      ","A1  - Pública - Sector Educación                                  ",5,{"$f":"+B386","v":"MAÑAZO"},"Rural",{"$f":"+IF(K386=\"Rural\",I386*2*12,IF(K386=\"Rural 1\",I386*3.5*12,IF(K386=\"Rural 2\",I386*3*12,IF(K386=\"Rural 3\",I386*2.5*12,IF(K386=\"Urbana\",I386*1.6*12,IF(K386=\"Urbana 1\",I386*1.3*12,0))))))","v":120},165]
[166,"MAÑAZO","COLLPANI","2040801","COLLPANI","Inicial  Prog No Escolariz","Educación Básica Regular      ","A1  - Pública - Sector Educación                                  ",10,"MAÑAZO","Rural",240,166]
[167,"MAÑAZO","CONAVIRI","2040810","CONAVIRI","Inicial  Prog No Escolariz","Educación Básica Regular      ","A1  - Pública - Sector Educación                                  ",3,"MAÑAZO","Rural 1",126,167]
[168,"MAÑAZO","AÑAZANI","2040811","CRECIENDO JUNTOS","Inicial  Prog No Escolariz","Educación Básica Regular      ","A1  - Pública - Sector Educación                                  ",7,"MAÑAZO","Rural",168,168]
[169,"MAÑAZO","ESTACACHI","2040803","ESTACACHI","Inicial  Prog No Escolariz","Educación Básica Regular      ","A1  - Pública - Sector Educación                                  ",4,"MAÑAZO","Rural 1",168,{"$f":"+A390","v":169}]
[170,"MAÑAZO","CANLLACOLLO","3947052","GOTITAS DE CRISTAL","Inicial  Prog No Escolariz","Educación Básica Regular      ","A1  - Pública - Sector Educación                                  ",11,"MAÑAZO","Rural",264,170]
[171,"MAÑAZO","MAÑAZO","3917320","GOTITAS DE FE","Inicial  Prog No Escolariz","Educación Básica Regular      ","A1  - Pública - Sector Educación                                  ",11,"MAÑAZO","Urbana",211.20000000000002,171]
[172,"MAÑAZO","CARRETERA PANAMERICA","3947711","GOTITAS DE VIDA","Inicial  Prog No Escolariz","Educación Básica Regular      ","A1  - Pública - Sector Educación                                  ",12,"MAÑAZO","Urbana",230.40000000000003,172]
[173,"MAÑAZO","JAHUASQUIPA","2041625","JAHUASQUIPA","Inicial  Prog No Escolariz","Educación Básica Regular      ","A1  - Pública - Sector Educación                                  ",9,"MAÑAZO","Rural",216,173]
[174,"MAÑAZO","HACIENDA CANLLACCOLLO","2041626","MAXIPATA","Inicial  Prog No Escolariz","Educación Básica Regular      ","A1  - Pública - Sector Educación                                  ",11,"MAÑAZO","Rural",264,174]
[175,"MAÑAZO","CENTRAL","3947712","SEMILLAS DE FE","Inicial  Prog No Escolariz","Educación Básica Regular      ","A1  - Pública - Sector Educación                                  ",11,"MAÑAZO","Urbana",211.20000000000002,175]
[176,"MAÑAZO","TOTORANI","2041627","TOTORANI","Inicial  Prog No Escolariz","Educación Básica Regular      ","A1  - Pública - Sector Educación                                  ",8,"MAÑAZO","Rural",192,176]
[177,"PAUCARCOLLA","ANEXO CORTE","2052313","ANEXO CORTE ESTACION","Inicial  Prog No Escolariz","Educación Básica Regular      ","A1  - Pública - Sector Educación                                  ",7,"PAUCARCOLLA","Rural",168,177]
[178,"PAUCARCOLLA","CHULARA","3932277","CARAMELITOS","Inicial  Prog No Escolariz","Educación Básica Regular      ","A1  - Pública - Sector Educación                                  ",11,"PAUCARCOLLA","Rural",264,178]
[179,"PAUCARCOLLA","CHULLARA","2052316","CHULLARA","Inicial  Prog No Escolariz","Educación Básica Regular      ","A1  - Pública - Sector Educación                                  ",7,"PAUCARCOLLA","Rural",168,179]
[180,"PAUCARCOLLA","CORTE ESTACION","3917321","LAS CARMELITAS","Inicial  Prog No Escolariz","Educación Básica Regular      ","A1  - Pública - Sector Educación                                  ",9,"PAUCARCOLLA","Rural",216,180]
[181,"PAUCARCOLLA","SAN JOSE DE COLLANA","2052317","SAN JOSE DE COLLANA","Inicial  Prog No Escolariz","Educación Básica Regular      ","A1  - Pública - Sector Educación                                  ",3,"PAUCARCOLLA","Rural 1",126,181]
[182,"PAUCARCOLLA","ILPAMAYO PATA","2052318","SANKAYO","Inicial  Prog No Escolariz","Educación Básica Regular      ","A1  - Pública - Sector Educación                                  ",6,"PAUCARCOLLA","Rural",144,182]
[183,"PAUCARCOLLA","SUCAIRE/SUCARI","3947756","SONRISITAS","Inicial  Prog No Escolariz","Educación Básica Regular      ","A1  - Pública - Sector Educación                                  ",6,"PAUCARCOLLA","Rural",144,183]
[184,"PICHACANI","ANGOSTURA","2057210","ANGOSTURA","Inicial  Prog No Escolariz","Educación Básica Regular      ","A1  - Pública - Sector Educación                                  ",4,"PICHACANI","Rural 1",168,184]
[185,"PICHACANI","ANTAJAHUI","2055603","ANTAJAHUI","Inicial  Prog No Escolariz","Educación Básica Regular      ","A1  - Pública - Sector Educación                                  ",5,"PICHACANI","Rural",120,185]
[186,"PICHACANI","AQUECHIA","2057202","AQUECHIA","Inicial  Prog No Escolariz","Educación Básica Regular      ","A1  - Pública - Sector Educación                                  ",5,"PICHACANI","Rural",120,186]
[187,"PICHACANI","CARUCAYA","2057207","CARUCAYA","Inicial  Prog No Escolariz","Educación Básica Regular      ","A1  - Pública - Sector Educación                                  ",6,"PICHACANI","Rural",144,187]
[188,"PICHACANI","CHUNCARA","2055604","CHUNCARA","Inicial  Prog No Escolariz","Educación Básica Regular      ","A1  - Pública - Sector Educación                                  ",8,"PICHACANI","Rural",192,188]
[189,"PICHACANI","CUTIMBO","2057211","CUTIMBO","Inicial  Prog No Escolariz","Educación Básica Regular      ","A1  - Pública - Sector Educación                                  ",5,"PICHACANI","Rural",120,189]
[190,"PICHACANI","CATACORANI","2056424","DULCE AMANECER","Inicial  Prog No Escolariz","Educación Básica Regular      ","A1  - Pública - Sector Educación                                  ",7,"PICHACANI","Rural",168,190]
[191,"PICHACANI","ANCCACCA","2056418","DULCES SUEÑOS","Inicial  Prog No Escolariz","Educación Básica Regular      ","A1  - Pública - Sector Educación                                  ",7,"PICHACANI","Rural",168,191]
[192,"PICHACANI","SOQUESANI","3870447","ESTRELLITAS","Inicial  Prog No Escolariz","Educación Básica Regular      ","A1  - Pública - Sector Educación                                  ",12,"PICHACANI","Rural",288,192]
[193,"PICHACANI","ANCCACCA","2056423","HUELLITAS","Inicial  Prog No Escolariz","Educación Básica Regular      ","A1  - Pública - Sector Educación                                  ",8,"PICHACANI","Rural",192,193]
[194,"PICHACANI","ANCCACA","3932278","HUICHINCA","Inicial  Prog No Escolariz","Educación Básica Regular      ","A1  - Pública - Sector Educación                                  ",6,"PICHACANI","Rural",144,194]
[195,"PICHACANI","ISCA SOQUESANI","2057220","ISCA SOQUESANI","Inicial  Prog No Escolariz","Educación Básica Regular      ","A1  - Pública - Sector Educación                                  ",8,"PICHACANI","Rural",192,195]
[196,"PICHACANI","LORIPONGO","2057205","LORIPONGO","Inicial  Prog No Escolariz","Educación Básica Regular      ","A1  - Pública - Sector Educación                                  ",5,"PICHACANI","Rural",120,196]
[197,"PICHACANI","CHUNCARA","3870446","LOS ANGELITOS","Inicial  Prog No Escolariz","Educación Básica Regular      ","A1  - Pública - Sector Educación                                  ",10,"PICHACANI","Rural",240,197]
[198,"PICHACANI","MALLKOAMAYO","3916579","MALCOMAYO","Inicial  Prog No Escolariz","Educación Básica Regular      ","A1  - Pública - Sector Educación                                  ",4,"PICHACANI","Rural 1",168,198]
[199,"PICHACANI","LLANKANI","2056426","MIS PASITOS","Inicial  Prog No Escolariz","Educación Básica Regular      ","A1  - Pública - Sector Educación                                  ",12,"PICHACANI","Rural",288,199]
[200,"PICHACANI","NAZAPARCO","2057208","NAZAPARCO","Inicial  Prog No Escolariz","Educación Básica Regular      ","A1  - Pública - Sector Educación                                  ",4,"PICHACANI","Rural 1",168,200]
[201,"PICHACANI","CHUNCARA","2056419","NIÑO JESUS","Inicial  Prog No Escolariz","Educación Básica Regular      ","A1  - Pública - Sector Educación                                  ",9,"PICHACANI","Rural",216,201]
[202,"PICHACANI","ÑUÑUMARCA","2055605","ÑUÑUMARCA","Inicial  Prog No Escolariz","Educación Básica Regular      ","A1  - Pública - Sector Educación                                  ",3,"PICHACANI","Rural 1",126,202]
[203,"PICHACANI","MANIDE","3949367","PAMPA T'IKA","Inicial  Prog No Escolariz","Educación Básica Regular      ","A1  - Pública - Sector Educación                                  ",17,"PICHACANI","Rural",408,203]
[204,"PICHACANI","HUACOCHULLO","3932273","SEMILLAS DE VIDA","Inicial  Prog No Escolariz","Educación Básica Regular      ","A1  - Pública - Sector Educación                                  ",8,"PICHACANI","Rural",192,204]
[205,"PICHACANI","SOQUESANI","2056421","SEMILLITAS","Inicial  Prog No Escolariz","Educación Básica Regular      ","A1  - Pública - Sector Educación                                  ",18,"PICHACANI","Rural",432,205]
[206,"PICHACANI","SUPUCACHI","2055608","SUPUCACHI","Inicial  Prog No Escolariz","Educación Básica Regular      ","A1  - Pública - Sector Educación                                  ",4,"PICHACANI","Rural 1",168,206]
[207,"PICHACANI","TOLAMARCA","3870448","TOLAMARCA","Inicial  Prog No Escolariz","Educación Básica Regular      ","A1  - Pública - Sector Educación                                  ",6,"PICHACANI","Rural",144,207]
[208,"PICHACANI","HACIENDA VILUYO","3917323","VILUYO","Inicial  Prog No Escolariz","Educación Básica Regular      ","A1  - Pública - Sector Educación                                  ",7,"PICHACANI","Rural",168,208]
[209,"PLATERIA","HUENCALLA","2064507","HUENCALLA","Inicial  Prog No Escolariz","Educación Básica Regular      ","A1  - Pública - Sector Educación                                  ",7,"PLATERIA","Rural",168,209]
[210,"PLATERIA","JACHA TITILACA","2064508","JACHA TITILACA","Inicial  Prog No Escolariz","Educación Básica Regular      ","A1  - Pública - Sector Educación                                  ",5,"PLATERIA","Rural",120,210]
[211,"PLATERIA","PALLALLA PAMPA","3932280","MISK'I PANQARITA","Inicial  Prog No Escolariz","Educación Básica Regular      ","A1  - Pública - Sector Educación                                  ",5,"PLATERIA","Rural",120,211]
[212,"PLATERIA","PALLALLA","2064511","PALLALLA","Inicial  Prog No Escolariz","Educación Básica Regular      ","A1  - Pública - Sector Educación                                  ",8,"PLATERIA","Rural",192,212]
[213,"PLATERIA","PERCA","2064518","PERKA CHUÑAHUI","Inicial  Prog No Escolariz","Educación Básica Regular      ","A1  - Pública - Sector Educación                                  ",3,"PLATERIA","Rural 1",126,213]
[214,"PLATERIA","PHUTINI","3916585","PHUTINI CCACA","Inicial  Prog No Escolariz","Educación Básica Regular      ","A1  - Pública - Sector Educación                                  ",11,"PLATERIA","Rural",264,214]
[215,"PLATERIA","PATOJANI CHICO","2068607","POTOJANI CHICO","Inicial  Prog No Escolariz","Educación Básica Regular      ","A1  - Pública - Sector Educación                                  ",4,"PLATERIA","Rural 1",168,215]
[216,"PLATERIA","RINCONADA","2064501","RINCONADA","Inicial  Prog No Escolariz","Educación Básica Regular      ","A1  - Pública - Sector Educación                                  ",9,"PLATERIA","Rural",216,216]
[217,"PLATERIA","SIHUECANI","3922313","SIHUECANI","Inicial  Prog No Escolariz","Educación Básica Regular      ","A1  - Pública - Sector Educación                                  ",6,"PLATERIA","Rural",144,217]
[218,"PLATERIA","TITILACA","2064506","TITILACA","Inicial  Prog No Escolariz","Educación Básica Regular      ","A1  - Pública - Sector Educación                                  ",6,"PLATERIA","Rural",144,218]
[219,"PLATERIA","TORASAYA","2064510","TORASAYA","Inicial  Prog No Escolariz","Educación Básica Regular      ","A1  - Pública - Sector Educación                                  ",4,"PLATERIA","Rural 1",168,219]
[220,"PLATERIA","TOTOJIRA","3932279","TOTOJIRA","Inicial  Prog No Escolariz","Educación Básica Regular      ","A1  - Pública - Sector Educación                                  ",4,"PLATERIA","Rural 1",168,220]
[221,"PLATERIA","WILQUE","2064516","WILQUE","Inicial  Prog No Escolariz","Educación Básica Regular      ","A1  - Pública - Sector Educación                                  ",5,"PLATERIA","Rural",120,221]
[222,"PUNO","ALTO PUNO","2037402","27 DE JUNIO","Inicial  Prog No Escolariz","Educación Básica Regular      ","A1  - Pública - Sector Educación                                  ",13,"PUNO","Urbana",249.60000000000002,222]
[223,"PUNO","4 DE NOVIEMBRE","2038920","4 DE NOVIEMBRE","Inicial  Prog No Escolariz","Educación Básica Regular      ","A1  - Pública - Sector Educación                                  ",7,"PUNO","Urbana",134.4,223]
[224,"PUNO","PUNO","2038919","4 DE NOVIEMBRE","Inicial  Prog No Escolariz","Educación Básica Regular      ","A1  - Pública - Sector Educación                                  ",18,"PUNO","Urbana",345.6,224]
[225,"PUNO","4 DE NOVIEMBRE","2038922","4 DE NOVIEMBRE A","Inicial  Prog No Escolariz","Educación Básica Regular      ","A1  - Pública - Sector Educación                                  ",6,"PUNO","Urbana",115.20000000000002,225]
[226,"PUNO","PUNO","2034801","8 DE OCTUBRE","Inicial  Prog No Escolariz","Educación Básica Regular      ","A1  - Pública - Sector Educación                                  ",17,"PUNO","Urbana",326.40000000000003,226]
[227,"PUNO","ALTO BELLAVISTA","3947718","ALTO ALIANZA","Inicial  Prog No Escolariz","Educación Básica Regular      ","A1  - Pública - Sector Educación                                  ",9,"PUNO","Urbana",172.8,227]
[228,"PUNO","BELLAVISTA","3922311","ALTO BELLAVISTA","Inicial  Prog No Escolariz","Educación Básica Regular      ","A1  - Pública - Sector Educación                                  ",9,"PUNO","Urbana",172.8,228]
[229,"PUNO","PUNO","2036602","ALTO HUASCAR","Inicial  Prog No Escolariz","Educación Básica Regular      ","A1  - Pública - Sector Educación                                  ",13,{"$f":"+B450","v":"PUNO"},"Urbana",{"$f":"+IF(K450=\"Rural\",I450*2*12,IF(K450=\"Rural 1\",I450*3.5*12,IF(K450=\"Rural 2\",I450*3*12,IF(K450=\"Rural 3\",I450*2.5*12,IF(K450=\"Urbana\",I450*1.6*12,IF(K450=\"Urbana 1\",I450*1.3*12,0))))))","v":249.60000000000002},229]
[230,"PUNO","MANTO NORTE","3922310","ALTO SAN MARTIN","Inicial  Prog No Escolariz","Educación Básica Regular      ","A1  - Pública - Sector Educación                                  ",10,"PUNO","Urbana",192,230]
[231,"PUNO","ALTO SANTA ROSA","0114332","ALTO SANTA ROSA","Inicial  Prog No Escolariz","Educación Básica Regular      ","A1  - Pública - Sector Educación                                  ",3,"PUNO","Rural 1",126,231]
[232,"PUNO","BARRIO INDOAMERICA","3947716","AMERICANITOS","Inicial  Prog No Escolariz","Educación Básica Regular      ","A1  - Pública - Sector Educación                                  ",13,"PUNO","Urbana",249.60000000000002,232]
[233,"PUNO","ANDRES AVELINO CACERES","2036613","ANDRES AVELINO CACERES","Inicial  Prog No Escolariz","Educación Básica Regular      ","A1  - Pública - Sector Educación                                  ",8,"PUNO","Urbana",153.60000000000002,{"$f":"+A454","v":233}]
[234,"PUNO","PUNO","2036603","ANDRES AVELINO CACERES","Inicial  Prog No Escolariz","Educación Básica Regular      ","A1  - Pública - Sector Educación                                  ",13,"PUNO","Urbana",249.60000000000002,234]
[235,"PUNO","BELLAVISTA","3870422","ANGEL DIVINO","Inicial  Prog No Escolariz","Educación Básica Regular      ","A1  - Pública - Sector Educación                                  ",3,"PUNO","Rural 1",126,235]
[236,"PUNO","VILLA DEL LAGO","3947720","BABY GENUIS","Inicial  Prog No Escolariz","Educación Básica Regular      ","A1  - Pública - Sector Educación                                  ",9,"PUNO","Urbana",172.8,236]
[237,"PUNO","PUNO","2138708","BELLAVISTA","Inicial  Prog No Escolariz","Educación Básica Regular      ","A1  - Pública - Sector Educación                                  ",12,"PUNO","Urbana",230.40000000000003,237]
[238,"PUNO","PUNO","2033319","BELLAVISTA NOR ESTE","Inicial  Prog No Escolariz","Educación Básica Regular      ","A1  - Pública - Sector Educación                                  ",10,"PUNO","Urbana",192,238]
[239,"PUNO","PUNO","2035813","BELLAVISTA NOR-ESTE","Inicial  Prog No Escolariz","Educación Básica Regular      ","A1  - Pública - Sector Educación                                  ",9,"PUNO","Urbana",172.8,239]
[240,"PUNO","ALTO SAN MARTIN","3947767","BURBUJITAS","Inicial  Prog No Escolariz","Educación Básica Regular      ","A1  - Pública - Sector Educación                                  ",8,"PUNO","Urbana",153.60000000000002,240]
[241,"PUNO","CANCHARANI","2036605","CANCHARANI","Inicial  Prog No Escolariz","Educación Básica Regular      ","A1  - Pública - Sector Educación                                  ",5,"PUNO","Rural 1",210,241]
[242,"PUNO","ALTO BELLAVISTA","3947757","CANDELARIA HERRERA","Inicial  Prog No Escolariz","Educación Básica Regular      ","A1  - Pública - Sector Educación                                  ",11,"PUNO","Urbana",211.20000000000002,242]
[243,"PUNO","BARRIO RICARDO PALMA","3922324","CASITA DEL SABER","Inicial  Prog No Escolariz","Educación Básica Regular      ","A1  - Pública - Sector Educación                                  ",10,"PUNO","Urbana",192,243]
[244,"PUNO","CHANU CHANU ETAPA 1","2036618","CENTRAL CHANU CHANU","Inicial  Prog No Escolariz","Educación Básica Regular      ","A1  - Pública - Sector Educación                                  ",14,"PUNO","Urbana",268.8,244]
[245,"PUNO","PUNO","2036609","CHACARILLA ALTA","Inicial  Prog No Escolariz","Educación Básica Regular      ","A1  - Pública - Sector Educación                                  ",10,"PUNO","Urbana",192,245]
[246,"PUNO","CHANU CHANU","2038213","CHANU CHANU","Inicial  Prog No Escolariz","Educación Básica Regular      ","A1  - Pública - Sector Educación                                  ",6,"PUNO","Urbana",115.20000000000002,246]
[247,"PUNO","PUNO","2036611","CHANU CHANU","Inicial  Prog No Escolariz","Educación Básica Regular      ","A1  - Pública - Sector Educación                                  ",12,"PUNO","Urbana",230.40000000000003,247]
[248,"PUNO","PUNO","2039023","CORAZON DE JESUS","Inicial  Prog No Escolariz","Educación Básica Regular      ","A1  - Pública - Sector Educación                                  ",9,"PUNO","Urbana",172.8,248]
[249,"PUNO","RICARDO PALMA","3924643","EL MUNDO DE LOS NIÑOS","Inicial  Prog No Escolariz","Educación Básica Regular      ","A1  - Pública - Sector Educación                                  ",10,"PUNO","Urbana",192,249]
[250,"PUNO","URUS CHULLUNI","2035818","GAVIOTITAS","Inicial  Prog No Escolariz","Educación Básica Regular      ","A1  - Pública - Sector Educación                                  ",8,"PUNO","Rural",192,250]
[251,"PUNO","PUNO","2036615","HUASCAR","Inicial  Prog No Escolariz","Educación Básica Regular      ","A1  - Pública - Sector Educación                                  ",8,"PUNO","Urbana",153.60000000000002,251]
[252,"PUNO","PUNO","2034102","HUAYNA PUCARA","Inicial  Prog No Escolariz","Educación Básica Regular      ","A1  - Pública - Sector Educación                                  ",12,"PUNO","Urbana",230.40000000000003,252]
[253,"PUNO","HUERTA HUARAYA","3916572","HUERTA HUARAYA","Inicial  Prog No Escolariz","Educación Básica Regular      ","A1  - Pública - Sector Educación                                  ",4,"PUNO","Rural 1",168,253]
[254,"PUNO","PUNO","2038209","INDEPENDENCIA","Inicial  Prog No Escolariz","Educación Básica Regular      ","A1  - Pública - Sector Educación                                  ",9,"PUNO","Urbana",172.8,254]
[255,"PUNO","PUNO","2039018","INDEPENDENCIA A","Inicial  Prog No Escolariz","Educación Básica Regular      ","A1  - Pública - Sector Educación                                  ",7,"PUNO","Urbana",134.4,255]
[256,"PUNO","PUNO","2033317","INMACULADA CONCEPCION","Inicial  Prog No Escolariz","Educación Básica Regular      ","A1  - Pública - Sector Educación                                  ",11,"PUNO","Urbana",211.20000000000002,256]
[257,"PUNO","JAYLLIHUAYA","2034104","JAYLLIHUAYA","Inicial  Prog No Escolariz","Educación Básica Regular      ","A1  - Pública - Sector Educación                                  ",10,"PUNO","Urbana",192,257]
[258,"PUNO","SANTA ROSA","3922326","JORGE CHAVEZ","Inicial  Prog No Escolariz","Educación Básica Regular      ","A1  - Pública - Sector Educación                                  ",7,"PUNO","Urbana",134.4,258]
[259,"PUNO","PUNO","2033318","JOSE ANTONIO ENCINAS","Inicial  Prog No Escolariz","Educación Básica Regular      ","A1  - Pública - Sector Educación                                  ",13,"PUNO","Urbana",249.60000000000002,259]
[260,"PUNO","BARRIO LAYKAKOTA","3947708","JUGANDO APRENDO","Inicial  Prog No Escolariz","Educación Básica Regular      ","A1  - Pública - Sector Educación                                  ",6,"PUNO","Urbana",115.20000000000002,260]
[261,"PUNO","PUNO","2037409","LA UNION","Inicial  Prog No Escolariz","Educación Básica Regular      ","A1  - Pública - Sector Educación                                  ",10,"PUNO","Urbana",192,261]
[262,"PUNO","PUNO","2039703","LAS CRUCES","Inicial  Prog No Escolariz","Educación Básica Regular      ","A1  - Pública - Sector Educación                                  ",4,"PUNO","Rural 1",168,262]
[263,"PUNO","PUNO","2035812","LAS CRUCES","Inicial  Prog No Escolariz","Educación Básica Regular      ","A1  - Pública - Sector Educación                                  ",23,"PUNO","Urbana",441.6,263]
[264,"PUNO","PUNO","2035815","LAS MERCEDES","Inicial  Prog No Escolariz","Educación Básica Regular      ","A1  - Pública - Sector Educación                                  ",15,"PUNO","Urbana",288,264]
[265,"PUNO","8 DE OCTUBRE","3922320","LAS SEMILLITAS DE JESUS","Inicial  Prog No Escolariz","Educación Básica Regular      ","A1  - Pública - Sector Educación                                  ",11,"PUNO","Urbana",211.20000000000002,265]
[266,"PUNO","PUNO","2034113","LAYKAKOTA","Inicial  Prog No Escolariz","Educación Básica Regular      ","A1  - Pública - Sector Educación                                  ",14,"PUNO","Urbana",268.8,266]
[267,"PUNO","LEONCIO PRADO","2034812","LEONCIO PRADO","Inicial  Prog No Escolariz","Educación Básica Regular      ","A1  - Pública - Sector Educación                                  ",14,"PUNO","Urbana",268.8,267]
[268,"PUNO","MIRAFLORES","3947719","LOS ANGELES","Inicial  Prog No Escolariz","Educación Básica Regular      ","A1  - Pública - Sector Educación                                  ",9,"PUNO","Urbana",172.8,268]
[269,"PUNO","PUNO","2033313","LOS ANGELITOS","Inicial  Prog No Escolariz","Educación Básica Regular      ","A1  - Pública - Sector Educación                                  ",13,"PUNO","Urbana",249.60000000000002,269]
[270,"PUNO","ALTO BELLAVISTA","3947717","LOS CARACOLITOS","Inicial  Prog No Escolariz","Educación Básica Regular      ","A1  - Pública - Sector Educación                                  ",8,"PUNO","Urbana",153.60000000000002,270]
[271,"PUNO","MAGISTERIAL","3947707","LOS CARIÑOSITOS","Inicial  Prog No Escolariz","Educación Básica Regular      ","A1  - Pública - Sector Educación                                  ",6,"PUNO","Urbana",115.20000000000002,271]
[272,"PUNO","RICARDO PALMA","3922328","LOS CLAVELITOS","Inicial  Prog No Escolariz","Educación Básica Regular      ","A1  - Pública - Sector Educación                                  ",8,"PUNO","Urbana",153.60000000000002,272]
[273,"PUNO","BARRIO LAYKAKOTA","3947709","LUZ DE ESPERANZA","Inicial  Prog No Escolariz","Educación Básica Regular      ","A1  - Pública - Sector Educación                                  ",7,"PUNO","Urbana",134.4,273]
[274,"PUNO","UROS CCAPI CRUZ GRANDE","3947761","LUZ DEL SABER","Inicial  Prog No Escolariz","Educación Básica Regular      ","A1  - Pública - Sector Educación                                  ",4,"PUNO","Rural 1",168,274]
[275,"PUNO","PUNO","2035107","MACHALLATA","Inicial  Prog No Escolariz","Educación Básica Regular      ","A1  - Pública - Sector Educación                                  ",9,"PUNO","Urbana",172.8,275]
[276,"PUNO","PUNO","2037434","MANTO","Inicial  Prog No Escolariz","Educación Básica Regular      ","A1  - Pública - Sector Educación                                  ",8,"PUNO","Urbana",153.60000000000002,276]
[277,"PUNO","PUNO","2039020","MANTO A","Inicial  Prog No Escolariz","Educación Básica Regular      ","A1  - Pública - Sector Educación                                  ",6,"PUNO","Urbana",115.20000000000002,277]
[278,"PUNO","MANTO NORTE","2034807","MANTO NORTE","Inicial  Prog No Escolariz","Educación Básica Regular      ","A1  - Pública - Sector Educación                                  ",13,"PUNO","Urbana",249.60000000000002,278]
[279,"PUNO","MAGISTERIAL","3947706","MIS JUGUETES","Inicial  Prog No Escolariz","Educación Básica Regular      ","A1  - Pública - Sector Educación                                  ",6,"PUNO","Urbana",115.20000000000002,279]
[280,"PUNO","MIRAFLORES","3916563","MIS PEQUEÑOS ANGELITOS","Inicial  Prog No Escolariz","Educación Básica Regular      ","A1  - Pública - Sector Educación                                  ",7,"PUNO","Urbana",134.4,280]
[281,"PUNO","PUNO","2034110","MUNICIPAL PORTEÑO","Inicial  Prog No Escolariz","Educación Básica Regular      ","A1  - Pública - Sector Educación                                  ",16,"PUNO","Urbana",307.20000000000005,281]
[282,"PUNO","PUNO","3884995","NIÑO DE LA ESTRELLA","Inicial  Prog No Escolariz","Educación Básica Regular      ","A1  - Pública - Sector Educación                                  ",3,"PUNO","Rural 1",126,282]
[283,"PUNO","PUNO","2039021","NIÑO DE LA MISERICORDIA","Inicial  Prog No Escolariz","Educación Básica Regular      ","A1  - Pública - Sector Educación                                  ",8,"PUNO","Urbana",153.60000000000002,283]
[284,"PUNO","INDEPENDENCIA","2039016","NIÑO DIVINO","Inicial  Prog No Escolariz","Educación Básica Regular      ","A1  - Pública - Sector Educación                                  ",5,"PUNO","Rural 1",210,284]
[285,"PUNO","ALTO SANTA ROSA","3870423","NIÑO JESUSITO","Inicial  Prog No Escolariz","Educación Básica Regular      ","A1  - Pública - Sector Educación                                  ",4,"PUNO","Rural 1",168,285]
[286,"PUNO","BARRIO LLAVINI","3922319","NIÑOS DE JESUS","Inicial  Prog No Escolariz","Educación Básica Regular      ","A1  - Pública - Sector Educación                                  ",14,"PUNO","Urbana",268.8,286]
[287,"PUNO","JAYLLIHUAYA","3922322","NIÑOS INDIGOS","Inicial  Prog No Escolariz","Educación Básica Regular      ","A1  - Pública - Sector Educación                                  ",8,"PUNO","Urbana",153.60000000000002,287]
[288,"PUNO","RICARDO PALMA","3922312","NUEVA ALBORADA","Inicial  Prog No Escolariz","Educación Básica Regular      ","A1  - Pública - Sector Educación                                  ",6,"PUNO","Urbana",115.20000000000002,288]
[289,"PUNO","RICARDO PALMA","3922323","NUEVO HORIZONTE","Inicial  Prog No Escolariz","Educación Básica Regular      ","A1  - Pública - Sector Educación                                  ",9,"PUNO","Urbana",172.8,289]
[290,"PUNO","OJHERANI","2034101","OJHERANI","Inicial  Prog No Escolariz","Educación Básica Regular      ","A1  - Pública - Sector Educación                                  ",8,"PUNO","Rural",192,290]
[291,"PUNO","BELLAVISTA","3924642","PALMERITAS","Inicial  Prog No Escolariz","Educación Básica Regular      ","A1  - Pública - Sector Educación                                  ",10,"PUNO","Urbana",192,291]
[292,"PUNO","PUNO","2039001","PAMPILLA A","Inicial  Prog No Escolariz","Educación Básica Regular      ","A1  - Pública - Sector Educación                                  ",7,"PUNO","Urbana",134.4,292]
[293,"PUNO","PUNO","2035801","PAMPILLA A","Inicial  Prog No Escolariz","Educación Básica Regular      ","A1  - Pública - Sector Educación                                  ",14,{"$f":"+B514","v":"PUNO"},"Urbana",{"$f":"+IF(K514=\"Rural\",I514*2*12,IF(K514=\"Rural 1\",I514*3.5*12,IF(K514=\"Rural 2\",I514*3*12,IF(K514=\"Rural 3\",I514*2.5*12,IF(K514=\"Urbana\",I514*1.6*12,IF(K514=\"Urbana 1\",I514*1.3*12,0))))))","v":268.8},293]
[294,"PUNO","PUNO","2039002","PAMPILLA B","Inicial  Prog No Escolariz","Educación Básica Regular      ","A1  - Pública - Sector Educación                                  ",7,"PUNO","Urbana",134.4,294]
[295,"PUNO","PUNO","2035802","PAMPILLA B","Inicial  Prog No Escolariz","Educación Básica Regular      ","A1  - Pública - Sector Educación                                  ",30,"PUNO","Urbana",576,295]
[296,"PUNO","PUNO","2035809","PAMPILLA C","Inicial  Prog No Escolariz","Educación Básica Regular      ","A1  - Pública - Sector Educación                                  ",23,"PUNO","Urbana",441.6,296]
[297,"PUNO","PIURA PIURANI","2036617","PIRUAPIRUANI","Inicial  Prog No Escolariz","Educación Básica Regular      ","A1  - Pública - Sector Educación                                  ",19,"PUNO","Urbana",364.8,{"$f":"+A518","v":297}]
[298,"PUNO","PUNO","2033301","PORTEÑO","Inicial  Prog No Escolariz","Educación Básica Regular      ","A1  - Pública - Sector Educación                                  ",14,"PUNO","Urbana",268.8,298]
[299,"PUNO","PUNO","2039003","PORTEÑO A","Inicial  Prog No Escolariz","Educación Básica Regular      ","A1  - Pública - Sector Educación                                  ",8,"PUNO","Urbana",153.60000000000002,299]
[300,"PUNO","PUNO","2039004","PORTEÑO B","Inicial  Prog No Escolariz","Educación Básica Regular      ","A1  - Pública - Sector Educación                                  ",9,"PUNO","Urbana",172.8,300]
[301,"PUNO","PUNO","2034111","PROGRESO","Inicial  Prog No Escolariz","Educación Básica Regular      ","A1  - Pública - Sector Educación                                  ",11,"PUNO","Urbana",211.20000000000002,301]
[302,"PUNO","RANCHO PUNCO - SALCEDO","2034103","RANCHO PUNCO - SALCEDO","Inicial  Prog No Escolariz","Educación Básica Regular      ","A1  - Pública - Sector Educación                                  ",7,"PUNO","Urbana",134.4,302]
[303,"PUNO","PUNO","2034802","RICARDO PALMA","Inicial  Prog No Escolariz","Educación Básica Regular      ","A1  - Pública - Sector Educación                                  ",16,"PUNO","Urbana",307.20000000000005,303]
[304,"PUNO","PUNO","2033304","RIVERA DEL LAGO","Inicial  Prog No Escolariz","Educación Básica Regular      ","A1  - Pública - Sector Educación                                  ",16,"PUNO","Urbana",307.20000000000005,304]
[305,"PUNO","PUNO","2039008","SALCEDO","Inicial  Prog No Escolariz","Educación Básica Regular      ","A1  - Pública - Sector Educación                                  ",5,"PUNO","Rural 1",210,305]
[306,"PUNO","SAN ANTONIO","3870420","SAN ANTONIO DE PADUA A","Inicial  Prog No Escolariz","Educación Básica Regular      ","A1  - Pública - Sector Educación                                  ",3,"PUNO","Rural 1",126,306]
[307,"PUNO","SAN ANTONIO","3870421","SAN ANTONIO DE PADUA B","Inicial  Prog No Escolariz","Educación Básica Regular      ","A1  - Pública - Sector Educación                                  ",4,"PUNO","Rural 1",168,307]
[308,"PUNO","SALCEDO","3916575","SAN JUANITO","Inicial  Prog No Escolariz","Educación Básica Regular      ","A1  - Pública - Sector Educación                                  ",18,"PUNO","Urbana",345.6,308]
[309,"PUNO","MANTO CENTRAL","2033321","SAN LUIS DE ALBA","Inicial  Prog No Escolariz","Educación Básica Regular      ","A1  - Pública - Sector Educación                                  ",11,"PUNO","Urbana",211.20000000000002,309]
[310,"PUNO","PUNO","2038921","SAN MARTIN","Inicial  Prog No Escolariz","Educación Básica Regular      ","A1  - Pública - Sector Educación                                  ",6,"PUNO","Urbana",115.20000000000002,310]
[311,"PUNO","PUNO","2034803","SAN MARTIN","Inicial  Prog No Escolariz","Educación Básica Regular      ","A1  - Pública - Sector Educación                                  ",16,"PUNO","Urbana",307.20000000000005,311]
[312,"PUNO","MANTO","3922327","SAN MIGUEL","Inicial  Prog No Escolariz","Educación Básica Regular      ","A1  - Pública - Sector Educación                                  ",7,"PUNO","Urbana",134.4,312]
[313,"PUNO","SANTA CRUZ","2034811","SANTA CRUZ","Inicial  Prog No Escolariz","Educación Básica Regular      ","A1  - Pública - Sector Educación                                  ",16,"PUNO","Urbana",307.20000000000005,313]
[314,"PUNO","PUNO","2033309","SANTA ROSA","Inicial  Prog No Escolariz","Educación Básica Regular      ","A1  - Pública - Sector Educación                                  ",13,"PUNO","Urbana",249.60000000000002,314]
[315,"PUNO","ALTO SAN MARTIN","3947766","SANTA ROSA DE LIMA","Inicial  Prog No Escolariz","Educación Básica Regular      ","A1  - Pública - Sector Educación                                  ",8,"PUNO","Urbana",153.60000000000002,315]
[316,"PUNO","PUNO","2036601","SEÑOR DE HUANCA A","Inicial  Prog No Escolariz","Educación Básica Regular      ","A1  - Pública - Sector Educación                                  ",10,"PUNO","Urbana",192,316]
[317,"PUNO","ALTO PUNO","2037401","SEÑOR DE HUANCA B","Inicial  Prog No Escolariz","Educación Básica Regular      ","A1  - Pública - Sector Educación                                  ",13,"PUNO","Urbana",249.60000000000002,317]
[318,"PUNO","PUNO","2034105","SIMON BOLIVAR","Inicial  Prog No Escolariz","Educación Básica Regular      ","A1  - Pública - Sector Educación                                  ",9,"PUNO","Urbana",172.8,318]
[319,"PUNO","PUNO","2038915","SIMON BOLIVAR A","Inicial  Prog No Escolariz","Educación Básica Regular      ","A1  - Pública - Sector Educación                                  ",7,"PUNO","Urbana",134.4,319]
[320,"PUNO","PUNO","2038929","SIMON BOLIVAR B","Inicial  Prog No Escolariz","Educación Básica Regular      ","A1  - Pública - Sector Educación                                  ",7,"PUNO","Urbana",134.4,320]
[321,"PUNO","TUNUHUIRI","2037404","TUNUHUIRI","Inicial  Prog No Escolariz","Educación Básica Regular      ","A1  - Pública - Sector Educación                                  ",8,"PUNO","Rural",192,321]
[322,"PUNO","UROS CHULLUNI","2036619","UROS CHULLUNI","Inicial  Prog No Escolariz","Educación Básica Regular      ","A1  - Pública - Sector Educación                                  ",8,"PUNO","Rural",192,322]
[323,"PUNO","PUNO","2039007","VALLECITO A","Inicial  Prog No Escolariz","Educación Básica Regular      ","A1  - Pública - Sector Educación                                  ",7,"PUNO","Urbana",134.4,323]
[324,"PUNO","PUNO","2035106","VALLECITO B","Inicial  Prog No Escolariz","Educación Básica Regular      ","A1  - Pública - Sector Educación                                  ",15,"PUNO","Urbana",288,324]
[325,"PUNO","PUNO","2035817","VILLA FLORIDA","Inicial  Prog No Escolariz","Educación Básica Regular      ","A1  - Pública - Sector Educación                                  ",13,"PUNO","Urbana",249.60000000000002,325]
[326,"PUNO","PUNO","2033311","VILLA HERMOSA","Inicial  Prog No Escolariz","Educación Básica Regular      ","A1  - Pública - Sector Educación                                  ",8,"PUNO","Urbana",153.60000000000002,326]
[327,"PUNO","SALCEDO TEPRO","2036607","VILLA PRIMAVERA","Inicial  Prog No Escolariz","Educación Básica Regular      ","A1  - Pública - Sector Educación                                  ",16,"PUNO","Urbana",307.20000000000005,327]
[328,"PUNO","VILLA SANTA ROSA","2034810","VILLA SANTA ROSA","Inicial  Prog No Escolariz","Educación Básica Regular      ","A1  - Pública - Sector Educación                                  ",17,"PUNO","Urbana",326.40000000000003,328]
[329,"PUNO","PUNO","2033308","VILLA ZUÑIGA","Inicial  Prog No Escolariz","Educación Básica Regular      ","A1  - Pública - Sector Educación                                  ",13,"PUNO","Urbana",249.60000000000002,329]
[330,"SAN ANTONIO","JUNCAL","3886720","ANGELITOS DEL ANDE","Inicial  Prog No Escolariz","Educación Básica Regular      ","A1  - Pública - Sector Educación                                  ",7,"SAN ANTONIO","Urbana",134.4,330]
[331,"SAN ANTONIO","CACHIPASCANA","3870424","CACHIPASCANA","Inicial  Prog No Escolariz","Educación Básica Regular      ","A1  - Pública - Sector Educación                                  ",4,"SAN ANTONIO","Rural 1",168,331]
[332,"SAN ANTONIO","CRUZANI","3870450","CRUZANI","Inicial  Prog No Escolariz","Educación Básica Regular      ","A1  - Pública - Sector Educación                                  ",8,"SAN ANTONIO","Rural",192,332]
[333,"SAN ANTONIO","CRUZANI","3922316","HUALLATITAS","Inicial  Prog No Escolariz","Educación Básica Regular      ","A1  - Pública - Sector Educación                                  ",4,"SAN ANTONIO","Rural 1",168,333]
[334,"SAN ANTONIO","JESUS MARIA","2043908","JESUS MARIA","Inicial  Prog No Escolariz","Educación Básica Regular      ","A1  - Pública - Sector Educación                                  ",3,"SAN ANTONIO","Rural 1",126,334]
[335,"SAN ANTONIO","KOMERUCHO","3870451","KOMERUCHO","Inicial  Prog No Escolariz","Educación Básica Regular      ","A1  - Pública - Sector Educación                                  ",3,"SAN ANTONIO","Rural 1",126,335]
[336,"TIQUILLACA","ARBOLEDA","2043208","ARBOLEDA","Inicial  Prog No Escolariz","Educación Básica Regular      ","A1  - Pública - Sector Educación                                  ",3,"TIQUILLACA","Rural 1",126,336]
[337,"TIQUILLACA","CECCECANI","2043220","CECCECANI","Inicial  Prog No Escolariz","Educación Básica Regular      ","A1  - Pública - Sector Educación                                  ",3,"TIQUILLACA","Rural 1",126,337]
[338,"TIQUILLACA","PAXA","2043223","CHACOMOKO","Inicial  Prog No Escolariz","Educación Básica Regular      ","A1  - Pública - Sector Educación                                  ",3,"TIQUILLACA","Rural 1",126,338]
[339,"TIQUILLACA","HACIENDA CHINGARANE","2043227","CHINGARANI","Inicial  Prog No Escolariz","Educación Básica Regular      ","A1  - Pública - Sector Educación                                  ",3,"TIQUILLACA","Rural 1",126,339]
[340,"TIQUILLACA","KATACHILLA","2043221","CHUSAMARCA","Inicial  Prog No Escolariz","Educación Básica Regular      ","A1  - Pública - Sector Educación                                  ",3,"TIQUILLACA","Rural 1",126,340]
[341,"TIQUILLACA","OCCOMANI","3937895","OCCOMANI","Inicial  Prog No Escolariz","Educación Básica Regular      ","A1  - Pública - Sector Educación                                  ",4,"TIQUILLACA","Rural 1",168,341]
[342,"TIQUILLACA","PACSA","2043207","PAXA","Inicial  Prog No Escolariz","Educación Básica Regular      ","A1  - Pública - Sector Educación                                  ",3,"TIQUILLACA","Rural 1",126,342]
[343,"TIQUILLACA","TICUYO","2043202","TICUYO","Inicial  Prog No Escolariz","Educación Básica Regular      ","A1  - Pública - Sector Educación                                  ",6,"TIQUILLACA","Rural",144,343]
[344,"VILQUE","CCOACCASE / COAJASI","2042428","COAJASI","Inicial  Prog No Escolariz","Educación Básica Regular      ","A1  - Pública - Sector Educación                                  ",6,"VILQUE","Rural",144,344]
[345,"VILQUE","SUYANA","3917324","LA CASITA FELIZ","Inicial  Prog No Escolariz","Educación Básica Regular      ","A1  - Pública - Sector Educación                                  ",8,"VILQUE","Rural",192,345]
[346,"VILQUE","PHESCACHA","2042421","PHESCACHA","Inicial  Prog No Escolariz","Educación Básica Regular      ","A1  - Pública - Sector Educación                                  ",4,"VILQUE","Rural 1",168,346]
[347,"VILQUE","POSTA","2042415","POSTA","Inicial  Prog No Escolariz","Educación Básica Regular      ","A1  - Pública - Sector Educación                                  ",9,"VILQUE","Rural",216,347]
[348,"VILQUE","SAN IGNACIO","2042407","SAN IGNACIO","Inicial  Prog No Escolariz","Educación Básica Regular      ","A1  - Pública - Sector Educación                                  ",5,"VILQUE","Rural",120,348]
[349,"VILQUE","SAN JUAN DE MACHACMARCA","2042423","SAN JUAN","Inicial  Prog No Escolariz","Educación Básica Regular      ","A1  - Pública - Sector Educación                                  ",10,"VILQUE","Rural",240,349]
[350,"VILQUE","MACHACMARCA","3886719","SAN MATEO","Inicial  Prog No Escolariz","Educación Básica Regular      ","A1  - Pública - Sector Educación                                  ",10,"VILQUE","Rural",240,350]
[351,"VILQUE","TICUYO","2042425","TICUYO","Inicial  Prog No Escolariz","Educación Básica Regular      ","A1  - Pública - Sector Educación                                  ",6,"VILQUE","Rural",144,351]
[352,"VILQUE","TUPAC AMARU","3932272","TUPAC AMARU","Inicial  Prog No Escolariz","Educación Básica Regular      ","A1  - Pública - Sector Educación                                  ",8,"VILQUE","Rural",192,352]
[1,"ACORA","ACORA","0230821","70075","Primaria","Educación Básica Regular      ","A1  - Pública - Sector Educación                                  ",239,"ACORA","Urbana",4588.8,1]
[2,"ACORA","ACORA","0230854","70078","Primaria","Educación Básica Regular      ","A1  - Pública - Sector Educación                                  ",226,"ACORA","Urbana",4339.2000000000007,2]
[3,"ACORA","QUELCA","0230904","70083","Primaria","Educación Básica Regular      ","A1  - Pública - Sector Educación                                  ",43,"ACORA","Rural 2",1548,3]
[4,"ACORA","CUCHO ESQUEÑA","0230912","70084","Primaria","Educación Básica Regular      ","A1  - Pública - Sector Educación                                  ",40,"ACORA","Rural 3",1200,4]
[5,"ACORA","ISCACHURO","0230920","70085","Primaria","Educación Básica Regular      ","A1  - Pública - Sector Educación                                  ",17,{"$f":"+B578","v":"ACORA"},"Rural 2",{"$f":"+IF(K578=\"Rural\",I578*2*12,IF(K578=\"Rural 1\",I578*3.5*12,IF(K578=\"Rural 2\",I578*3*12,IF(K578=\"Rural 3\",I578*2.5*12,IF(K578=\"Urbana\",I578*1.6*12,IF(K578=\"Urbana 1\",I578*1.3*12,0))))))","v":612},5]
[6,"ACORA","SANTA ROSA","0230946","70087","Primaria","Educación Básica Regular      ","A1  - Pública - Sector Educación                                  ",14,"ACORA","Rural 2",504,6]
[7,"ACORA","HUAÑASCURO","0231001","70093","Primaria","Educación Básica Regular      ","A1  - Pública - Sector Educación                                  ",17,"ACORA","Rural 3",510,7]
[8,"ACORA","MARCA ESQUEÑA","0231050","70098","Primaria","Educación Básica Regular      ","A1  - Pública - Sector Educación                                  ",16,"ACORA","Rural 3",480,8]
[9,"ACORA","CCACCA","0231068","70099","Primaria","Educación Básica Regular      ","A1  - Pública - Sector Educación                                  ",15,"ACORA","Rural 2",540,{"$f":"+A582","v":9}]
[10,"ACORA","TANAPACA","0231076","70100","Primaria","Educación Básica Regular      ","A1  - Pública - Sector Educación                                  ",17,"ACORA","Rural 3",510,10]
[11,"ACORA","ISCAHUINCHOCA","0231084","70101","Primaria","Educación Básica Regular      ","A1  - Pública - Sector Educación                                  ",21,"ACORA","Rural 2",756,11]
[12,"ACORA","AMPARANI","0231100","70103","Primaria","Educación Básica Regular      ","A1  - Pública - Sector Educación                                  ",51,"ACORA","Rural 2",1836,12]
[13,"ACORA","TOTORANI","0231118","70104","Primaria","Educación Básica Regular      ","A1  - Pública - Sector Educación                                  ",21,"ACORA","Rural 2",756,13]
[14,"ACORA","QUENAFAJA","0231134","70106","Primaria","Educación Básica Regular      ","A1  - Pública - Sector Educación                                  ",17,"ACORA","Rural 3",510,14]
[15,"ACORA","CUSINI","0231142","70107","Primaria","Educación Básica Regular      ","A1  - Pública - Sector Educación                                  ",18,"ACORA","Rural 2",648,15]
[16,"ACORA","JAYU JAYU","0231191","70112","Primaria","Educación Básica Regular      ","A1  - Pública - Sector Educación                                  ",20,"ACORA","Rural 3",600,16]
[17,"ACORA","CARITAMAYA","0231233","70116","Primaria","Educación Básica Regular      ","A1  - Pública - Sector Educación                                  ",58,"ACORA","Rural 3",1740,17]
[18,"ACORA","THUNUHUAYA","0231258","70118","Primaria","Educación Básica Regular      ","A1  - Pública - Sector Educación                                  ",19,"ACORA","Rural 2",684,18]
[19,"ACORA","SOCCA","0231266","70119","Primaria","Educación Básica Regular      ","A1  - Pública - Sector Educación                                  ",48,"ACORA","Rural 2",1728,19]
[20,"ACORA","CULTA","0231290","70122","Primaria","Educación Básica Regular      ","A1  - Pública - Sector Educación                                  ",59,"ACORA","Rural 3",1770,20]
[21,"ACORA","CHANCACHI","0231340","70127","Primaria","Educación Básica Regular      ","A1  - Pública - Sector Educación                                  ",24,"ACORA","Rural 2",864,21]
[22,"ACORA","LACACHI","0231365","70129","Primaria","Educación Básica Regular      ","A1  - Pública - Sector Educación                                  ",15,"ACORA","Rural 2",540,22]
[23,"ACORA","MOCARAYA","0231381","70131","Primaria","Educación Básica Regular      ","A1  - Pública - Sector Educación                                  ",18,"ACORA","Rural 3",540,23]
[24,"ACORA","MOLLOCO","0231431","70136","Primaria","Educación Básica Regular      ","A1  - Pública - Sector Educación                                  ",33,"ACORA","Rural 3",990,24]
[25,"ACORA","JUROHUANANI","0231449","70137","Primaria","Educación Básica Regular      ","A1  - Pública - Sector Educación                                  ",4,"ACORA","Rural 2",144,25]
[26,"ACORA","CCOPAYA","0231456","70138","Primaria","Educación Básica Regular      ","A1  - Pública - Sector Educación                                  ",21,"ACORA","Rural 3",630,26]
[27,"ACORA","THUNCO","0231464","70139","Primaria","Educación Básica Regular      ","A1  - Pública - Sector Educación                                  ",40,"ACORA","Rural 3",1200,27]
[28,"ACORA","CHALLOCOLLO","0231506","70143","Primaria","Educación Básica Regular      ","A1  - Pública - Sector Educación                                  ",7,"ACORA","Rural 3",210,28]
[29,"ACORA","JACHA HUINCHOCA","0231522","70145","Primaria","Educación Básica Regular      ","A1  - Pública - Sector Educación                                  ",17,"ACORA","Rural 3",510,29]
[30,"ACORA","CCOPAMAYA","0231530","70146","Primaria","Educación Básica Regular      ","A1  - Pública - Sector Educación                                  ",23,"ACORA","Rural 2",828,30]
[31,"ACORA","COCOSANI","0231548","70147","Primaria","Educación Básica Regular      ","A1  - Pública - Sector Educación                                  ",13,"ACORA","Rural 2",468,31]
[32,"ACORA","CHAMCHILLA","0231555","70148","Primaria","Educación Básica Regular      ","A1  - Pública - Sector Educación                                  ",16,"ACORA","Rural 3",480,32]
[33,"ACORA","HUANCARTINQUIHUI","0231605","70153","Primaria","Educación Básica Regular      ","A1  - Pública - Sector Educación                                  ",7,"ACORA","Rural 2",252,33]
[34,"ACORA","PIRCO","0231613","70154","Primaria","Educación Básica Regular      ","A1  - Pública - Sector Educación                                  ",10,"ACORA","Rural 1",420,34]
[35,"ACORA","ISCATA","0231654","70158","Primaria","Educación Básica Regular      ","A1  - Pública - Sector Educación                                  ",28,"ACORA","Rural 2",1008,35]
[36,"ACORA","HUAYCHANI","0231704","70163","Primaria","Educación Básica Regular      ","A1  - Pública - Sector Educación                                  ",9,"ACORA","Rural 2",324,36]
[37,"ACORA","CARUMAS","0231753","70168","Primaria","Educación Básica Regular      ","A1  - Pública - Sector Educación                                  ",24,"ACORA","Rural 1",1008,37]
[38,"ACORA","TARUCAMARCA","0231761","70169","Primaria","Educación Básica Regular      ","A1  - Pública - Sector Educación                                  ",3,"ACORA","Rural 1",126,38]
[39,"ACORA","SAN CARLOS","0231779","70170","Primaria","Educación Básica Regular      ","A1  - Pública - Sector Educación                                  ",7,"ACORA","Rural 2",252,39]
[40,"ACORA","HUANTACACHI CHILA","0243816","70616","Primaria","Educación Básica Regular      ","A1  - Pública - Sector Educación                                  ",24,"ACORA","Rural 2",864,40]
[41,"ACORA","IRPAPAMPA","0531996","70653","Primaria","Educación Básica Regular      ","A1  - Pública - Sector Educación                                  ",3,"ACORA","Rural 1",126,41]
[42,"ACORA","HUILASIPI","0549105","70678","Primaria","Educación Básica Regular      ","A1  - Pública - Sector Educación                                  ",25,"ACORA","Rural 3",750,42]
[43,"ACORA","JILATAMARCA","0660324","70695","Primaria","Educación Básica Regular      ","A1  - Pública - Sector Educación                                  ",16,"ACORA","Rural 1",672,43]
[44,"ACORA","SACUYO","0227009","70709","Primaria","Educación Básica Regular      ","A1  - Pública - Sector Educación                                  ",24,"ACORA","Rural 2",864,44]
[45,"ACORA","JACHACACHI","0615237","70710","Primaria","Educación Básica Regular      ","A1  - Pública - Sector Educación                                  ",7,"ACORA","Rural 2",252,45]
[46,"ACORA","CHAJANA","0660308","70713","Primaria","Educación Básica Regular      ","A1  - Pública - Sector Educación                                  ",19,"ACORA","Rural 1",798,46]
[47,"ACORA","IMATA","0239368","70720","Primaria","Educación Básica Regular      ","A1  - Pública - Sector Educación                                  ",25,"ACORA","Rural 1",1050,47]
[48,"ACORA","MOLINO","0239376","70721","Primaria","Educación Básica Regular      ","A1  - Pública - Sector Educación                                  ",15,"ACORA","Rural 1",630,48]
[49,"ACORA","HACIENDA SAN FERNANDO","0530105","70723","Primaria","Educación Básica Regular      ","A1  - Pública - Sector Educación                                  ",3,"ACORA","Rural 1",126,49]
[50,"ACORA","YANAPATA","0531483","70727","Primaria","Educación Básica Regular      ","A1  - Pública - Sector Educación                                  ",7,"ACORA","Rural 2",252,50]
[51,"ACORA","CANCATANI","0706598","70735","Primaria","Educación Básica Regular      ","A1  - Pública - Sector Educación                                  ",3,"ACORA","Rural 1",126,51]
[52,"ACORA","SAN JOSE DE CALALA","0799411","70741","Primaria","Educación Básica Regular      ","A1  - Pública - Sector Educación                                  ",6,"ACORA","Rural 2",216,52]
[53,"ACORA","PARAPICHUZA","0799445","70744","Primaria","Educación Básica Regular      ","A1  - Pública - Sector Educación                                  ",12,"ACORA","Rural 1",504,53]
[54,"ACORA","AGUAS CALIENTES","1572536","70756","Primaria","Educación Básica Regular      ","A1  - Pública - Sector Educación                                  ",14,"ACORA","Rural 1",588,54]
[55,"ACORA","ANCCACCA","0559179","71544","Primaria","Educación Básica Regular      ","A1  - Pública - Sector Educación                                  ",21,"ACORA","Rural 3",630,55]
[56,"ACORA","COLLINI","0231498","70142 MARIA INMACULADA CONCEPCION","Primaria","Educación Básica Regular      ","A1  - Pública - Sector Educación                                  ",35,"ACORA","Rural 3",1050,56]
[57,"AMANTANI","SANCAYUNI","0230185","70008","Primaria","Educación Básica Regular      ","A1  - Pública - Sector Educación                                  ",26,"AMANTANI","Rural 1",1092,57]
[58,"AMANTANI","TAQUILE","0230128","70002 NUESTRA SEÑORA DE LOS CAMPOS","Primaria","Educación Básica Regular      ","A1  - Pública - Sector Educación                                  ",123,"AMANTANI","Rural 1",5166,58]
[59,"AMANTANI","AMANTANI","0230474","70037 VIRGEN DE LAS MERCEDES","Primaria","Educación Básica Regular      ","A1  - Pública - Sector Educación                                  ",93,"AMANTANI","Rural 2",3348,59]
[60,"AMANTANI","OCCOSUYO","0230664","70058 FRANCISCO BOLOGNESI","Primaria","Educación Básica Regular      ","A1  - Pública - Sector Educación                                  ",36,"AMANTANI","Rural 1",1512,60]
[61,"ATUNCOLLA","PALCAMAYO","0230524","70042","Primaria","Educación Básica Regular      ","A1  - Pública - Sector Educación                                  ",53,"ATUNCOLLA","Rural 2",1908,61]
[62,"ATUNCOLLA","HACIENDA UMAYO","0546713","70706","Primaria","Educación Básica Regular      ","A1  - Pública - Sector Educación                                  ",15,"ATUNCOLLA","Rural 2",540,62]
[63,"ATUNCOLLA","ANANSAYA","0804351","70708","Primaria","Educación Básica Regular      ","A1  - Pública - Sector Educación                                  ",25,"ATUNCOLLA","Rural 2",900,63]
[64,"ATUNCOLLA","SAN JOSE PRINCIPIO","0227017","70713","Primaria","Educación Básica Regular      ","A1  - Pública - Sector Educación                                  ",50,"ATUNCOLLA","Rural 3",1500,64]
[65,"ATUNCOLLA","LLUNGO","0239061","70715","Primaria","Educación Básica Regular      ","A1  - Pública - Sector Educación                                  ",100,"ATUNCOLLA","Rural 2",3600,65]
[66,"ATUNCOLLA","ULLAGACHI","0242248","70716","Primaria","Educación Básica Regular      ","A1  - Pública - Sector Educación                                  ",30,"ATUNCOLLA","Rural 2",1080,66]
[67,"ATUNCOLLA","BUENAVISTA","0515841","70720","Primaria","Educación Básica Regular      ","A1  - Pública - Sector Educación                                  ",45,"ATUNCOLLA","Rural 2",1620,67]
[68,"ATUNCOLLA","ATUNCOLLA","0230193","70009 VIRGEN DEL CARMEN","Primaria","Educación Básica Regular      ","A1  - Pública - Sector Educación                                  ",195,"ATUNCOLLA","Rural 2",7020,68]
[69,"CAPACHICA","CAPANO","0227504","70015","Primaria","Educación Básica Regular      ","A1  - Pública - Sector Educación                                  ",47,{"$f":"+B642","v":"CAPACHICA"},"Rural 2",{"$f":"+IF(K642=\"Rural\",I642*2*12,IF(K642=\"Rural 1\",I642*3.5*12,IF(K642=\"Rural 2\",I642*3*12,IF(K642=\"Rural 3\",I642*2.5*12,IF(K642=\"Urbana\",I642*1.6*12,IF(K642=\"Urbana 1\",I642*1.3*12,0))))))","v":1692},69]
[70,"CAPACHICA","CCOTOS","0230268","70016","Primaria","Educación Básica Regular      ","A1  - Pública - Sector Educación                                  ",59,"CAPACHICA","Rural 2",2124,70]
[71,"CAPACHICA","SIALE","0230276","70017","Primaria","Educación Básica Regular      ","A1  - Pública - Sector Educación                                  ",12,"CAPACHICA","Rural 2",432,71]
[72,"CAPACHICA","CHILLORA","0230292","70019","Primaria","Educación Básica Regular      ","A1  - Pública - Sector Educación                                  ",10,"CAPACHICA","Rural 2",360,72]
[73,"CAPACHICA","YAPURA","0230300","70020","Primaria","Educación Básica Regular      ","A1  - Pública - Sector Educación                                  ",26,"CAPACHICA","Rural 2",936,{"$f":"+A646","v":73}]
[74,"CAPACHICA","ISAÑURA","0230318","70021","Primaria","Educación Básica Regular      ","A1  - Pública - Sector Educación                                  ",42,"CAPACHICA","Rural 2",1512,74]
[75,"CAPACHICA","ESCALLANI","0230375","70027","Primaria","Educación Básica Regular      ","A1  - Pública - Sector Educación                                  ",45,"CAPACHICA","Rural 2",1620,75]
[76,"CAPACHICA","CHAPA","0230383","70028","Primaria","Educación Básica Regular      ","A1  - Pública - Sector Educación                                  ",60,"CAPACHICA","Rural 2",2160,76]
[77,"CAPACHICA","CAPACHICA","0230466","70036","Primaria","Educación Básica Regular      ","A1  - Pública - Sector Educación                                  ",129,"CAPACHICA","Rural 3",3870,77]
[78,"CAPACHICA","LLACHON","0230490","70039","Primaria","Educación Básica Regular      ","A1  - Pública - Sector Educación                                  ",60,"CAPACHICA","Rural 1",2520,78]
[79,"CAPACHICA","HILATA","0230565","70046","Primaria","Educación Básica Regular      ","A1  - Pública - Sector Educación                                  ",30,"CAPACHICA","Rural 2",1080,79]
[80,"CHUCUITO","MIRAFLORES","0230839","70076","Primaria","Educación Básica Regular      ","A1  - Pública - Sector Educación                                  ",114,"CHUCUITO","Rural 3",3420,80]
[81,"CHUCUITO","TACASAYA","0230938","70086","Primaria","Educación Básica Regular      ","A1  - Pública - Sector Educación                                  ",13,"CHUCUITO","Rural 2",468,81]
[82,"CHUCUITO","COCHIRAYA","0231035","70096","Primaria","Educación Básica Regular      ","A1  - Pública - Sector Educación                                  ",25,"CHUCUITO","Rural 2",900,82]
[83,"CHUCUITO","POTOJANI GRANDE","0231183","70111","Primaria","Educación Básica Regular      ","A1  - Pública - Sector Educación                                  ",54,"CHUCUITO","Rural 2",1944,83]
[84,"CHUCUITO","CHURO","0231241","70117","Primaria","Educación Básica Regular      ","A1  - Pública - Sector Educación                                  ",39,"CHUCUITO","Rural 2",1404,84]
[85,"CHUCUITO","LUQUINA CHICO","0231274","70120","Primaria","Educación Básica Regular      ","A1  - Pública - Sector Educación                                  ",22,"CHUCUITO","Rural 2",792,85]
[86,"CHUCUITO","CHINCHERA","0231282","70121","Primaria","Educación Básica Regular      ","A1  - Pública - Sector Educación                                  ",3,"CHUCUITO","Rural 1",126,86]
[87,"CHUCUITO","PARINA","0231308","70123","Primaria","Educación Básica Regular      ","A1  - Pública - Sector Educación                                  ",30,"CHUCUITO","Rural 3",900,87]
[88,"CHUCUITO","PUCANI","0231324","70125","Primaria","Educación Básica Regular      ","A1  - Pública - Sector Educación                                  ",9,"CHUCUITO","Rural 2",324,88]
[89,"CHUCUITO","ICHU RAYA","0231423","70135","Primaria","Educación Básica Regular      ","A1  - Pública - Sector Educación                                  ",8,"CHUCUITO","Rural 3",240,89]
[90,"CHUCUITO","CARINA","0231720","70165","Primaria","Educación Básica Regular      ","A1  - Pública - Sector Educación                                  ",18,"CHUCUITO","Rural 2",648,90]
[91,"CHUCUITO","LUQUINA GRANDE","0845503","70694","Primaria","Educación Básica Regular      ","A1  - Pública - Sector Educación                                  ",15,"CHUCUITO","Rural 2",540,91]
[92,"CHUCUITO","CONCACHI","0231019","70094 NIÑO JESUS PIRAPI","Primaria","Educación Básica Regular      ","A1  - Pública - Sector Educación                                  ",8,"CHUCUITO","Rural 3",240,92]
[93,"CHUCUITO","INCHUPALLA","0231415","70134 JOSE ANTONIO ENCINAS","Primaria","Educación Básica Regular      ","A1  - Pública - Sector Educación                                  ",21,"CHUCUITO","Rural 2",756,93]
[94,"COATA","COATA","0230409","70030","Primaria","Educación Básica Regular      ","A1  - Pública - Sector Educación                                  ",154,"COATA","Rural 2",5544,94]
[95,"COATA","POJSIN","0230417","70031","Primaria","Educación Básica Regular      ","A1  - Pública - Sector Educación                                  ",36,"COATA","Rural 2",1296,95]
[96,"COATA","CAPAJSI","0230425","70032","Primaria","Educación Básica Regular      ","A1  - Pública - Sector Educación                                  ",138,"COATA","Rural 2",4968,96]
[97,"COATA","COLLANA LOJERA","0230763","70068","Primaria","Educación Básica Regular      ","A1  - Pública - Sector Educación                                  ",41,"COATA","Rural 2",1476,97]
[98,"COATA","SANTA CRUZ DE CAPARA","0230771","70069","Primaria","Educación Básica Regular      ","A1  - Pública - Sector Educación                                  ",10,"COATA","Rural 2",360,98]
[99,"COATA","CANDILE","0230789","70070","Primaria","Educación Básica Regular      ","A1  - Pública - Sector Educación                                  ",7,"COATA","Rural 2",252,99]
[100,"COATA","UQUISILLA","0230805","70072","Primaria","Educación Básica Regular      ","A1  - Pública - Sector Educación                                  ",38,"COATA","Rural 2",1368,100]
[101,"COATA","SUCASCO","0218438","70609","Primaria","Educación Básica Regular      ","A1  - Pública - Sector Educación                                  ",41,"COATA","Rural 3",1230,101]
[102,"COATA","JOCHI SAN FRANCISCO","0631291","70667","Primaria","Educación Básica Regular      ","A1  - Pública - Sector Educación                                  ",58,"COATA","Rural 3",1740,102]
[103,"COATA","SAJANACACHI","0474445","70704","Primaria","Educación Básica Regular      ","A1  - Pública - Sector Educación                                  ",24,"COATA","Rural 2",864,103]
[104,"COATA","SAMUCHACA","0631309","70705","Primaria","Educación Básica Regular      ","A1  - Pública - Sector Educación                                  ",11,"COATA","Rural 2",396,104]
[105,"COATA","SORAZA","0230441","70034 NUESTRA SEÑORA DE LA MERCED","Primaria","Educación Básica Regular      ","A1  - Pública - Sector Educación                                  ",48,"COATA","Rural 2",1728,105]
[106,"COATA","PUTUCUNI","0230755","70067 FRANCISCO BOLOGNESI","Primaria","Educación Básica Regular      ","A1  - Pública - Sector Educación                                  ",57,"COATA","Rural 2",2052,106]
[107,"HUATA","HUATTA","0230482","70038","Primaria","Educación Básica Regular      ","A1  - Pública - Sector Educación                                  ",203,"HUATA","Rural 3",6090,107]
[108,"HUATA","QUIVILLACA","0230748","70066","Primaria","Educación Básica Regular      ","A1  - Pública - Sector Educación                                  ",35,"HUATA","Rural 2",1260,108]
[109,"HUATA","FAON","0230797","70071","Primaria","Educación Básica Regular      ","A1  - Pública - Sector Educación                                  ",7,"HUATA","Rural 2",252,109]
[110,"HUATA","YASIN","0230433","70033 SEÑOR DE HUANCA","Primaria","Educación Básica Regular      ","A1  - Pública - Sector Educación                                  ",43,"HUATA","Rural 2",1548,110]
[111,"HUATA","CHINCHERPAMPA","0230631","70055 CESAR VALLEJO","Primaria","Educación Básica Regular      ","A1  - Pública - Sector Educación                                  ",5,"HUATA","Rural 2",180,111]
[112,"MAÑAZO","MAÑAZO","0230219","70011","Primaria","Educación Básica Regular      ","A1  - Pública - Sector Educación                                  ",345,"MAÑAZO","Urbana",6624,112]
[113,"MAÑAZO","CARI CARI","0230540","70044","Primaria","Educación Básica Regular      ","A1  - Pública - Sector Educación                                  ",103,"MAÑAZO","Rural 2",3708,113]
[114,"MAÑAZO","QUEMILLUNI","0243758","70606","Primaria","Educación Básica Regular      ","A1  - Pública - Sector Educación                                  ",8,"MAÑAZO","Rural 1",336,114]
[115,"MAÑAZO","HUILAMOCCO","0529305","70702","Primaria","Educación Básica Regular      ","A1  - Pública - Sector Educación                                  ",20,"MAÑAZO","Rural 2",720,115]
[116,"MAÑAZO","ANDAMARCA","0804534","70703","Primaria","Educación Básica Regular      ","A1  - Pública - Sector Educación                                  ",9,"MAÑAZO","Rural 1",378,116]
[117,"MAÑAZO","CONAVIRI","0242263","70730","Primaria","Educación Básica Regular      ","A1  - Pública - Sector Educación                                  ",10,"MAÑAZO","Rural 2",360,117]
[118,"MAÑAZO","LARIPATA","0474551","70731","Primaria","Educación Básica Regular      ","A1  - Pública - Sector Educación                                  ",6,"MAÑAZO","Rural 1",252,118]
[119,"MAÑAZO","COPANI DEL ROSARIO","0242255","70804","Primaria","Educación Básica Regular      ","A1  - Pública - Sector Educación                                  ",16,"MAÑAZO","Rural 1",672,119]
[120,"MAÑAZO","CHARAMAYA","0226993","70805","Primaria","Educación Básica Regular      ","A1  - Pública - Sector Educación                                  ",34,"MAÑAZO","Rural 1",1428,120]
[121,"PAUCARCOLLA","PAUCARCOLLA","0230169","70006","Primaria","Educación Básica Regular      ","A1  - Pública - Sector Educación                                  ",131,"PAUCARCOLLA","Rural 3",3930,121]
[122,"PAUCARCOLLA","COLLANA","0230326","70022","Primaria","Educación Básica Regular      ","A1  - Pública - Sector Educación                                  ",56,"PAUCARCOLLA","Rural 3",1680,122]
[123,"PAUCARCOLLA","YANICO / TITILE","0230615","70053","Primaria","Educación Básica Regular      ","A1  - Pública - Sector Educación                                  ",13,"PAUCARCOLLA","Rural 2",468,123]
[124,"PAUCARCOLLA","ANTONIANI","0230698","70061","Primaria","Educación Básica Regular      ","A1  - Pública - Sector Educación                                  ",13,"PAUCARCOLLA","Rural 2",468,124]
[125,"PAUCARCOLLA","MACHALLATA","0559294","70645","Primaria","Educación Básica Regular      ","A1  - Pública - Sector Educación                                  ",6,"PAUCARCOLLA","Rural 2",216,125]
[126,"PAUCARCOLLA","MORO","0239046","70712","Primaria","Educación Básica Regular      ","A1  - Pública - Sector Educación                                  ",86,"PAUCARCOLLA","Rural 3",2580,126]
[127,"PICHACANI","LARAQUERI","0230987","70091","Primaria","Educación Básica Regular      ","A1  - Pública - Sector Educación                                  ",196,"PICHACANI","Rural 3",5880,127]
[128,"PICHACANI","SOQUESANI","0231209","70113","Primaria","Educación Básica Regular      ","A1  - Pública - Sector Educación                                  ",48,"PICHACANI","Rural 2",1728,128]
[129,"PICHACANI","HUARIJUYO","0231332","70126","Primaria","Educación Básica Regular      ","A1  - Pública - Sector Educación                                  ",51,"PICHACANI","Rural 2",1836,129]
[130,"PICHACANI","PICHACANI","0231407","70133","Primaria","Educación Básica Regular      ","A1  - Pública - Sector Educación                                  ",24,"PICHACANI","Rural 2",864,130]
[131,"PICHACANI","HUACOCHULLO","0231571","70150","Primaria","Educación Básica Regular      ","A1  - Pública - Sector Educación                                  ",35,"PICHACANI","Rural 2",1260,131]
[132,"PICHACANI","TOLAMARCA","0231589","70151","Primaria","Educación Básica Regular      ","A1  - Pública - Sector Educación                                  ",6,"PICHACANI","Rural 2",216,132]
[133,"PICHACANI","ÑUÑUMARCA","0231621","70155","Primaria","Educación Básica Regular      ","A1  - Pública - Sector Educación                                  ",10,{"$f":"+B706","v":"PICHACANI"},"Rural 2",{"$f":"+IF(K706=\"Rural\",I706*2*12,IF(K706=\"Rural 1\",I706*3.5*12,IF(K706=\"Rural 2\",I706*3*12,IF(K706=\"Rural 3\",I706*2.5*12,IF(K706=\"Urbana\",I706*1.6*12,IF(K706=\"Urbana 1\",I706*1.3*12,0))))))","v":360},133]
[134,"PICHACANI","ANCACCA","0474338","70622","Primaria","Educación Básica Regular      ","A1  - Pública - Sector Educación                                  ",48,"PICHACANI","Rural 2",1728,134]
[135,"PICHACANI","CATAHUI","0474346","70651","Primaria","Educación Básica Regular      ","A1  - Pública - Sector Educación                                  ",6,"PICHACANI","Rural 1",252,135]
[136,"PICHACANI","TUNQUIPA","0631374","70698","Primaria","Educación Básica Regular      ","A1  - Pública - Sector Educación                                  ",18,"PICHACANI","Rural 2",648,136]
[137,"PICHACANI","LORIPONGO","0559443","70721","Primaria","Educación Básica Regular      ","A1  - Pública - Sector Educación                                  ",4,"PICHACANI","Rural 2",144,{"$f":"+A710","v":137}]
[138,"PICHACANI","CUTIMBO","1029966","70722","Primaria","Educación Básica Regular      ","A1  - Pública - Sector Educación                                  ",14,"PICHACANI","Rural 2",504,138]
[139,"PICHACANI","JATUCACHI","0706606","70724","Primaria","Educación Básica Regular      ","A1  - Pública - Sector Educación                                  ",3,"PICHACANI","Rural 1",126,139]
[140,"PICHACANI","HACIENDA VILUYO","0239384","70727","Primaria","Educación Básica Regular      ","A1  - Pública - Sector Educación                                  ",15,"PICHACANI","Rural 2",540,140]
[141,"PICHACANI","SAN JUAN DE DIOS","0547901","70728","Primaria","Educación Básica Regular      ","A1  - Pública - Sector Educación                                  ",5,"PICHACANI","Rural 2",180,141]
[142,"PLATERIA","PLATERIA","0230847","70077","Primaria","Educación Básica Regular      ","A1  - Pública - Sector Educación                                  ",59,"PLATERIA","Rural 3",1770,142]
[143,"PLATERIA","LACCONI","0230953","70088","Primaria","Educación Básica Regular      ","A1  - Pública - Sector Educación                                  ",12,"PLATERIA","Rural 2",432,143]
[144,"PLATERIA","TITILACA","0230961","70089","Primaria","Educación Básica Regular      ","A1  - Pública - Sector Educación                                  ",33,"PLATERIA","Rural 2",1188,144]
[145,"PLATERIA","POTOJANI CHICO","0231027","70095","Primaria","Educación Básica Regular      ","A1  - Pública - Sector Educación                                  ",12,"PLATERIA","Rural 2",432,145]
[146,"PLATERIA","CARUCAYA","0231092","70102","Primaria","Educación Básica Regular      ","A1  - Pública - Sector Educación                                  ",12,"PLATERIA","Rural 2",432,146]
[147,"PLATERIA","TOTOJIRA","0231126","70105","Primaria","Educación Básica Regular      ","A1  - Pública - Sector Educación                                  ",3,"PLATERIA","Rural 1",126,147]
[148,"PLATERIA","AÑO CALLEJON","0231159","70108","Primaria","Educación Básica Regular      ","A1  - Pública - Sector Educación                                  ",12,"PLATERIA","Rural 2",432,148]
[149,"PLATERIA","CAMACANI","0231167","70109","Primaria","Educación Básica Regular      ","A1  - Pública - Sector Educación                                  ",36,"PLATERIA","Rural 3",1080,149]
[150,"PLATERIA","CAMATA","0231175","70110","Primaria","Educación Básica Regular      ","A1  - Pública - Sector Educación                                  ",25,"PLATERIA","Rural 2",900,150]
[151,"PLATERIA","CCOTA","0231217","70114","Primaria","Educación Básica Regular      ","A1  - Pública - Sector Educación                                  ",55,"PLATERIA","Rural 3",1650,151]
[152,"PLATERIA","PERCA","0231316","70124","Primaria","Educación Básica Regular      ","A1  - Pública - Sector Educación                                  ",53,"PLATERIA","Rural 2",1908,152]
[153,"PLATERIA","SIHUECANI","0231514","70144","Primaria","Educación Básica Regular      ","A1  - Pública - Sector Educación                                  ",19,"PLATERIA","Rural 2",684,153]
[154,"PLATERIA","CHILATA","0231662","70159","Primaria","Educación Básica Regular      ","A1  - Pública - Sector Educación                                  ",13,"PLATERIA","Rural 2",468,154]
[155,"PLATERIA","ANGOSTURA","0231738","70166","Primaria","Educación Básica Regular      ","A1  - Pública - Sector Educación                                  ",3,"PLATERIA","Rural 1",126,155]
[156,"PLATERIA","AQUECHIA","0516740","70660","Primaria","Educación Básica Regular      ","A1  - Pública - Sector Educación                                  ",5,"PLATERIA","Rural 2",180,156]
[157,"PLATERIA","NAZAPARCO","0559476","70684","Primaria","Educación Básica Regular      ","A1  - Pública - Sector Educación                                  ",5,"PLATERIA","Rural 2",180,157]
[158,"PLATERIA","RINCONADA","0804435","70725","Primaria","Educación Básica Regular      ","A1  - Pública - Sector Educación                                  ",13,"PLATERIA","Rural 2",468,158]
[159,"PLATERIA","TITILACA","0804419","70757","Primaria","Educación Básica Regular      ","A1  - Pública - Sector Educación                                  ",11,"PLATERIA","Rural 2",396,159]
[160,"PLATERIA","PALLALLA","0231225","70115 MARIA ASUNCION GALINDO","Primaria","Educación Básica Regular      ","A1  - Pública - Sector Educación                                  ",44,"PLATERIA","Rural 2",1584,160]
[161,"PUNO","HUAJSAPATA","0230110","70001","Primaria","Educación Básica Regular      ","A1  - Pública - Sector Educación                                  ",585,"PUNO","Urbana",11232,161]
[162,"PUNO","PUNO","0230144","70004","Primaria","Educación Básica Regular      ","A1  - Pública - Sector Educación                                  ",49,"PUNO","Urbana",940.80000000000007,162]
[163,"PUNO","PUNO","0230235","70013","Primaria","Educación Básica Regular      ","A1  - Pública - Sector Educación                                  ",42,"PUNO","Urbana",806.40000000000009,163]
[164,"PUNO","PUNO","0230334","70023","Primaria","Educación Básica Regular      ","A1  - Pública - Sector Educación                                  ",140,"PUNO","Urbana",2688,164]
[165,"PUNO","LAYKAKOTA","0230342","70024","Primaria","Educación Básica Regular      ","A1  - Pública - Sector Educación                                  ",577,"PUNO","Urbana",11078.400000000001,165]
[166,"PUNO","PORTEÑO","0230367","70026","Primaria","Educación Básica Regular      ","A1  - Pública - Sector Educación                                  ",157,"PUNO","Urbana",3014.4,166]
[167,"PUNO","VALLECITO","0230458","70035","Primaria","Educación Básica Regular      ","A1  - Pública - Sector Educación                                  ",385,"PUNO","Urbana",7392,167]
[168,"PUNO","HUERTA HUARAYA","0230532","70043","Primaria","Educación Básica Regular      ","A1  - Pública - Sector Educación                                  ",7,"PUNO","Rural 3",210,168]
[169,"PUNO","CHANU CHANU ETAPA 1","0230557","70045","Primaria","Educación Básica Regular      ","A1  - Pública - Sector Educación                                  ",156,"PUNO","Urbana",2995.2000000000003,169]
[170,"PUNO","PUNO","0230573","70047","Primaria","Educación Básica Regular      ","A1  - Pública - Sector Educación                                  ",147,"PUNO","Urbana",2822.4,170]
[171,"PUNO","YANAMAYO","0230599","70051","Primaria","Educación Básica Regular      ","A1  - Pública - Sector Educación                                  ",5,"PUNO","Rural 3",150,171]
[172,"PUNO","ISLA CCAPI LOS UROS","0230607","70052","Primaria","Educación Básica Regular      ","A1  - Pública - Sector Educación                                  ",46,"PUNO","Rural 1",1932,172]
[173,"PUNO","SALCEDO","0230888","70081","Primaria","Educación Básica Regular      ","A1  - Pública - Sector Educación                                  ",113,"PUNO","Urbana",2169.6000000000004,173]
[174,"PUNO","JAYLLIHUAYA","0230979","70090","Primaria","Educación Básica Regular      ","A1  - Pública - Sector Educación                                  ",44,"PUNO","Urbana",844.80000000000007,174]
[175,"PUNO","TUNUHUIRICHICO","0230995","70092","Primaria","Educación Básica Regular      ","A1  - Pública - Sector Educación                                  ",36,"PUNO","Rural 3",1080,175]
[176,"PUNO","OJHERANI","0231043","70097","Primaria","Educación Básica Regular      ","A1  - Pública - Sector Educación                                  ",14,"PUNO","Rural 3",420,176]
[177,"PUNO","CHIMU","0231670","70160","Primaria","Educación Básica Regular      ","A1  - Pública - Sector Educación                                  ",22,"PUNO","Rural 3",660,177]
[178,"PUNO","CANCHARANI","0231712","70164","Primaria","Educación Básica Regular      ","A1  - Pública - Sector Educación                                  ",19,"PUNO","Urbana",364.8,178]
[179,"PUNO","CHULLUNE","0243840","70620","Primaria","Educación Básica Regular      ","A1  - Pública - Sector Educación                                  ",65,"PUNO","Rural 3",1950,179]
[180,"PUNO","SANTA ROSA","0474361","70623","Primaria","Educación Básica Regular      ","A1  - Pública - Sector Educación                                  ",437,"PUNO","Urbana",8390.4000000000015,180]
[181,"PUNO","RICARDO PALMA","0618421","70656","Primaria","Educación Básica Regular      ","A1  - Pública - Sector Educación                                  ",73,"PUNO","Urbana",1401.6000000000001,181]
[182,"PUNO","PUNO","0618439","70657","Primaria","Educación Básica Regular      ","A1  - Pública - Sector Educación                                  ",18,"PUNO","Urbana",345.6,182]
[183,"PUNO","UROS TORANI PATA","0227421","70682","Primaria","Educación Básica Regular      ","A1  - Pública - Sector Educación                                  ",37,"PUNO","Rural 1",1554,183]
[184,"PUNO","PUNO","0804286","70717","Primaria","Educación Básica Regular      ","A1  - Pública - Sector Educación                                  ",56,"PUNO","Urbana",1075.2,184]
[185,"PUNO","VILLA DEL LAGO","0804294","70718","Primaria","Educación Básica Regular      ","A1  - Pública - Sector Educación                                  ",154,"PUNO","Urbana",2956.8,185]
[186,"PUNO","TRIBUNA","1023753","70726","Primaria","Educación Básica Regular      ","A1  - Pública - Sector Educación                                  ",6,"PUNO","Rural 1",252,186]
[187,"PUNO","HACIENDA COLLACACHI","0239079","70729","Primaria","Educación Básica Regular      ","A1  - Pública - Sector Educación                                  ",17,"PUNO","Rural 2",612,187]
[188,"PUNO","KAPI GRANDE","1025766","70802","Primaria","Educación Básica Regular      ","A1  - Pública - Sector Educación                                  ",11,"PUNO","Rural 1",462,188]
[189,"PUNO","CHIARAQUE","1029958","70806","Primaria","Educación Básica Regular      ","A1  - Pública - Sector Educación                                  ",3,"PUNO","Rural 1",126,189]
[190,"PUNO","SALCEDO","1154459","70808","Primaria","Educación Básica Regular      ","A1  - Pública - Sector Educación                                  ",175,"PUNO","Urbana",3360,190]
[191,"PUNO","MAGISTERIAL","0230136","70003 SAGRADO CORAZON DE JESUS","Primaria","Educación Básica Regular      ","A1  - Pública - Sector Educación                                  ",741,"PUNO","Urbana",14227.2,191]
[192,"PUNO","VICTORIA","0230151","70005 CORAZON DE JESUS","Primaria","Educación Básica Regular      ","A1  - Pública - Sector Educación                                  ",1060,"PUNO","Urbana 1",16536,192]
[193,"PUNO","PORTEÑO","0230201","70010 GRAN UNIDAD ESCOLAR SAN CARLOS","Primaria","Educación Básica Regular      ","A1  - Pública - Sector Educación                                  ",1043,"PUNO","Urbana 1",16270.800000000001,193]
[194,"PUNO","PUNO","0230284","70018 SAN JOSE DE HUARAYA","Primaria","Educación Básica Regular      ","A1  - Pública - Sector Educación                                  ",99,"PUNO","Urbana",1900.8000000000002,194]
[195,"PUNO","BELLAVISTA","0230359","70025 INDEPENDENCIA NACIONAL","Primaria","Educación Básica Regular      ","A1  - Pública - Sector Educación                                  ",441,"PUNO","Urbana",8467.2000000000007,195]
[196,"PUNO","PUNO","0230391","70029 MARIA AUXILIADORA","Primaria","Educación Básica Regular      ","A1  - Pública - Sector Educación                                  ",892,"PUNO","Urbana 1",13915.2,196]
[197,"PUNO","SAN MARTIN","0230722","70064 SAN MARTIN DE PORRES","Primaria","Educación Básica Regular      ","A1  - Pública - Sector Educación                                  ",60,{"$f":"+B770","v":"PUNO"},"Urbana",{"$f":"+IF(K770=\"Rural\",I770*2*12,IF(K770=\"Rural 1\",I770*3.5*12,IF(K770=\"Rural 2\",I770*3*12,IF(K770=\"Rural 3\",I770*2.5*12,IF(K770=\"Urbana\",I770*1.6*12,IF(K770=\"Urbana 1\",I770*1.3*12,0))))))","v":1152},197]
[198,"PUNO","2 DE MAYO","0618413","70655 INTERCULTURAL PUNO","Primaria","Educación Básica Regular      ","A1  - Pública - Sector Educación                                  ",21,"PUNO","Urbana",403.20000000000005,198]
[199,"PUNO","PUNO","1025758","70801 NUESTRA SEÑORA DE GUADALUPE","Primaria","Educación Básica Regular      ","A1  - Pública - Sector Educación                                  ",58,"PUNO","Urbana",1113.6000000000001,199]
[200,"PUNO","SAN ANTONIO","1029818","70803 SAN ANTONIO DE PADUA","Primaria","Educación Básica Regular      ","A1  - Pública - Sector Educación                                  ",68,"PUNO","Urbana",1305.6000000000001,200]
[201,"PUNO","PORTEÑO","0243857","71001 ALMIRANTE MIGUEL GRAU","Primaria","Educación Básica Regular      ","A1  - Pública - Sector Educación                                  ",1042,"PUNO","Urbana 1",16255.2,{"$f":"+A774","v":201}]
[202,"PUNO","PUNO","0243972","71013 GLORIOSO SAN CARLOS","Primaria","Educación Básica Regular      ","A1  - Pública - Sector Educación                                  ",1118,"PUNO","Urbana 1",17440.800000000003,202]
[203,"SAN ANTONIO","JESUS MARIA","0230672","70059","Primaria","Educación Básica Regular      ","A1  - Pública - Sector Educación                                  ",3,"SAN ANTONIO","Rural 1",126,203]
[204,"SAN ANTONIO","JUNCAL","0230706","70062","Primaria","Educación Básica Regular      ","A1  - Pública - Sector Educación                                  ",51,"SAN ANTONIO","Rural 1",2142,204]
[205,"SAN ANTONIO","CACHIPASCANA","0559328","70647","Primaria","Educación Básica Regular      ","A1  - Pública - Sector Educación                                  ",14,"SAN ANTONIO","Rural 1",588,205]
[206,"SAN ANTONIO","LLANQUERI","0631366","70688","Primaria","Educación Básica Regular      ","A1  - Pública - Sector Educación                                  ",3,"SAN ANTONIO","Rural 1",126,206]
[207,"SAN ANTONIO","CRUSANI","0660332","70697","Primaria","Educación Básica Regular      ","A1  - Pública - Sector Educación                                  ",6,"SAN ANTONIO","Rural 1",252,207]
[208,"SAN ANTONIO","KOMERUCHO","0515940","70699","Primaria","Educación Básica Regular      ","A1  - Pública - Sector Educación                                  ",12,"SAN ANTONIO","Rural 1",504,208]
[209,"TIQUILLACA","TIQUILLACA","0230177","70007","Primaria","Educación Básica Regular      ","A1  - Pública - Sector Educación                                  ",66,"TIQUILLACA","Rural 2",2376,209]
[210,"TIQUILLACA","CONDORIRI","0230714","70063","Primaria","Educación Básica Regular      ","A1  - Pública - Sector Educación                                  ",14,"TIQUILLACA","Rural 2",504,210]
[211,"TIQUILLACA","CHILA","0503029","70628","Primaria","Educación Básica Regular      ","A1  - Pública - Sector Educación                                  ",13,"TIQUILLACA","Rural 2",468,211]
[212,"TIQUILLACA","CECCECANI","0487330","70700","Primaria","Educación Básica Regular      ","A1  - Pública - Sector Educación                                  ",3,"TIQUILLACA","Rural 1",126,212]
[213,"TIQUILLACA","CHACO","0660266","70701","Primaria","Educación Básica Regular      ","A1  - Pública - Sector Educación                                  ",3,"TIQUILLACA","Rural 1",126,213]
[214,"TIQUILLACA","HACIENDA CHINGARANE","0477976","70707","Primaria","Educación Básica Regular      ","A1  - Pública - Sector Educación                                  ",4,"TIQUILLACA","Rural 2",144,214]
[215,"VILQUE","VILQUE","0230508","70040","Primaria","Educación Básica Regular      ","A1  - Pública - Sector Educación                                  ",159,"VILQUE","Rural 3",4770,215]
[216,"VILQUE","ULLAGACHI","0230680","70060","Primaria","Educación Básica Regular      ","A1  - Pública - Sector Educación                                  ",4,"VILQUE","Rural 2",144,216]
[217,"VILQUE","HACIENDA CAIRANE","0226985","70711","Primaria","Educación Básica Regular      ","A1  - Pública - Sector Educación                                  ",4,"VILQUE","Rural 2",144,217]
[218,"VILQUE","MACHACMARCA","0474544","70719","Primaria","Educación Básica Regular      ","A1  - Pública - Sector Educación                                  ",24,"VILQUE","Rural 2",864,218]
[219,"VILQUE","YANARICO","0239038","70733","Primaria","Educación Básica Regular      ","A1  - Pública - Sector Educación                                  ",16,"VILQUE","Rural 2",576,219]
[220,"VILQUE","COTAÑA","0546911","70734","Primaria","Educación Básica Regular      ","A1  - Pública - Sector Educación                                  ",30,"VILQUE","Rural 2",1080,220]
[1,"ACORA","ACORA","0240341","ALFONSO TORRES LUNA","Secundaria","Educación Básica Regular      ","A1  - Pública - Sector Educación                                  ",396,"ACORA","Urbana",7603.2000000000007,1]
[2,"ACORA","ACORA","1418169","AYMARA","Secundaria","Educación Básica Regular      ","A3  - Pública - Municipalidad                                     ",133,"ACORA","Urbana",2553.6000000000004,2]
[3,"ACORA","AYRUMAS CARUMAS","1029982","AYRUMAS CARUMAS","Secundaria","Educación Básica Regular      ","A1  - Pública - Sector Educación                                  ",40,"ACORA","Rural 1",1680,3]
[4,"ACORA","JAYU JAYU","0579029","CARLOS DANTE NAVA","Secundaria","Educación Básica Regular      ","A1  - Pública - Sector Educación                                  ",105,"ACORA","Rural 3",3150,4]
[5,"ACORA","CCOPAYA","1385061","CCAPALLA","Secundaria","Educación Básica Regular      ","A1  - Pública - Sector Educación                                  ",53,"ACORA","Rural 3",1590,5]
[6,"ACORA","SANTA ROSA","0578971","ENRIQUE ENCINAS FRANCO","Secundaria","Educación Básica Regular      ","A1  - Pública - Sector Educación                                  ",15,"ACORA","Rural 2",540,6]
[7,"ACORA","CARITAMAYA","1541887","FLORENTINO AMEGHINO","Secundaria","Educación Básica Regular      ","A3  - Pública - Municipalidad                                     ",45,"ACORA","Rural 3",1350,7]
[8,"ACORA","SACUYO","1025154","FRANCISCO BOLOGNESI CERVANTES","Secundaria","Educación Básica Regular      ","A1  - Pública - Sector Educación                                  ",33,"ACORA","Rural 2",1188,8]
[9,"ACORA","JILATAMARCA","1260124","GILATAMARCA","Secundaria","Educación Básica Regular      ","A1  - Pública - Sector Educación                                  ",17,"ACORA","Rural 1",714,9]
[10,"ACORA","AMPARANI","0615351","JOSE ANTONIO ENCINAS","Secundaria","Educación Básica Regular      ","A1  - Pública - Sector Educación                                  ",90,"ACORA","Rural 2",3240,10]
[11,"ACORA","AGUAS CALIENTES","1572544","MANCO CAPAC","Secundaria","Educación Básica Regular      ","A1  - Pública - Sector Educación                                  ",7,"ACORA","Rural 1",294,11]
[12,"ACORA","TOTORANI","0535864","RICARDO PALMA","Secundaria","Educación Básica Regular      ","A1  - Pública - Sector Educación                                  ",132,"ACORA","Rural 2",4752,12]
[13,"ACORA","CUCHO ESQUEÑA","1025196","SAN JUAN","Secundaria","Educación Básica Regular      ","A1  - Pública - Sector Educación                                  ",26,"ACORA","Rural 3",780,13]
[14,"ACORA","ANCCACCA","0660282","SIMON BOLIVAR","Secundaria","Educación Básica Regular      ","A1  - Pública - Sector Educación                                  ",45,"ACORA","Rural 3",1350,14]
[15,"ACORA","TAYPICIRCA","1027820","TAIPICIRCA","Secundaria","Educación Básica Regular      ","A1  - Pública - Sector Educación                                  ",53,"ACORA","Rural 2",1908,15]
[16,"ACORA","THUNCO","0744441","THUNCO","Secundaria","Educación Básica Regular      ","A1  - Pública - Sector Educación                                  ",47,"ACORA","Rural 3",1410,16]
[17,"ACORA","THUNUHUAYA","1025113","THUNUHUAYA","Secundaria","Educación Básica Regular      ","A1  - Pública - Sector Educación                                  ",14,"ACORA","Rural 2",504,17]
[18,"ACORA","CULTA","0474494","TUPAC AMARU II","Secundaria","Educación Básica Regular      ","A1  - Pública - Sector Educación                                  ",59,"ACORA","Rural 3",1770,18]
[19,"ACORA","SOCCA","0706580","TUPAQ KATARI","Secundaria","Educación Básica Regular      ","A1  - Pública - Sector Educación                                  ",72,"ACORA","Rural 2",2592,19]
[20,"AMANTANI","AMANTANI","0631135","MIGUEL GRAU","Secundaria","Educación Básica Regular      ","A1  - Pública - Sector Educación                                  ",181,"AMANTANI","Rural 2",6516,20]
[21,"AMANTANI","TAQUILE","1025394","TAQUILE","Secundaria","Educación Básica Regular      ","A1  - Pública - Sector Educación                                  ",172,"AMANTANI","Rural 1",7224,21]
[22,"ATUNCOLLA","TICANI PAMPA","1376938","CRFA AMANECER QOLLA","Secundaria","Educación Básica Regular      ","A4  - Pública - En convenio                                       ",55,"ATUNCOLLA","Rural 2",1980,22]
[23,"ATUNCOLLA","ATUNCOLLA","0507533","SAN ANDRES","Secundaria","Educación Básica Regular      ","A1  - Pública - Sector Educación                                  ",248,"ATUNCOLLA","Rural 2",8928,23]
[24,"ATUNCOLLA","LLUNGO","1564608","SAN JOSE DE LLUNGO","Secundaria","Educación Básica Regular      ","A1  - Pública - Sector Educación                                  ",105,"ATUNCOLLA","Rural 2",3780,24]
[25,"CAPACHICA","YAPURA","1023407","CORAZON DE CRISTO","Secundaria","Educación Básica Regular      ","A1  - Pública - Sector Educación                                  ",40,"CAPACHICA","Rural 2",1440,25]
[26,"CAPACHICA","CHAPA","0239723","ENRIQUE TORRES BELON","Secundaria","Educación Básica Regular      ","A1  - Pública - Sector Educación                                  ",107,"CAPACHICA","Rural 2",3852,26]
[27,"CAPACHICA","LLACHON","0578930","FRAY SAN MARTIN DE PORRES","Secundaria","Educación Básica Regular      ","A1  - Pública - Sector Educación                                  ",85,"CAPACHICA","Rural 1",3570,27]
[28,"CAPACHICA","ISAÑURA","1364629","ISAÑURA","Secundaria","Educación Básica Regular      ","A1  - Pública - Sector Educación                                  ",33,"CAPACHICA","Rural 2",1188,28]
[29,"CAPACHICA","CCOTOS","1154491","JOSE ABELARDO QUIÑONES","Secundaria","Educación Básica Regular      ","A1  - Pública - Sector Educación                                  ",57,"CAPACHICA","Rural 2",2052,29]
[30,"CAPACHICA","CAPACHICA","0474452","JOSE CARLOS MARIATEGUI","Secundaria","Educación Básica Regular      ","A1  - Pública - Sector Educación                                  ",218,"CAPACHICA","Rural 3",6540,30]
[31,"CAPACHICA","ESCALLANI","1023365","JOSE OLAYA BALANDRA","Secundaria","Educación Básica Regular      ","A1  - Pública - Sector Educación                                  ",56,"CAPACHICA","Rural 2",2016,31]
[32,"CHUCUITO","CHUCUITO","1669753","COAR PUNO","Secundaria","Educación Básica Regular      ","A1  - Pública - Sector Educación                                  ",287,"CHUCUITO","Rural 3",8610,32]
[33,"CHUCUITO","CHUCUITO","0240358","EMILIO ROMERO PADILLA","Secundaria","Educación Básica Regular      ","A1  - Pública - Sector Educación                                  ",143,"CHUCUITO","Rural 3",4290,33]
[34,"CHUCUITO","HUAIRAPATA","0521997","INCA GARCILAZO DE LA VEGA","Secundaria","Educación Básica Regular      ","A1  - Pública - Sector Educación                                  ",47,"CHUCUITO","Rural 2",1692,34]
[35,"CHUCUITO","INCHYPALLA","1400738","INCHUPALLA","Secundaria","Educación Básica Regular      ","A3  - Pública - Municipalidad                                     ",19,"CHUCUITO","Rural 2",684,35]
[36,"CHUCUITO","COCHIRAYA","1023480","INDEPENDENCIA NACIONAL","Secundaria","Educación Básica Regular      ","A1  - Pública - Sector Educación                                  ",48,"CHUCUITO","Rural 2",1728,36]
[37,"CHUCUITO","CARINA","1023522","LEONCIO PRADO","Secundaria","Educación Básica Regular      ","A1  - Pública - Sector Educación                                  ",74,"CHUCUITO","Rural 2",2664,37]
[38,"CHUCUITO","TACASAYA","1023563","MARIANO MELGAR VALDIVIESO","Secundaria","Educación Básica Regular      ","A1  - Pública - Sector Educación                                  ",36,"CHUCUITO","Rural 2",1296,38]
[39,"CHUCUITO","POTOJANI GRANDE","1023605","POTOJANI GRANDE","Secundaria","Educación Básica Regular      ","A1  - Pública - Sector Educación                                  ",39,"CHUCUITO","Rural 2",1404,39]
[40,"COATA","SAJANACACHI","1023647","SAJANACACHI","Secundaria","Educación Básica Regular      ","A1  - Pública - Sector Educación                                  ",40,"COATA","Rural 2",1440,40]
[41,"COATA","COATA","0578955","SAN AGUSTIN","Secundaria","Educación Básica Regular      ","A1  - Pública - Sector Educación                                  ",264,{"$f":"+B834","v":"COATA"},"Rural 2",{"$f":"+IF(K834=\"Rural\",I834*2*12,IF(K834=\"Rural 1\",I834*3.5*12,IF(K834=\"Rural 2\",I834*3*12,IF(K834=\"Rural 3\",I834*2.5*12,IF(K834=\"Urbana\",I834*1.6*12,IF(K834=\"Urbana 1\",I834*1.3*12,0))))))","v":9504},41]
[42,"COATA","SORAZA","0578963","SORAZA","Secundaria","Educación Básica Regular      ","A1  - Pública - Sector Educación                                  ",75,"COATA","Rural 2",2700,42]
[43,"COATA","SUCASCO","1023688","TECNICO INDUSTRIAL TAHUANTINSUYO","Secundaria","Educación Básica Regular      ","A1  - Pública - Sector Educación                                  ",171,"COATA","Rural 3",5130,43]
[44,"HUATA","HUATTA","1753730","MIGUEL GRAU SEMINARIO","Secundaria","Educación Básica Regular      ","A1  - Pública - Sector Educación                                  ",24,"HUATA","Rural 3",720,44]
[45,"HUATA","HUATTA","0522193","SAN JUAN","Secundaria","Educación Básica Regular      ","A1  - Pública - Sector Educación                                  ",223,"HUATA","Rural 3",6690,{"$f":"+A838","v":45}]
[46,"MAÑAZO","MAÑAZO","1746304","MAÑAZO","Secundaria","Educación Básica Regular      ","A1  - Pública - Sector Educación                                  ",25,"MAÑAZO","Urbana",480,46]
[47,"MAÑAZO","ALTO ALIANZA","0474569","MAÑAZO","Secundaria","Educación Básica Regular      ","A1  - Pública - Sector Educación                                  ",294,"MAÑAZO","Urbana",5644.8,47]
[48,"MAÑAZO","CARI CARI","1571470","SAN MIGUEL","Secundaria","Educación Básica Regular      ","A1  - Pública - Sector Educación                                  ",121,"MAÑAZO","Rural 2",4356,48]
[49,"MAÑAZO","CHARAMAYA","1372861","TECNICO AGROPECUARIO CHARAMAYA","Secundaria","Educación Básica Regular      ","A1  - Pública - Sector Educación                                  ",17,"MAÑAZO","Rural 1",714,49]
[50,"PAUCARCOLLA","MORO","1571587","CESAR VALLEJO","Secundaria","Educación Básica Regular      ","A1  - Pública - Sector Educación                                  ",55,"PAUCARCOLLA","Rural 3",1650,50]
[51,"PAUCARCOLLA","PAUCARCOLLA","0522292","TUPAC AMARU","Secundaria","Educación Básica Regular      ","A1  - Pública - Sector Educación                                  ",161,"PAUCARCOLLA","Rural 3",4830,51]
[52,"PICHACANI","LARAQUERI","0489963","EDUARDO BENIGNO LUQUE ROMERO","Secundaria","Educación Básica Regular      ","A1  - Pública - Sector Educación                                  ",283,"PICHACANI","Rural 3",8490,52]
[53,"PICHACANI","HUACOCHULLO","1025808","HUACCOCHULLO","Secundaria","Educación Básica Regular      ","A1  - Pública - Sector Educación                                  ",38,"PICHACANI","Rural 2",1368,53]
[54,"PICHACANI","PICHACANI","1023928","MARISCAL SUCRE","Secundaria","Educación Básica Regular      ","A1  - Pública - Sector Educación                                  ",28,"PICHACANI","Rural 2",1008,54]
[55,"PICHACANI","HUARIJUYO","1025816","MIGUEL GRAU","Secundaria","Educación Básica Regular      ","A1  - Pública - Sector Educación                                  ",49,"PICHACANI","Rural 2",1764,55]
[56,"PLATERIA","TITILACA","1024041","ANDRES AVELINO CACERES","Secundaria","Educación Básica Regular      ","A1  - Pública - Sector Educación                                  ",45,"PLATERIA","Rural 2",1620,56]
[57,"PLATERIA","CCOTA","0474502","CCOTA","Secundaria","Educación Básica Regular      ","A1  - Pública - Sector Educación                                  ",37,"PLATERIA","Rural 3",1110,57]
[58,"PLATERIA","CARUCAYA","1024082","GAMALIEL CHURATA","Secundaria","Educación Básica Regular      ","A1  - Pública - Sector Educación                                  ",30,"PLATERIA","Rural 2",1080,58]
[59,"PLATERIA","PALLALLA","0615203","JULIO GONZALES RUIZ","Secundaria","Educación Básica Regular      ","A1  - Pública - Sector Educación                                  ",74,"PLATERIA","Rural 2",2664,59]
[60,"PLATERIA","PLATERIA","0474510","MANUEL Z. CAMACHO","Secundaria","Educación Básica Regular      ","A1  - Pública - Sector Educación                                  ",86,"PLATERIA","Rural 3",2580,60]
[61,"PLATERIA","PERCA","0521799","VICTOR RAUL HAYA DE LA TORRE","Secundaria","Educación Básica Regular      ","A1  - Pública - Sector Educación                                  ",45,"PLATERIA","Rural 2",1620,61]
[62,"PUNO","TUPAC AMARU","0239822","32","Secundaria","Educación Básica Regular      ","A1  - Pública - Sector Educación                                  ",687,"PUNO","Urbana",13190.400000000001,62]
[63,"PUNO","VICTORIA","0239814","45 EMILIO ROMERO PADILLA","Secundaria","Educación Básica Regular      ","A1  - Pública - Sector Educación                                  ",1006,"PUNO","Urbana 1",15693.599999999999,63]
[64,"PUNO","JAYLLIHUAYA","1024074","CARLOS DANTE NAVA","Secundaria","Educación Básica Regular      ","A1  - Pública - Sector Educación                                  ",45,"PUNO","Urbana",864,64]
[65,"PUNO","PUNO","0578823","CARLOS RUBINA BURGOS","Secundaria","Educación Básica Regular      ","A1  - Pública - Sector Educación                                  ",403,"PUNO","Urbana",7737.6,65]
[66,"PUNO","HACIENDA COLLACACHI","0578815","COLLACACHI","Secundaria","Educación Básica Regular      ","A1  - Pública - Sector Educación                                  ",15,"PUNO","Rural 2",540,66]
[67,"PUNO","PUNO","0240184","GLORIOSO SAN CARLOS","Secundaria","Educación Básica Regular      ","A1  - Pública - Sector Educación                                  ",1097,"PUNO","Urbana 1",17113.2,67]
[68,"PUNO","PORTEÑO","0240176","GRAN UNIDAD ESCOLAR SAN CARLOS","Secundaria","Educación Básica Regular      ","A1  - Pública - Sector Educación                                  ",1634,"PUNO","Urbana 1",25490.400000000001,68]
[69,"PUNO","CHANU CHANU ETAPA 1","1372879","INCA MANCO CAPAC","Secundaria","Educación Básica Regular      ","A2  - Pública - Otro Sector Público                               ",206,"PUNO","Urbana",3955.2000000000003,69]
[70,"PUNO","BELLAVISTA","0578773","INDEPENDENCIA NACIONAL","Secundaria","Educación Básica Regular      ","A1  - Pública - Sector Educación                                  ",479,"PUNO","Urbana",9196.8000000000011,70]
[71,"PUNO","PUNO","0578799","JOSE ANTONIO ENCINAS","Secundaria","Educación Básica Regular      ","A1  - Pública - Sector Educación                                  ",162,"PUNO","Urbana",3110.3999999999996,71]
[72,"PUNO","CIUDAD UNIVERSITARIA","1024033","JOSE CARLOS MARIATEGUI APLICACION UNA","Secundaria","Educación Básica Regular      ","A1  - Pública - Sector Educación                                  ",327,"PUNO","Urbana",6278.4000000000005,72]
[73,"PUNO","PUNO","0240267","MARIA AUXILIADORA","Secundaria","Educación Básica Regular      ","A1  - Pública - Sector Educación                                  ",992,"PUNO","Urbana 1",15475.2,73]
[74,"PUNO","PUNO","0618447","POLITECNICO HUASCAR","Secundaria","Educación Básica Regular      ","A1  - Pública - Sector Educación                                  ",220,"PUNO","Urbana",4224,74]
[75,"PUNO","SAN ANTONIO","1029974","SAN ANTONIO DE PADUA","Secundaria","Educación Básica Regular      ","A1  - Pública - Sector Educación                                  ",128,"PUNO","Urbana",2457.6000000000004,75]
[76,"PUNO","PUNO","0701557","SAN JOSE","Secundaria","Educación Básica Regular      ","A1  - Pública - Sector Educación                                  ",85,"PUNO","Urbana",1632,76]
[77,"PUNO","SALCEDO","0239798","SAN JUAN BOSCO","Secundaria","Educación Básica Regular      ","A1  - Pública - Sector Educación                                  ",296,"PUNO","Urbana",5683.2000000000007,77]
[78,"PUNO","ALTO PUNO","1721471","SAN SALVADOR","Secundaria","Educación Básica Regular      ","A1  - Pública - Sector Educación                                  ",53,"PUNO","Urbana",1017.6000000000001,78]
[79,"PUNO","ORKAPATA","0240259","SANTA ROSA","Secundaria","Educación Básica Regular      ","A1  - Pública - Sector Educación                                  ",1048,"PUNO","Urbana 1",16348.800000000001,79]
[80,"PUNO","UROS CHULLUNI","1025774","UROS CHULLUNI","Secundaria","Educación Básica Regular      ","A1  - Pública - Sector Educación                                  ",35,"PUNO","Rural 3",1050,80]
[81,"PUNO","VILLA DEL LAGO","1029644","VILLA DEL LAGO","Secundaria","Educación Básica Regular      ","A1  - Pública - Sector Educación                                  ",160,"PUNO","Urbana",3072,81]
[82,"SAN ANTONIO","JUNCAL","1024124","LOS ANDES","Secundaria","Educación Básica Regular      ","A1  - Pública - Sector Educación                                  ",54,"SAN ANTONIO","Rural 1",2268,82]
[83,"SAN ANTONIO","CACHIPASCANA","1571439","SEÑOR DE HUANCA","Secundaria","Educación Básica Regular      ","A1  - Pública - Sector Educación                                  ",18,"SAN ANTONIO","Rural 1",756,83]
[84,"TIQUILLACA","TIQUILLACA","0536912","SAN FRANCISCO","Secundaria","Educación Básica Regular      ","A1  - Pública - Sector Educación                                  ",91,"TIQUILLACA","Rural 2",3276,84]
[85,"VILQUE","VILQUE","0631333","JUAN BUSTAMANTE DUEÑAS","Secundaria","Educación Básica Regular      ","A1  - Pública - Sector Educación                                  ",158,"VILQUE","Rural 3",4740,85]
[86,"VILQUE","MACHACMARCA","1569219","SAN JUAN DE MACHACMARCA","Secundaria","Educación Básica Regular      ","A1  - Pública - Sector Educación                                  ",62,"VILQUE","Rural",1488,86]
[1,"Acora",null,"1025311","ACORA","Técnico Productiva",null,"Pública - Sector Educación",134,"Acora","Urbana",2572.8000000000002,1]
[2,"Huata",null,"0701623","HUATTA","Técnico Productiva",null,"Pública - Sector Educación",45,"Huata","Urbana",864,2]
[3,"Mañazo",null,"1155308","MAÑAZO","Técnico Productiva",null,"Pública - Sector Educación",80,"Mañazo","Urbana",1536,3]
[4,"Plateria",null,"0701607","CAMATA","Técnico Productiva",null,"Pública - Sector Educación",616,"Plateria","Rural",14784,4]
[5,"Plateria",null,"0547414","CCOTA","Técnico Productiva",null,"Pública - Sector Educación",0,"Plateria","Urbana",0,5]
[6,"Puno",null,"0701649","ARTE Y FOLKLORE","Técnico Productiva",null,"Pública - Sector Educación",317,"Puno","Urbana",6086.4000000000005,6]
[7,"Puno",null,"1259449","MANCO CAPAC","Técnico Productiva",null,"Pública - Otro Sector Público",94,"Puno","Urbana",1804.8000000000002,7]
[8,"Puno",null,"0240069","PUNO","Técnico Productiva",null,"Pública - Sector Educación",739,"Puno","Urbana",14188.800000000001,8]
[9,"Puno",null,"1024678","SAN MARTIN DE PORRAS","Técnico Productiva",null,"Pública - Sector Educación",94,"Puno","Rural",2256,{"$f":"+A888","v":9}]
[null,null,null,null,null,null,null,null,null,null,null,{"$f":"SUM(L2:L888)","v":1029985.2000000001}]
[]
[]
[]
[]
[]
[null,null,null,null,null,null,null,null,null,null,null,916101.8]
[null,null,null,null,null,null,null,null,null,null,null,{"$f":"+L889-L895","v":113883.40000000002}]